Workbook

Sheet Updates
A1: SUMMARY OF UPDATES TO THE PRICE LIST
A3: 2019-12-27 | B3: ECOSYS M3660idn | C3: 62ppm A4 Monochrome MFP (4 in 1: P/C/S/F)…REMOVED, predecessor model of the M3860
B4: ECOSYS M3860idn | C4: 62 PPM A4 B&W MFP (4 in 1: P/C/S/F) ………..ADDED Series Upgrade
B5: ECOSYS M3860idnf | C5: 62 PPM A4 B&W MFP (4 in 1: P/C/S/F) .ADDED Series Upgrade, Internal Finisher & Auto Stapler added
B6: TASKalfa/Copy Star 307ci | C6: 32/32 PPM A4 Color MFP….REMOVED , predecessor model of the 308ci
B7: TASKalfa/Copy Star 308ci | C7: 32/32 PPM A4 Color MFP…. ADDED Series Upgrade
B8: TASKalfa/Copy Star 356ci | C8: 37/37 PPM A4 Color MFP… REMOVED , predecessor model of the 358ci
B9: TASKalfa/Copy Star 358ci | C9: 37/37 PPM A4 Color MFP …. ADDED Series Upgrade
B10: TASKalfa/Copy Star 7002i | C10: 70 PPM A3 B&W MFP….. REMOVED , predecessor model of the 7003i
B11: TASKalfa/Copy Star 7003i | C11: 70 PPM A3 B&W MFP…… ADDED Series Upgrade
B12: TASKalfa/Copy Star 8002i | C12: 80 PPM A3 B&W MFP…… REMOVED , predecessor model of the 8003i
B13: TASKalfa/Copy Star 8003i | C13: 80 PPM A3 B&W MFP…. ADDED Series Upgrade
B14: TASKalfa/Copy Star 9002i | C14: 90 PPM A3 B&W MFP….. REMOVED , predecessor model of the 9003i
B15: TASKalfa/Copy Star 9003i | C15: 90 PPM A3 B&W MFP…. ADDED Series Upgrade
B16: TASKalfa/Copy Star 7052ci | C16: 70/65 PPM A3 Color MFP…. REMOVED , predecessor model of the 7353ci
B17: TASKalfa/Copy Star 7353ci | C17: 73/65 PPM A3 Color MFP… ADDED Series Upgrade
B18: TASKalfa/Copy Star 8052ci | C18: 80/70 PPM A3 Color MFP …. REMOVED , predecessor model of the 8353ci
B19: TASKalfa/Copy Star 8353ci | C19: 83/70 PPM A3 Color MFP… ADDED Series Upgrade
B20: ECOSYS P3045dn | C20: 47 ppm A4 Monochrome Printer… REMOVED , predecessor model of the 3145dn
B21: ECOSYS P3145dn | C21: 47 ppm A4 Monochrome Printer… ADDED Series Upgrade
B22: ECOSYS P3050dn | C22: 52 ppm A4 Monochrome Printer… REMOVED , predecessor model of the 3150dn
B23: ECOSYS P3150dn | C23: 52 ppm A4 Monochrome Printer…. ADDED Series Upgrade
B24: ECOSYS P3055dn | C24: 57 ppm A4 Monochrome Printer… REMOVED , predecessor model of the 3155dn
B25: ECOSYS P3155dn | C25: 57 ppm A4 Monochrome Printer….. ADDED Series Upgrade
B26: ECOSYS P3060dn | C26: 62 ppm A4 Monochrome Printer… REMOVED , predecessor model of the 3060dn
B27: ECOSYS P3260dn | C27: 62 ppm A4 Monochrome Printer…... ADDED Series Upgrade
B28: PF-320 | C28: 500 Sheet Optional Paper Feed Cassette… REMOVED , predecessor model of the pf-3110
B29: PF-3110 | C29: 500 Sheet Optional Paper Feed Cassette… ADDED Series Upgrade
A31: 2020-08-09 | B31: Removed the TASKalfa/Copy Star 406ci
B32: Added the TASKalfa/Copy Star 408ci
B33: Removed the Fax Kit 406ci
B34: Added the Fax Kit 408/358
B35: The Data Security E Common Criterial/NIAP certified HARD DRIVE ENCRYPTION/OVERWRITE KIT because it's now included with the main unit
A37: 2021-05-10 | B37: Exchange Connector…REMOVED
B38: HomePOINT Advanced…REMOVED
B39: PanelPlus…REMOVED
B40: OpenText Alchemy Connector…REMOVED
B41: PreservDOX…REMOVED
B42: SharePoint Connector…REMOVED
B43: SharePoint Connector Powered by OmniPage OCR…REMOVED
B44: Language Exchange…REMOVED
B45: Enterprise Edition MyQ Enterprise License (1-9 pcs)…ADDED
B46: Enterprise Edition MyQ Enterprise License (10-39 pcs) )…ADDED
B47: Enterprise Edition MyQ Enterprise License (40-99 pcs) )…ADDED
B48: Enterprise Edition MyQ Enterprise License (100+ pcs) )…ADDED
B49: Ultimate Edition MyQ Ultimate License (1-9 pcs) )…ADDED
B50: Ultimate Edition MyQ Ultimate License (10-39 pcs) )…ADDED
B51: Ultimate Edition MyQ Ultimate License (40-99 pcs) )…ADDED
B52: Ultimate Edition MyQ Ultimate License (100+ pcs) )…ADDED
B53: Ultimate Extra Hotfolder, FTP, & Email Capture License)…ADDED
B54: Ultimate Extra Additional Document Processor License)…ADDED
B55: Enterprise Edition SA Enterprise Assurance 1Y (1-9 pcs) )…ADDED
B56: Enterprise Edition SA Enterprise Assurance 1Y (10-39 pcs)…ADDED
B57: Enterprise Edition SA Enterprise Assurance 1Y (40-99 pcs) …ADDED
B58: Enterprise Edition SA Enterprise Assurance 1Y (100+ pcs) …ADDED
B59: Enterprise Edition SA Enterprise Assurance 2Y (1-9 pcs) …ADDED
B60: Enterprise Edition SA Enterprise Assurance 2Y (10-39 pcs) …ADDED
B61: Enterprise Edition SA Enterprise Assurance 2Y (40-99 pcs) …ADDED
B62: Enterprise Edition SA Enterprise Assurance 2Y (100+ pcs) …ADDED
B63: Enterprise Edition SA Enterprise Assurance 3Y (1-9 pcs) …ADDED
B64: Enterprise Edition SA Enterprise Assurance 3Y (10-39 pcs) …ADDED
B65: Enterprise Edition SA Enterprise Assurance 3Y (40-99 pcs) …ADDED
B66: Enterprise Edition SA Enterprise Assurance 3Y (100+ pcs) …ADDED
B67: Enterprise Edition SA Enterprise Assurance 4Y (1-9 pcs) …ADDED
B68: Enterprise Edition SA Enterprise Assurance 4Y (10-39 pcs) …ADDED
B69: Enterprise Edition SA Enterprise Assurance 4Y (40-99 pcs) …ADDED
B70: Enterprise Edition SA Enterprise Assurance 4Y (100+ pcs) …ADDED
B71: Enterprise Edition SA Enterprise Assurance 5Y (1-9 pcs) …ADDED
B72: Enterprise Edition SA Enterprise Assurance 5Y (10-39 pcs) …ADDED
B73: Enterprise Edition SA Enterprise Assurance 5Y (40-99 pcs) …ADDED
B74: Enterprise Edition SA Enterprise Assurance 5Y (100+ pcs) …ADDED
B75: Ultimate Edition SA Ultimate Assurance 1Y (1-9 pcs) …ADDED
B76: Ultimate Edition SA Ultimate Assurance 1Y (10-39 pcs) …ADDED
B77: Ultimate Edition SA Ultimate Assurance 1Y (40-99 pcs) …ADDED
B78: Ultimate Edition SA Ultimate Assurance 1Y (100+ pcs) …ADDED
B79: Ultimate Edition SA Ultimate Assurance 2Y (1-9 pcs) …ADDED
B80: Ultimate Edition SA Ultimate Assurance 2Y (10-39 pcs) …ADDED
B81: Ultimate Edition SA Ultimate Assurance 2Y (40-99 pcs) …ADDED
B82: Ultimate Edition SA Ultimate Assurance 2Y (100+ pcs) …ADDED
B83: Ultimate Edition SA Ultimate Assurance 3Y (1-9 pcs) …ADDED
B84: Ultimate Edition SA Ultimate Assurance 3Y (10-39 pcs) …ADDED
B85: Ultimate Edition SA Ultimate Assurance 3Y (40-99 pcs) …ADDED
B86: Ultimate Edition SA Ultimate Assurance 3Y (100+ pcs) …ADDED
B87: Ultimate Edition SA Ultimate Assurance 4Y (1-9 pcs) …ADDED
B88: Ultimate Edition SA Ultimate Assurance 4Y (10-39 pcs) …ADDED
B89: Ultimate Edition SA Ultimate Assurance 4Y (40-99 pcs) …ADDED
B90: Ultimate Edition SA Ultimate Assurance 4Y (100+ pcs) …ADDED
B91: Ultimate Edition SA Ultimate Assurance 5Y (1-9 pcs) …ADDED
B92: Ultimate Edition SA Ultimate Assurance 5Y (10-39 pcs) …ADDED
B93: Ultimate Edition SA Ultimate Assurance 5Y (40-99 pcs) …ADDED
B94: Ultimate Edition SA Ultimate Assurance 5Y (100+ pcs) …ADDED
B95: Ultimate Extra SA Hotfolder, FTP, & Email Capture Assurance 1M…ADDED
B96: Ultimate Extra SA Hotfolder, FTP, & Email Capture Assurance 1Y…ADDED
B97: Ultimate Extra SA Hotfolder, FTP, & Email Capture Assurance 2Y…ADDED
B98: Ultimate Extra SA Hotfolder, FTP, & Email Capture Assurance 3Y…ADDED
B99: Ultimate Extra SA Hotfolder, FTP, & Email Capture Assurance 4Y…ADDED
B100: Ultimate Extra SA Hotfolder, FTP, & Email Capture Assurance 5Y…ADDED
B101: Ultimate Extra SA Additional Document Processor Assurance 1M…ADDED
B102: Ultimate Extra SA Additional Document Processor Assurance 1Y…ADDED
B103: Ultimate Extra SA Additional Document Processor Assurance 2Y…ADDED
B104: Ultimate Extra SA Additional Document Processor Assurance 3Y…ADDED
B105: Ultimate Extra SA Additional Document Processor Assurance 4Y…ADDED
B106: Ultimate Extra SA Additional Document Processor Assurance 5Y…ADDED
B107: Extended License Job Archiving…ADDED
B108: Cloud Connect Single License - per device…ADDED
B109: Microsoft Connector Single License - per device …ADDED
B110: ShareBase Connector Single License - per device …ADDED
B111: OnBase Connector Single License - per device…ADDED
B112: Square 9 Connector Single License - per device…ADDED
B113: DocuWare Connector Single License - per device …ADDED
B114: Microsoft Connector Pro Single License - adds OmniPage OCR …ADDED
B115: RightFax Embedded Single License - per device …ADDED
B116: XMediusFax Connector Single License - per device …ADDED
B117: AccuSender Biscom Single License - per device…ADDED
B118: AccuSender SendSecure Single License - per device…ADDED
B119: KCM Lite Package Connects 1 MFP, 1 Email account, & 1 Folder …ADDED
B120: KCM Lite Add-on Device Add 1 Kyocera MFP connection …ADDED
B121: KCM Lite Add-on Email Add 1 Email account connection …ADDED
B122: KCM Lite Add-on Folder Add 1 Hot Folder connection …ADDED
B123: M&S Package - 1Y 1Y M&S for KCM Lite Package…ADDED
B124: M&S Add-on Device - 1Y 1Y M&S for KCM Lite Add-on Device …ADDED
B125: M&S Add-on Email 1Y 1Y M&S for KCM Lite Add-on Email …ADDED
B126: M&S Add-on Folder 1Y 1Y M&S for KCM Lite Add-on Folder …ADDED
B127: M&S Package - 1M 1M M&S for KCM Lite Package …ADDED
B128: M&S Add-on Device - 1M 1M M&S for KCM Lite Add-on Device …ADDED
B129: M&S Add-on Email 1M 1M M&S for KCM Lite Add-on Email …ADDED
B130: M&S Add-on Folder 1M 1M M&S for KCM Lite Add-on Folder …ADDED
B131: KCM Pro MFP Connect 1 MFP …ADDED
B132: KCM Pro Email Connect 1 Email account …ADDED
B133: KCM Pro Folder Connect 1 Hot Folder …ADDED
B134: KCM Pro Web/Mobile Connect up to 20 users…ADDED
B135: M&S MFP - 1Y 1Y M&S for KCM Pro MFP …ADDED
B136: M&S Email - 1Y 1Y M&S for KCM Pro Email…ADDED
B137: M&S Folder - 1Y 1Y M&S for KCM Pro Folder …ADDED
B138: M&S Web/Mobile - 1Y 1Y M&S for KCM Pro Web/Mobile …ADDED
B139: M&S MFP - 1M 1M M&S for KCM Pro MFP …ADDED
B140: M&S Email - 1M 1M M&S for KCM Pro Email …ADDED
B141: M&S Folder - 1M 1M M&S for KCM Pro Folder …ADDED
B142: M&S Web/Mobile - 1M 1M M&S for KCM Pro Web/Mobile …ADDED
B143: DMC DMConnect Pro powered by Nuance…ADDED
B144: DMC Page Pack (50K) Basic Page Pack (50K Pages per Year) …ADDED
B145: DMC Page Pack (50K) PRO Page Pack (50K Pages per Year) …ADDED
B146: DMC Page Pack (250K) PRO Page Pack (250K Pages per Year) …ADDED
B147: DMC User Licenses User License Pack (10 Users per Year) …ADDED
B148: GlobalSearch Users Pro Edition Per CNCR User …ADDED
B149: GlobalSearch Users Pro Edition PLUS Per CNCR User …ADDED
B150: GlobalSearch Users Corp Edition Per CNCR User - (5-10 Tier) …ADDED
B151: GlobalSearch Users Corp Edition Per CNCR User - (11-25 Tier) …ADDED
B152: GlobalSearch Users Corp Edition Per CNCR User - (26-50 Tier) …ADDED
B153: GlobalSearch Users Corp Edition Per CNCR User - (51-100 Tier) …ADDED
B154: GlobalSearch Users Corp Edition Per CNCR User - (100-249 Tier) …ADDED
B155: GlobalSearch Users Corp Edition Per CNCR User - (250-1000 Tier) …ADDED
B156: Users M&S (1Y) Pro Edition Per CNCR User - M&S…ADDED
B157: Users M&S (1Y) Pro Edition PLUS Per CNCR User - M&S…ADDED
B158: Users M&S (1Y) Corp Edition Per CNCR User - (5-10 Tier) - M&S…ADDED
B159: Users M&S (1Y) Corp Edition Per CNCR User - (11-25 Tier) - M&S…ADDED
B160: Users M&S (1Y) Corp Edition Per CNCR User - (26-50 Tier) - M&S…ADDED
B161: Users M&S (1Y) Corp Edition Per CNCR User - (51-100 Tier) - M&S…ADDED
B162: Users M&S (1Y) Corp Edition Per CNCR User - (100-249 Tier) - M&S…ADDED
B163: Users M&S (1Y) Corp Edition Per CNCR User - (250-1000 Tier) - M&S…ADDED
B164: GlobalSearch Add-ons Image XChange - Per CNCR User (3-9) …ADDED
B165: GlobalSearch Add-ons Image XChange Server - Unlimited users …ADDED
B166: GlobalSearch Add-ons QuickBooks Connections - Per CNCR User …ADDED
B167: GlobalSearch Add-ons MS Dynamics GP CONN - Per CNCR User …ADDED
B168: GlobalSearch Add-ons Additional GlobalSearch App Server License…ADDED
B169: GlobalSearch Add-ons Additional GlobalAction Workflow Server…ADDED
B170: GlobalSearch Add-ons Read Only License - Per CNCR User …ADDED
B171: GlobalSearch Add-ons Ext Read Only Access Server - Unltd Users …ADDED
B172: Add-ons M&S (1Y) Image XChange - Per CNCR User (3-9) - M&S…ADDED
B173: Add-ons M&S (1Y) Image XChange Server - Unlimited users - M&S…ADDED
B174: Add-ons M&S (1Y) QuickBooks Connections - Per CNCR User - M&S…ADDED
B175: Add-ons M&S (1Y) MS Dynamics GP CONN - Per CNCR User - M&S…ADDED
B176: Add-ons M&S (1Y) Add GlobalSearch App Server License - M&S…ADDED
B177: Add-ons M&S (1Y) Add GlobalAction Workflow Server - M&S…ADDED
B178: Add-ons M&S (1Y) Read Only License - Per CNCR User - M&S…ADDED
B179: Add-ons M&S (1Y) Ext Read Only Access Server - Unltd Users - M&S…ADDED
B180: GlobalCapture BDL Convey - Dual Core…ADDED
B181: GlobalCapture BDL Convey Core Add - Per Core …ADDED
B182: GlobalCapture BDL Convey PLUS - Dual Core …ADDED
B183: GlobalCapture BDL Convey PLUS Core Add On - Per Core …ADDED
B184: GlobalCapture BDL Intelligent Transformation (IT) BDL…ADDED
B185: GlobalCapture BDL IT BDL Core Add On - Per Core …ADDED
B186: GlobalCapture BDL IT PLUS BDL …ADDED
B187: GlobalCapture BDL IT PLUS BDL Core Add On - Per Core …ADDED
B188: BDL M&S (1Y) Convey - Dual Core - M&S…ADDED
B189: BDL M&S (1Y) Convey Core Add - Per Core - M&S…ADDED
B190: BDL M&S (1Y) Convey PLUS - Dual Core - M&S…ADDED
B191: BDL M&S (1Y) Convey PLUS Core Add On - Per Core - M&S…ADDED
B192: BDL M&S (1Y) Intelligent Transformation (IT) BDL - M&S…ADDED
B193: BDL M&S (1Y) IT BDL Core Add On - Per Core - M&S…ADDED
B194: BDL M&S (1Y) IT PLUS BDL - M&S…ADDED
B195: BDL M&S (1Y) IT PLUS BDL Core Add On - Per Core - M&S…ADDED
B196: GlobalCapture Add-ons Invoice Intelligence Template Pack …ADDED
B197: GlobalCapture Add-ons Disaster Recovery/Test Bench License …ADDED
B198: GlobalCapture Add-ons Assembly Bound Lists Pack …ADDED
B199: GlobalCapture Add-ons All In One User License - Per CNCR User…ADDED
B200: Add-ons M&S (1Y) Invoice Intelligence Template Pack - M&S…ADDED
B201: Add-ons M&S (1Y) Disaster Recovery/Test Bench License - M&S…ADDED
B202: Add-ons M&S (1Y) Assembly Bound Lists Pack - M&S…ADDED
B203: Add-ons M&S (1Y) All In One User License - Per CNCR User - M&S…ADDED
... 218 more rows

Sheet EQUIPMENT PRICE LIST
B1: KYOCERA Business Solutions America, Inc.
B2: MARCH 2022
A3: GROUP | B3: ITEM CODE | C3: MODELS AND ACCESSORIES | D3: DESCRIPTION | E3: MSRP | F3: NASPO ValuePoint Price | G3: Exact % off MSRP | H3: Customer Base Monthly Maintenance w/Service and Supplies | I3: Customer Copies Included | J3: Copy Charge Service & Supplies | K3: Service Only
A4: SEGMENT | I4: Monthly | J4: OVERAGE | K4: Parts and labor only (no supplies)
A6: B3 | B6: 1102S22US0 | C6: ECOSYS M2635dw | D6: 37 ppm A4 Monochrome 4in1 MFP Copy, Print, Fax, Color scan With STD Wireless capability | E6: 816 | F6: 380.29 | G6: 0.5339558824 | H6: 0 | I6: 0 | J6: 0.0343 | K6: 0.01988888889
B7: 1203RA0UN0 | C7: PF-1100 | D7: (1) 250 Sheet Paper Drawer included as per spec | H7: 21.8491 | I7: 650 | J7: 0.033614
H8: 42.8064 | I8: 1300 | J8: 0.032928
H9: 60.1965 | I9: 1950 | J9: 0.03087
A12: B4 | B12: 1102S32US0 | C12: ECOSYS M2040dn | D12: 42 ppm A4 Monochrome 3in1 MFP Copy, Print, Color scan | E12: 1181 | F12: 527.02 | G12: 0.5537493649 | H12: 0 | I12: 0 | J12: 0.018 | K12: 0.01143209877
B13: 1203RA0UN0 | C13: PF-1100 | D13: (1) 250 Sheet Paper Drawer included as per spec | H13: 11.466 | I13: 650 | J13: 0.01764
H14: 22.464 | I14: 1300 | J14: 0.01728
H15: 31.59 | I15: 1950 | J15: 0.0162
A17: B4 | B17: 1102S42US0 | C17: ECOSYS M2540dw | D17: 42 ppm A4 Monochrome 4in1 MFP Copy, Print, Fax, Color scan With STD Wireless capability | E17: 1371 | F17: 611.81 | G17: 0.5537493649 | H17: 0 | I17: 0 | J17: 0.018 | K17: 0.01143209877
B18: 1203RA0UN0 | C18: PF-1100 | D18: (1) 250 Sheet Paper Drawer included as per spec | H18: 11.466 | I18: 650 | J18: 0.01764
H19: 22.464 | I19: 1300 | J19: 0.01728
H20: 31.59 | I20: 1950 | J20: 0.0162
A22: B4 | B22: 1102S52US0 | C22: ECOSYS M2640idw | D22: 42 ppm A4 Monochrome 4in1 MFP Copy, Print, Fax, Color scan & HyPAS** With STD Wireless capability | E22: 1567 | F22: 699.27 | G22: 0.5537493649 | H22: 0 | I22: 0 | J22: 0.018 | K22: 0.01143209877
B23: 1203RA0UN0 | C23: PF-1100 | D23: (1) 250 Sheet Paper Drawer included as per spec | H23: 11.466 | I23: 650 | J23: 0.01764
H24: 22.464 | I24: 1300 | J24: 0.01728
H25: 31.59 | I25: 1950 | J25: 0.0162
C26: M2635 / M2040 / M2540 / M2640 Accessories
B27: 1203RA0UN0 | C27: PF-1100 | D27: 250 Sheet Paper Drawer (Max 2 units) | E27: 130 | F27: 65 | G27: 0.5000125
B28: 855D200756 | C28: Copier Stand | D28: Stand for M2640idw/M2540dw/M2040dn/M2635dw | E28: 251 | F28: 125.5 | G28: 0.5000125
B29: 855D200662 | C29: SD-144-1GB(DDR3) | D29: Printer Memory (1GB) | E29: 159 | F29: 103.34 | G29: 0.35003635
B30: 855D200647 | C30: SDHC Card-16G | D30: SD Card Memory for Storage, 16Gb | E30: 35 | F30: 22.75 | G30: 0.35003635
B31: 855D200648 | C31: SDHC Card-32G | D31: SD Card Memory for Storage, 32Gb | E31: 87.5 | F31: 56.87 | G31: 0.35003635
B32: 1603NT0UN0 | C32: UG-33 | D32: Upgrade Kit for Thin Print Support | E32: 140 | F32: 90.99 | G32: 0.35003635
B33: 855D200890 | C33: Surge Protector-MX (15A) | D33: 15 Amp Surge Protector | E33: 150 | F33: 97.49 | G33: 0.35003635
A35: B4 | B35: 1102V22US0 | C35: ECOSYS M3145idn | D35: 47ppm A4 Monochrome MFP 3 in 1 model (Copy, Print, Color Scan) | E35: 2542 | F35: 1134.37 | G35: 0.5537493649 | H35: 0 | I35: 0 | J35: 0.01 | K35: 0.006386666667
B36: 1203SA0KL1 | C36: PF-3110 | D36: (1) 500 sheets optional paper feed cassette included as per spec | H36: 19.6 | I36: 2000 | J36: 0.0098
H37: 38.4 | I37: 4000 | J37: 0.0096
H38: 54 | I38: 6000 | J38: 0.009
A40: B4 | B40: 1102V32US0 | C40: ECOSYS M3645idn | D40: 47ppm A4 Monochrome MFP 4 in 1 model (Copy, Print, Fax, Color Scan) | E40: 2880 | F40: 1285.2 | G40: 0.5537493649 | H40: 0 | I40: 0 | J40: 0.01 | K40: 0.006386666667
B41: 1203SA0KL1 | C41: PF-3110 | D41: (1) 500 sheets optional paper feed cassette included as per spec | H41: 12.25 | I41: 1250 | J41: 0.0098
H42: 24 | I42: 2500 | J42: 0.0096
H43: 33.75 | I43: 3750 | J43: 0.009
A45: B5 | B45: 1102TB2US0 | C45: ECOSYS M3655idn | D45: 57ppm A4 Monochrome MFP 4 in 1 model (Copy, Print, Fax, Color Scan) | E45: 3473 | F45: 1484.39 | G45: 0.5725928592 | H45: 0 | I45: 0 | J45: 0.0065 | K45: 0.00464021164
B46: 1203SA0KL1 | C46: PF-3110 | D46: (3) 500 sheets optional paper feed cassette as per spec | H46: 12.74 | I46: 2000 | J46: 0.00637
H47: 24.96 | I47: 4000 | J47: 0.00624
H48: 35.1 | I48: 6000 | J48: 0.00585
A50: B6 | B50: 1102X92US0 | C50: ECOSYS M3860idn | D50: 62 PPM A4 B&W MFP (4 in 1: P/C/S/F) <1> | E50: 5687 | F50: 2627.865072 | G50: 0.5379171669 | H50: 0 | I50: 0 | J50: 0.0055 | K50: 0.003066666667
B51: 1203SA0KL1 | C51: PF-3110 | D51: (3) 500 sheets optional paper feed cassette as per spec | H51: 13.475 | I51: 2500 | J51: 0.00539
H52: 26.4 | I52: 5000 | J52: 0.00528
H53: 37.125 | I53: 7500 | J53: 0.00495
A54: B6 | B54: 1102WF2US0 | C54: ECOSYS M3860idnf | D54: 62 PPM A4 B&W MFP (4 in 1: P/C/S/F) Internal Finisher & Auto Stapler | E54: 8123 | F54: 3753.498854 | G54: 0.5379171669 | H54: 0 | I54: 0 | J54: 0.0055 | K54: 0.003066666667
B55: 1203SA0KL1 | C55: PF-3110 | D55: (3) 500 sheets optional paper feed cassette as per spec | H55: 13.475 | I55: 2500 | J55: 0.00539
H56: 26.4 | I56: 5000 | J56: 0.00528
H57: 37.125 | I57: 7500 | J57: 0.00495
C58: M3550 / 3560 Accessories
B59: 1203SA0KL1 | C59: PF-3110 | D59: 500 sheets optional paper feed cassette | E59: 249 | F59: 124.5 | G59: 0.5000125
B60: 1203N70UN0 | C60: PT-320 | D60: Face-up Rear Output Tray, 250 Sheets | E60: 39 | F60: 19.5 | G60: 0.5000125
B61: 855D200655 | C61: Stand | D61: Copier Stand | E61: 332 | F61: 166 | G61: 0.5000125
B62: 1903T50UN0 | C62: CA-3100 | D62: Caster Kit 3100 | E62: 256 | F62: =ROUND(E62*(1-G62),2) -> 166.39 | G62: 0.35003635
B63: 1903R90UN2 | C63: MS-5100B | D63: Manual Stapler | E63: 264 | F63: 132 | G63: 0.5000125
B64: 1505JV0UN0 | C64: IB-50 | D64: Gigabit EtherNet Board for Dual NIC | E64: 349 | F64: 226.84 | G64: 0.35003635
B65: 1505J50UN0 | C65: IB-51 | D65: Wireless LAN NIC (Does not work with Netgard) | E65: 471 | F65: 306.13 | G65: 0.35003635
B66: 1503S50UN0 | C66: IB-36 | D66: Wireless LAN NIC (Approx. 98 ft Range & Wi-Fi Direct) | E66: 99 | F66: 64.35 | G66: 0.35003635
B67: 1505J40UN0 | C67: HD-6 | D67: SSD Memory Device (32 GB) | E67: 336 | F67: 218.39 | G67: 0.35003635
B68: 1505J80UN0 | C68: HD-7 | D68: SSD Memory Device (128 GB) | E68: 480 | F68: 311.98 | G68: 0.35003635
B69: 855D200653 | C69: PCL Barcode Flash 3.0 (Type D) | D69: Barcode Flash | E69: 379 | F69: 246.34 | G69: 0.35003635
B70: 1603MS0UN0 | C70: Data Security (E) | D70: Data Security (Common Criteria/NIAP certified HARD DRIVE ENCRYPTION/OVERWRITE KIT) | E70: 580 | F70: 376.98 | G70: 0.35003635
B71: 1603P30UN0 | C71: Data Security (F) | D71: Data Security (FIPS 140-2 Certified Hard Drive Encryption/Overwrite Kit) | E71: 580 | F71: 376.98 | G71: 0.35003635
B72: 1702P60UN1 | C72: Card Reader Holder 10 | D72: Card Reader Attachment | E72: 49 | F72: 31.85 | G72: 0.35003635
B73: 855D200647 | C73: SDHC Card-16G | D73: SD Card Memory for Storage, 16Gb | E73: 35 | F73: 22.75 | G73: 0.35003635
B74: 855D200648 | C74: SDHC Card-32G | D74: SD Card Memory for Storage, 32Gb | E74: 87.5 | F74: 56.87 | G74: 0.35003635
B75: 1603P10UN0 | C75: Scan Extension Kit(A) | D75: Searchable PDF Kit | E75: 600 | F75: 389.98 | G75: 0.35003635
B76: 1503T30UN0 | C76: HD-14 | D76: HDD Memory Device (320 GB) <M3860idnf only> | E76: 845 | F76: =ROUND(E76*(1-G76),2) -> 549.22 | G76: 0.35003635
B77: 1503T40UN0 | C77: UG-35 | D77: Trusted Platform Module <M3860idnf only> | E77: 446 | F77: =ROUND(E77*(1-G77),2) -> 289.88 | G77: 0.35003635
B78: 855D200890 | C78: Surge Protector-MX (15A) | D78: 15 Amp Surge Protector | E78: 150 | F78: 97.49 | G78: 0.35003635
B80: N/A | C80: TASKalfa/CopyStar 308ci (Color) | D80: Color Copies | H80: 0 | I80: 0 | J80: 0.0738 | K80: 0.006577777778
A81: B3 | B81: 1102WL2US0 | C81: TASKalfa/CopyStar 308ci | D81: 32/32 PPM A4 Color MFP (With standard Document Processor) | E81: 4917 | F81: 2291.538926 | G81: 0.5339558824 | H81: 0 | I81: 0 | J81: 0.00747
B82: 1203PS7US0 | C82: PF-5120 | D82: (1) 500 SHEET PAPER TRAY included as per spec
H83: 10.9809 | I83: 1500 | J83: 0.0073206
H84: 21.5136 | I84: 3000 | J84: 0.0071712
H85: 30.2535 | I85: 4500 | J85: 0.006723
C86: 308ci Accessories
B87: 1203PX2US0 | C87: DF-5100 | D87: 300 SHEET INTERNAL FINISHER ( cannot instal with MT-5100) | E87: 977 | F87: 488.49 | G87: 0.5000125
B88: 1703PY0UN0 | C88: AK-5100 | D88: ATTACH KIT FOR MT-5100 on 307ci | E88: 160 | F88: 80 | G88: 0.5000125
B89: 1203PZ7US0 | C89: PF-5130 | D89: 500 SHEET PAPER TRAY x 2 ( requires PF-5120 for Installation) conflicts with 5140 | E89: 1287 | F89: 643.48 | G89: 0.5000125
B90: 1203PT7US0 | C90: PF-5140 | D90: 2000 SHEET PAPER TRAY ( requires PF-5120 for Installation)conflicts with 5130 | E90: 1380 | F90: 689.98 | G90: 0.5000125
B91: 855D200715 | C91: Stand | D91: Copier Cabinet Stand ( Requires PF-5120) | E91: 286 | F91: 143 | G91: 0.5000125
B92: 1203R50UN0 | C92: JS-5100 | D92: JOB SEPARATOR ( cannot install w/Finisher or MT) | E92: 205 | F92: 102.5 | G92: 0.5000125
B93: 1203R00US0 | C93: MT-5100 | D93: 5 BIN MAILBOX [Requires AK-5100 for Installation] cannot instal with finisher | E93: 1000 | F93: 499.99 | G93: 0.5000125
B94: 1902R60UN1 | C94: DT-5100 | D94: Original Hard Copy Holder | E94: 45 | F94: 22.5 | G94: 0.5000125
B95: 1503RH2US0 | C95: Fax System 11 | D95: Fax kit for 307ci | E95: 300 | F95: 150 | G95: 0.5000125
B96: 1603MC0UN0 | C96: Internet FAX Kit (A) | D96: Internet Fax Kit [requires Fax System 11] | E96: 300 | F96: 150 | G96: 0.5000125
B97: 1702R60UN1 | C97: Card Reader Holder 11 | D97: Card Reader Holder | E97: 64 | F97: 41.6 | G97: 0.35003635
B98: 1603MS0UN0 | C98: Data Security (E) | D98: Data Security (Common Criteria/NIAP certified HARD DRIVE ENCRYPTION/OVERWRITE KIT) | E98: 580 | F98: 376.98 | G98: 0.35003635
B99: 1505JV0UN0 | C99: IB-50 | D99: Gigabit EtherNet Board for Dual NIC | E99: 349 | F99: 226.84 | G99: 0.35003635
B100: 1505J50UN0 | C100: IB-51 | D100: Wireless LAN NIC (Does not work with Netgard) | E100: 471 | F100: 306.13 | G100: 0.35003635
B101: 1505J40UN0 | C101: HD-6*** | D101: SSD Memory Device (32 GB) for 307ci | E101: 336 | F101: 218.39 | G101: 0.35003635
B102: 1505J80UN0 | C102: HD-7*** | D102: SSD Memory Device (128 GB) for 307ci | E102: 480 | F102: 311.98 | G102: 0.35003635
B103: 1603NT0UN0 | C103: UG-33 | D103: Upgrade Kit for Thin Print Support | E103: 140 | F103: 90.99 | G103: 0.35003635
B104: 1603NX0UN0 | C104: UG-34 | D104: Optional Printer Emulation | E104: 560 | F104: 363.98 | G104: 0.35003635
B105: 855D200662 | C105: SD-144-1GB(DDR3) | D105: Printer Memory [1GB] for 307ci | E105: 159 | F105: 103.34 | G105: 0.35003635
B106: 855D200647 | C106: SDHC Card-16G | D106: SD Card Memory for storage, 16GB for 307ci | E106: 35 | F106: 22.75 | G106: 0.35003635
B107: 855D200648 | C107: SDHC Card-32G | D107: SD Card Memory for storage, 32GB for 307ci | E107: 87.5 | F107: 56.87 | G107: 0.35003635
B108: 855D200890 | C108: Surge Protector-MX (15A) | D108: 15 Amp Surge Protector | E108: 150 | F108: 97.49 | G108: 0.35003635
B110: N/A | C110: TASKalfa/CopyStar 358ci (Color) | D110: Color Copies | F110: 0 | H110: 0 | I110: 0 | J110: 0.04293 | K110: 0.006022222222
A111: B3 | B111: 1102V42US0 | C111: TASKalfa/CopyStar 358ci (B&W) | D111: 37/37 PPM A4 Color MFP | E111: 7298 | F111: 3401.189971 | G111: 0.5339558824 | H111: 0 | I111: 0 | J111: 0.0072
B112: 1203PS7US0 | C112: PF-5120 | D112: (1) 500 SHEET PAPER TRAY included as per spec | F112: 0
F113: 0 | H113: 11.6424 | I113: 1650 | J113: 0.007056
F114: 0 | H114: 22.8096 | I114: 3300 | J114: 0.006912
F115: 0 | H115: 32.076 | I115: 4950 | J115: 0.00648
B117: N/A | C117: TASKalfa/CopyStar 408ci (Color) | D117: Color Copies | F117: 0 | H117: 0 | I117: 0 | J117: 0.0399 | K117: 0.005056111111
A118: B4 | B118: 1102V52US0 | C118: TASKalfa/CopyStar 408ci | D118: 42/42 PPM A4 Color MFP | E118: 8136 | F118: =E118*(1-G118) -> 3630.695167 | G118: 0.5537493649 | H118: 0 | I118: 0 | J118: 0.006
B119: 1203PS7US0 | C119: PF-5120 | D119: (1) 500 SHEET PAPER TRAY included as per spec | F119: 0
F120: 0 | H120: 10.878 | I120: 1850 | J120: 0.00588
F121: 0 | H121: 21.312 | I121: 3700 | J121: 0.00576
F122: 0 | H122: 29.97 | I122: 5550 | J122: 0.0054
C124: 358ci / 408ci Accessories
B125: 1203R36US0 | C125: DP-5100 | D125: Reversing Automatic Document Processor (for 406/356ci) | E125: 1417 | F125: 708.48 | G125: 0.5000125
B126: 1203R46US1 | C126: DP-5110 | D126: Dual Scan Document Processor (for 406/356ci) | E126: 1800 | F126: 899.98 | G126: 0.5000125
B127: 1203SK6US0 | C127: DP-5120 | D127: Dual Scan Document Processor (for 358ci) | E127: 1800 | F127: 899.98 | G127: 0.5000125
B128: 1203T26US0 | C128: DP-5130 | D128: 270 Sheet DSDP for the 358ci | E128: 2847 | F128: 1423.5 | G128: 0.5000125
B129: 1203PX2US0 | C129: DF-5100 | D129: 300 Sheet Internal Finisher | E129: 977 | F129: 488.49 | G129: 0.5000125
B130: 1203PV2US0 | C130: DF-5110 | D130: 1,000 SHEET FINISHER FOR 406/356ci ( requires AK-5100) | E130: 1540 | F130: 769.98 | G130: 0.5000125
B131: 1203PW2US0 | C131: DF-5120 | D131: 3,200 SHEET FINISHER FOR 406/356ci ( requires AK-5100) | E131: 2500 | F131: 1249.97 | G131: 0.5000125
B132: 1703PY0UN0 | C132: AK-5100 | D132: ATTACH KIT FOR MT-5100/DF-5110/5120 | E132: 160 | F132: 80 | G132: 0.5000125
B133: 1203PS7US0 | C133: PF-5120 | D133: 500 Sheet Paper Tray | E133: 451 | F133: 225.49 | G133: 0.5000125
B134: 1203PZ7US0 | C134: PF-5130 | D134: 500 Sheet Paper Trau x 2 ( requires PF-5120 for Installation) | E134: 1287 | F134: 643.48 | G134: 0.5000125
B135: 1203PT7US0 | C135: PF-5140 | D135: 2000 Sheet Paper Tray ( requires PF-5120 for Installation) | E135: 1380 | F135: 689.98 | G135: 0.5000125
B136: 855D200715 | C136: Stand | D136: Copier Cabinet Stand | E136: 286 | F136: 143 | G136: 0.5000125
B137: 1203R12US0 | C137: PH-5100 | D137: PUNCH UNIT FOR DF-5110 | E137: 670 | F137: 334.99 | G137: 0.5000125
B138: 1203R00US0 | C138: MT-5100 | D138: 5 BIN MAILBOX [Requires AK-5100 for Installation] | E138: 1000 | F138: 499.99 | G138: 0.5000125
B139: 1203R50UN0 | C139: JS-5100 | D139: Job Seperator | E139: 205 | F139: 102.5 | G139: 0.5000125
B140: 1902R60UN1 | C140: DT-5100 | D140: Original Hard Copy Holder | E140: 45 | F140: 22.5 | G140: 0.5000125
B141: 1503R22US1 | C141: Fax System 10 (X) | D141: Fax Kit for 508ci/408ci/358ci | E141: 1155 | F141: 577.49 | G141: 0.5000125
B142: 1603MC0UN0 | C142: Internet FAX Kit (A) | D142: Internet Fax Kit [requires Fax System 10 for 406/356ci ] | E142: 300 | F142: 150 | G142: 0.5000125
B143: 1503MB0UN0 | C143: MM-16-128 | D143: 128MB Fax Memory Board | E143: 200 | F143: 100 | G143: 0.5000125
B144: 1702R60UN1 | C144: Card Reader Holder 11 | D144: Card Reader Holder | E144: 64 | F144: 41.6 | G144: 0.35003635
B145: 1505JV0UN0 | C145: IB-50 | D145: Gigabit EtherNet Board for Dual NIC | E145: 349 | F145: 226.84 | G145: 0.35003635
B146: 1505J50UN0 | C146: IB-51 | D146: Wireless LAN NIC (Does not work with Netgard) | E146: 471 | F146: 306.13 | G146: 0.35003635
B147: 1603NT0UN0 | C147: UG-33 | D147: Upgrade Kit for Thin Print Support | E147: 140 | F147: 90.99 | G147: 0.35003635
B148: 1603NX0UN0 | C148: UG-34 | D148: Optional Printer Emulation | E148: 560 | F148: 363.98 | G148: 0.35003635
B149: 1603P10UN0 | C149: Scan Extension Kit(A) | D149: Serchable PDF Kit | E149: 600 | F149: 389.98 | G149: 0.35003635
B150: 855D200890 | C150: Surge Protector-MX (15A) | D150: 15 Amp Surge Protector | E150: 150 | F150: 97.49 | G150: 0.35003635
B152: N/A | C152: ECOSYS M6630cidn (Color) | D152: Color Copies | F152: 0 | H152: 0 | I152: 0 | J152: 0.0742 | K152: 0.006998611111
A153: B3 | B153: 1102TZ2US1 | C153: ECOSYS M6630cidn | D153: 32 ppm A4 Color MFP 4 in 1 model (Copy, Print, Fax, Color Scan) | E153: 3999 | F153: 1863.71 | G153: 0.5339558824 | H153: 0 | I153: 0 | J153: 0.015
F154: 0 | H154: 18.375 | I154: 1250 | J154: 0.0147
F155: 0 | H155: 36 | I155: 2500 | J155: 0.0144
F156: 0 | H156: 50.625 | I156: 3750 | J156: 0.0135
B158: N/A | C158: ECOSYS M6235cidn (Color) | D158: Color Copies | F158: 0 | H158: 0 | I158: 0 | J158: 0.0738 | K158: 0.009641880342
A159: B3 | B159: 1102V02US1 | C159: ECOSYS M6235cidn | D159: 37 ppm A4 Color MFP 3 in 1 model (Copy, Print, Color Scan) | E159: 4209 | F159: 1961.58 | G159: 0.5339558824 | H159: 0 | I159: 0 | J159: 0.015
B160: 1203PK0KL1 | C160: PF-5100 | D160: (1) 500 Sheet Paper Drawer, Multi Purpose Paper Feeder included as per spec | F160: 0 | H160: 29.4 | I160: 2000 | J160: 0.0147
F161: 0 | H161: 57.6 | I161: 4000 | J161: 0.0144
F162: 0 | H162: 81 | I162: 6000 | J162: 0.0135
B164: N/A | C164: ECOSYS M6635cidn (Color) | D164: Color Copies | F164: 0 | H164: 0 | I164: 0 | J164: 0.07 | K164: 0.009645299145
A165: B3 | B165: 1102V12US1 | C165: ECOSYS M6635cidn | D165: 37 ppm A4 Color MFP 4 in 1 model (Copy, Print, Fax, Color Scan) | E165: 4799 | F165: 2236.55 | G165: 0.5339558824 | H165: 0 | I165: 0 | J165: 0.013
B166: 1203PK0KL1 | C166: PF-5100 | D166: (1) 500 Sheet Paper Drawer, Multi Purpose Paper Feeder included as per spec | F166: 0 | H166: 25.48 | I166: 2000 | J166: 0.01274
F167: 0 | H167: 49.92 | I167: 4000 | J167: 0.01248
F168: 0 | H168: 70.2 | I168: 6000 | J168: 0.0117
C169: M6630/6235/6635 Accessories
B170: 1203PK0KL1 | C170: PF-5100 | D170: 500 Sheet Paper Drawer, Multi Purpose Paper Feeder | E170: 399 | F170: 199.5 | G170: 0.5000125
B171: 855D200713 | C171: Copier Stand | D171: Stand | E171: 259 | F171: 129.5 | G171: 0.5000125
B172: 1903R90UN0 | C172: MS-5100 | D172: Manual Stapler | E172: 264 | F172: 132 | G172: 0.5000125
B173: 1702P60UN1 | C173: Card Reader Holder 10 | D173: Card Reader Attachment (refer to Card Authentication price schedule) | E173: 49 | F173: 31.85 | G173: 0.35003635
B174: 1505J40UN0 | C174: HD-6 | D174: SSD Memory Device (32 GB) | E174: 336 | F174: 218.39 | G174: 0.35003635
B175: 1505J80UN0 | C175: HD-7 | D175: SSD Memory Device (128 GB) | E175: 480 | F175: 311.98 | G175: 0.35003635
B176: 1603MS0UN0 | C176: Data Security (E) | D176: Data Security (Common Criteria/NIAP certified HARD DRIVE ENCRYPTION/OVERWRITE KIT) | E176: 580 | F176: 376.98 | G176: 0.35003635
B177: 855D200662 | C177: SD-144-1GB(DDR3) | D177: Printer Memory (1GB) | E177: 159 | F177: 103.34 | G177: 0.35003635
B178: 855D200714 | C178: SD-144-2GB(DDR3) | D178: Printer DIMM Memory (2GB) | E178: 219.99 | F178: 142.99 | G178: 0.35003635
B179: 855D200647 | C179: SDHC Card-16G | D179: SD Card Memory for Storage, 16Gb | E179: 35 | F179: 22.75 | G179: 0.35003635
B180: 855D200648 | C180: SDHC Card-32G | D180: SD Card Memory for Storage, 32Gb | E180: 87.5 | F180: 56.87 | G180: 0.35003635
B181: 1603NT0UN0 | C181: UG-33 | D181: Upgrade Kit for Thin Print Support | E181: 140 | F181: 90.99 | G181: 0.35003635
B182: 1505JV0UN0 | C182: IB-50 | D182: Gigabit EtherNet Board for Dual NIC | E182: 349 | F182: 226.84 | G182: 0.35003635
B183: 1505J50UN0 | C183: IB-51 | D183: Wireless LAN NIC (Does not work with Netgard) | E183: 471 | F183: 306.13 | G183: 0.35003635
B184: 1503S50UN0 | C184: IB-36 | D184: Wireless LAN NIC (Approx. 98 ft Range & Wi-Fi Direct) | E184: 99 | F184: 64.35 | G184: 0.35003635
B185: 1603P10UN0 | C185: Scan Extension Kit(A) | D185: Serchable PDF Kit | E185: 600 | F185: 389.98 | G185: 0.35003635
B186: 855D200890 | C186: Surge Protector-MX (15A) | D186: 15 Amp Surge Protector | E186: 150 | F186: 97.49 | G186: 0.35003635
B188: N/A | C188: ECOSYS M5521cdw (Color) | D188: Color Copies | F188: 0 | H188: 0 | I188: 0 | J188: 0.19 | K188: 0.006611111111
A189: B2 | B189: 1102R92US0 | C189: ECOSYS M5521cdw (B&W) | D189: 22/22 ppm A4 Color MFP With STD Wireless capability4 in 1 model (Copy, Print, FAX, Scan) | E189: 1365 | F189: 411.55 | G189: 0.6985 | H189: 0 | I189: 0 | J189: 0.0397
F190: 0 | H190: 40.8513 | I190: 1050 | J190: 0.038906
F191: 0 | H191: 80.0352 | I191: 2100 | J191: 0.038112
F192: 0 | H192: 112.5495 | I192: 3150 | J192: 0.03573
B194: N/A | C194: ECOSYS M5526cdw (Color) | D194: Color Copies | F194: 0 | H194: 0 | I194: 0 | J194: 0.13 | K194: 0.01104166667
A195: B2 | B195: 1102R72US0 | C195: ECOSYS M5526cdw (B&W) | D195: 27/27 ppm A4 Color MFP With STD Wireless capability4 in 1 model (Copy, Print, FAX, Scan) | E195: 1909 | F195: 575.56 | G195: 0.6985 | H195: 0 | I195: 0 | J195: 0.024
F196: 0 | H196: 24.696 | I196: 1050 | J196: 0.02352
F197: 0 | H197: 72.576 | I197: 3150 | J197: 0.02304
F198: 0 | H198: 68.04 | I198: 3150 | J198: 0.0216
C199: M5521 / 5525 Accessories | D199: Accessories
B200: 1203R60UN0 | C200: PF-5110 | D200: 250 Sheet Paper Drawer (Max 1 unit) | E200: 130 | F200: 65 | G200: 0.5000125
B201: 855D200647 | C201: SDHC Card-16G | D201: SD Card Memory for Storage, 16Gb | E201: 35 | F201: 22.75 | G201: 0.35003635
B202: 855D200648 | C202: SDHC Card-32G | D202: SD Card Memory for Storage, 32Gb | E202: 87.5 | F202: 56.87 | G202: 0.35003635
B203: 855D200753 | C203: SD-512MB-For-M55-Series | D203: Printer DIMM Memory (512MB) | E203: 121 | F203: 78.65 | G203: 0.35003635
B204: 855D200754 | C204: SD-1GB-For-M55-Series | D204: Printer DIMM Memory (1GB) | E204: 159 | F204: 103.34 | G204: 0.35003635
B205: 1603NT0UN0 | C205: UG-33 | D205: Upgrade Kit for Thin Print Support | E205: 140 | F205: 90.99 | G205: 0.35003635
B206: 855D200890 | C206: Surge Protector-MX (15A) | D206: 15 Amp Surge Protector | E206: 150 | F206: 97.49 | G206: 0.35003635
A208: A2 | B208: 1102P22US0 | C208: ECOSYS M4125idn | D208: 25 PPM A3 Monochrome MFP NO FINISHER AVAILABLE | E208: 4723 | F208: 1329.05 | G208: 0.7186 | H208: 0 | I208: 0 | J208: 0.0095 | K208: 0.006235555556
F209: 0 | H209: 9.31 | I209: 1000 | J209: 0.00931
F210: 0 | H210: 18.24 | I210: 2000 | J210: 0.00912
F211: 0 | H211: 24.225 | I211: 3000 | J211: 0.008075
A213: A3 | B213: 1102P12US0 | C213: ECOSYS M4132idn | D213: 32 PPM A3 Monochrome MFP | E213: 5879 | F213: 1477.1 | G213: 0.74875 | H213: 0 | I213: 0 | J213: 0.0095 | K213: 0.006235555556
F214: 0 | H214: 15.3615 | I214: 1650 | J214: 0.00931
F215: 0 | H215: 30.096 | I215: 3300 | J215: 0.00912
F216: 0 | H216: 39.97125 | I216: 4950 | J216: 0.008075
B218: N/A | C218: ECOSYS M8124cidn (Color) | D218: Color Copies | F218: 0 | H218: 0 | I218: 0 | J218: 0.07 | K218: 0.006567592593
A219: A2 | B219: 1102P42US0 | C219: ECOSYS M8124cidn | D219: 24/24 PPM A3 Color MFP (ECOSYS M8130cidn/M8124cidn include Document Processor, Duplex unit, Print and Color Scan. HD or SDHC required in order to use HyPAS Applications) | E219: 7149 | F219: 2011.73 | G219: 0.7186 | H219: 0 | I219: 0 | J219: 0.0098
F220: 0 | H220: 6.4827 | I220: 675 | J220: 0.009604
F221: 0 | H221: 12.7008 | I221: 1350 | J221: 0.009408
... 328 more rows

Sheet SOFTWARE PRICE LIST
B1: KYOCERA Business Solutions America, Inc.
A2: PRODUCT PART NUMBER/SKU | B2: PRODUCT | C2: PRODUCT DESCRIPTION | D2: MSRP | E2: NASPO ValuePoint DISCOUNT% OFF MSRP | F2: NASPO ValuePoint CUSTOMER PRICE | G2: Current Software
B3: Software Note: Some software may require a Statement of Work in order to determine the type and number of user and device licenses and the professional services hours need to install the software.
A4: 855CS00017 | B4: Professional Services | C4: Installation Professional Services | D4: 150 | E4: 0 | F4: 150 | G4: =VLOOKUP(A4,[3]Software!$A$11:$G$109,7,FALSE) -> 
A5: 1HZ0000530 | B5: AccuSender Fax | C5: AccuSender Fax is a business application that enables users to send scanned documents as faxes directly from your KYOCERA MFP. Through integration with most popular fax servers on the market, users simply scan a hardcopy document or select one from stored archives, configure it as an attachment to an e-mail message, and use the recipient’s fax number as the e-mail address. The fax server translates the attachment, which is then processed as an incoming fax by the recipient’s fax machine. | D5: 199 | E5: 0 | F5: 199 | G5: =VLOOKUP(A5,[3]Software!$A$11:$G$109,7,FALSE) -> 
A6: 1HZ0000950 | B6: PinPoint Scan 3 | C6: With Kyocera’s PinPoint Scan application, scanning to your PC or MAC from your network connected MFPs becomes as easy as scanning from a desktop scanner but with the added speed, security and versatility Kyocera MFPs provide. With one easy-to-install application, your employees will have their own personalized scanning solution designed to fit their unique workflow needs. Personalized scanning destinations can be easily created and managed without the need for IT intervention. These destinations then become simple one-touch buttons on the MFP control panel. When employees want to scan a document, all they have to do is access the PinPoint Scan 3 application on the KYOCERA MFP, enter their pin code, select a destination, and they’re ready to go! | D6: 319 | E6: 0 | F6: 319 | G6: =VLOOKUP(A6,[3]Software!$A$11:$G$109,7,FALSE) -> 
A7: 855ST00254 | B7: Card Authentication Kit(B) TWN4 MultiTech-P DT-U45-b | C7: Card Authentication Kit(B) with TWN4 MultiTech-P DT-U45-b, Handles over 60 different technologies including the HID i-Class card's UID. Includes NFC(Near field communications). | D7: 300 | E7: 0 | F7: 300 | G7: =VLOOKUP(A7,[3]Software!$A$11:$G$109,7,FALSE) -> 
A8: 855ST00255 | B8: Card Authentication Kit(B) TWN4 MultiTech-PI DT-U45-b | C8: Card Authentication Kit(B) with TWN4 MultiTech- PI DT-U45-b, Includes all that the TWN4-P reader does, but has the added ability to read the PAC(Physical Access Code) of a HID i-Class card. | D8: 343 | E8: 0 | F8: 343 | G8: =VLOOKUP(A8,[3]Software!$A$11:$G$109,7,FALSE) -> 
A9: 855ST00257 | B9: Card Authentication Kit(B) TWN4 MultiTech LEGIC 42 DT-U20-b | C9: Card Authentication Kit (B) with TWN4 MultiTech LEGIC 42 DT-U20-b, Supports (Legic only) 40 card types- can be configured. | D9: 304 | E9: 0 | F9: 304 | G9: =VLOOKUP(A9,[3]Software!$A$11:$G$109,7,FALSE) -> 
A10: 855ST00258 | B10: Card Authentication Kit(B) TWN4 MultiTech LEGIC 42-P DT-U20-b | C10: Card Authentication Kit (B) with TWN4 MultiTech LEGIC 42-P DT-U20-b, Includes all that the TWN4 LEGIC 42 does, but has 10 additional technologies. | D10: 350 | E10: 0 | F10: 350 | G10: =VLOOKUP(A10,[3]Software!$A$11:$G$109,7,FALSE) -> 
A11: 855D300903 | B11: TCPCov 2 Kit US (Net2USB V2) | C11: Allows for card based authentication, and print release on legacy MFP's and printers that do not support USB card readers. They may be single function printers, and have no way of authenticating or no USB ports | D11: 207 | E11: 0 | F11: 207 | G11: =VLOOKUP(A11,[3]Software!$A$11:$G$109,7,FALSE) -> 
A12: 1HZ0000640 | B12: Google Connector | C12: Kyocera’s Google Connector is a business application that enables end users to access their Gmail and Google Calendars. Users have the ability to view and print their e-mails as well as print and send attachments. Kyocera’s Google Connector also enables a user to print out monthly calendars including events. | D12: 100 | E12: 0 | F12: 100 | G12: =VLOOKUP(A12,[3]Software!$A$11:$G$109,7,FALSE) -> 
A13: 1HZ0000660 | B13: DMConnect | C13: DMConnect DMConnect is a cost effective document capture and distribution application that streamlines processes throughout the document life cycle. | D13: 776 | E13: 0 | F13: 776 | G13: =VLOOKUP(A13,[3]Software!$A$11:$G$109,7,FALSE) -> 
A14: 1HZ0000670 | B14: DMConnect powered by OmniPage OCR | C14: DMConnect includes Nuance OmniPage OCR software DMConnect is a cost effective document capture and distribution application that streamlines processes throughout the document life cycle. | D14: 1219 | E14: 0 | F14: 1219 | G14: =VLOOKUP(A14,[3]Software!$A$11:$G$109,7,FALSE) -> 
A15: 855D300226 | B15: CentraQ Single License | C15: CentraQ allows users to send a file to a designated print queue then access and print that job from any supported Kyocera device in the network—right from it’s touchscreen (Single License) | D15: 277 | E15: 0 | F15: 277
A16: 855D300227 | B16: CentraQ 4-Pack License | C16: CentraQ allows users to send a file to a designated print queue then access and print that job from any supported Kyocera device in the network—right from it’s touchscreen. (4-Pack License). | D16: 1105 | E16: 0 | F16: 1105
A17: 855D300228 | B17: CentraQ 10-Pack License | C17: CentraQ allows users to send a file to a designated print queue then access and print that job from any supported Kyocera device in the network—right from it’s touchscreen. (10-Pack License). | D17: 2722 | E17: 0 | F17: 2722
A18: 855D300229 | B18: CentraQ Pro Single License | C18: CentraQ Pro contains all features of CentraQ plus tracking and reporting the output of all KYOCERA MFPs and Printers that are integrated with the application. (Single License). | D18: 362 | E18: 0 | F18: 362
A19: 855D300230 | B19: CentraQ Pro 4-Pack License | C19: CentraQ Pro contains all features of CentraQ plus tracking and reporting the output of all KYOCERA MFPs and Printers that are integrated with the application. (4-Pack License). | D19: 1451 | E19: 0 | F19: 1451
A20: 855D300231 | B20: CentraQ Pro 10-Pack License | C20: CentraQ Pro contains all features of CentraQ plus tracking and reporting the output of all KYOCERA MFPs and Printers that are integrated with the application. (10-Pack License). | D20: 3626 | E20: 0 | F20: 3626
A21: 855D300232 | B21: CentraQ Pro 40-Pack License | C21: CentraQ Pro contains all features of CentraQ plus tracking and reporting the output of all KYOCERA MFPs and Printers that are integrated with the application. (40-Pack License). | D21: 14506 | E21: 0 | F21: 14506
A22: 855D200614 | B22: Teaching Assistant | C22: Business application fopr automated printing and grading of bubble sheet tests | D22: 899 | E22: 0 | F22: 899 | G22: =VLOOKUP(A22,[3]Software!$A$11:$G$109,7,FALSE) -> 
A23: 1503RM0KL0 | B23: Printing System 15**** | C23: EFI Fiery Controller for the 3253ci/ | D23: 6220 | E23: 0 | F23: 6220
A24: 1503RY0KL0 | B24: Printing System Interface Kit 15 | C24: Interface Kit for Printing System 15 + 16+17 (Includes Mounting Kit and Circuit Board) | D24: 750 | E24: 0 | F24: 750
A25: 1503RX0KL0 | B25: Printing System 16**** | C25: EFI Fiery Controller for the 7052/8052ci | D25: 9890 | E25: 0 | F25: 9890
A26: 855D200735 | B26: 1 Year EFI Color Profiller Kit Support | C26: CPS SUPPORT AND MAINTENANCE CONTRACT | D26: 400 | E26: 0 | F26: 400
A27: 855D200739 | B27: EFI Hot Folder & Virtual Printer (For printing System (16) ) | C27: EFI Hot Folder & Virtual Printer | D27: 995 | E27: 0 | F27: 995
A28: 855D200741 | B28: Automate job processes to achieve maximum productivity & the right color | C28: EFI Prpductivity package | D28: 5300 | E28: 0 | F28: 5300
A29: 855D200743 | B29: EFI Seequence Suite [Impose+Compose] (For printing System (16) ) | C29: EFI Seequence Suite [Impose+Compose] | D29: 3000 | E29: 0 | F29: 3000
A30: 1609AK0UN3 | B30: KNMP 1 device Server license | C30: Server license for 1 device | D30: 112 | E30: 0 | F30: 112 | G30: =VLOOKUP(A30,[3]Software!$A$11:$G$109,7,FALSE) -> 
A31: 1609AK0UN8 | B31: KNMP 1 device SW MNT | C31: Server license Maintenance for 1 device | D31: 22 | E31: 0 | F31: 22 | G31: =VLOOKUP(A31,[3]Software!$A$11:$G$109,7,FALSE) -> 
A32: 1609AK0UNE | B32: KNMP E-Terminal Lite 1 pc license | C32: Device license | D32: 216 | E32: 0 | F32: 216 | G32: =VLOOKUP(A32,[3]Software!$A$11:$G$109,7,FALSE) -> 
A33: 1609AK0UNH | B33: KNMP E-Terminal 1 pc license | C33: Device license for 1 HyPAS device | D33: 424 | E33: 0 | F33: 424 | G33: =VLOOKUP(A33,[3]Software!$A$11:$G$109,7,FALSE) -> 
A34: 1609AK0UNN | B34: KNMP E-Terminal/Lite 1 pc SW MNT | C34: Device license Maintenance for 1 device | D34: 47 | E34: 0 | F34: 47 | G34: =VLOOKUP(A34,[3]Software!$A$11:$G$109,7,FALSE) -> 
A35: 855D300923 | B35: Enterprise Edition | C35: MyQ Enterprise License (1-9 pcs) | D35: 380 | E35: 0 | F35: =D35 -> 380 | G35: =VLOOKUP(A35,[3]Software!$A$11:$G$109,7,FALSE) -> 
A36: 855D300924 | B36: Enterprise Edition | C36: MyQ Enterprise License (10-39 pcs) | D36: 345 | E36: 0 | F36: =D36 -> 345 | G36: =VLOOKUP(A36,[3]Software!$A$11:$G$109,7,FALSE) -> 
A37: 855D300925 | B37: Enterprise Edition | C37: MyQ Enterprise License (40-99 pcs) | D37: 288 | E37: 0 | F37: 288 | G37: =VLOOKUP(A37,[3]Software!$A$11:$G$109,7,FALSE) -> 
A38: 855D300926 | B38: Enterprise Edition | C38: MyQ Enterprise License (100+ pcs) | D38: 230 | E38: 0 | F38: 230 | G38: =VLOOKUP(A38,[3]Software!$A$11:$G$109,7,FALSE) -> 
A39: 855D300939 | B39: Ultimate Edition | C39: MyQ Ultimate License (1-9 pcs) | D39: 760 | E39: 0 | F39: 760 | G39: =VLOOKUP(A39,[3]Software!$A$11:$G$109,7,FALSE) -> 
A40: 855D300940 | B40: Ultimate Edition | C40: MyQ Ultimate License (10-39 pcs) | D40: 690 | E40: 0 | F40: 690 | G40: =VLOOKUP(A40,[3]Software!$A$11:$G$109,7,FALSE) -> 
A41: 855D300941 | B41: Ultimate Edition | C41: MyQ Ultimate License (40-99 pcs) | D41: 576 | E41: 0 | F41: 576 | G41: =VLOOKUP(A41,[3]Software!$A$11:$G$109,7,FALSE) -> 
A42: 855D300942 | B42: Ultimate Edition | C42: MyQ Ultimate License (100+ pcs) | D42: 460 | E42: 0 | F42: 460 | G42: =VLOOKUP(A42,[3]Software!$A$11:$G$109,7,FALSE) -> 
A43: 855D301406 | B43: Ultimate Extra | C43: Hotfolder, FTP, & Email Capture License | D43: 1840 | E43: 0 | F43: 1840 | G43: =VLOOKUP(A43,[3]Software!$A$11:$G$109,7,FALSE) -> 
A44: 855D301413 | B44: Ultimate Extra | C44: Additional Document Processor License | D44: 368 | E44: 0 | F44: 368 | G44: =VLOOKUP(A44,[3]Software!$A$11:$G$109,7,FALSE) -> 
A45: 855D300927 | B45: Enterprise Edition SA | C45: Enterprise Assurance 1Y (1-9 pcs) | D45: 76 | E45: 0 | F45: 76 | G45: =VLOOKUP(A45,[3]Software!$A$11:$G$109,7,FALSE) -> 
A46: 855D300928 | B46: Enterprise Edition SA | C46: Enterprise Assurance 1Y (10-39 pcs) | D46: 69 | E46: 0 | F46: 69 | G46: =VLOOKUP(A46,[3]Software!$A$11:$G$109,7,FALSE) -> 
A47: 855D300929 | B47: Enterprise Edition SA | C47: Enterprise Assurance 1Y (40-99 pcs) | D47: 58 | E47: 0 | F47: 58 | G47: =VLOOKUP(A47,[3]Software!$A$11:$G$109,7,FALSE) -> 
A48: 855D300930 | B48: Enterprise Edition SA | C48: Enterprise Assurance 1Y (100+ pcs) | D48: 46 | E48: 0 | F48: 46 | G48: =VLOOKUP(A48,[3]Software!$A$11:$G$109,7,FALSE) -> 
A49: 855D301390 | B49: Enterprise Edition SA | C49: Enterprise Assurance 2Y (1-9 pcs) | D49: 152 | E49: 0 | F49: 152 | G49: =VLOOKUP(A49,[3]Software!$A$11:$G$109,7,FALSE) -> 
A50: 855D301391 | B50: Enterprise Edition SA | C50: Enterprise Assurance 2Y (10-39 pcs) | D50: 138 | E50: 0 | F50: 138 | G50: =VLOOKUP(A50,[3]Software!$A$11:$G$109,7,FALSE) -> 
A51: 855D301392 | B51: Enterprise Edition SA | C51: Enterprise Assurance 2Y (40-99 pcs) | D51: 115.2 | E51: 0 | F51: 115.2 | G51: =VLOOKUP(A51,[3]Software!$A$11:$G$109,7,FALSE) -> 
A52: 855D301393 | B52: Enterprise Edition SA | C52: Enterprise Assurance 2Y (100+ pcs) | D52: 92 | E52: 0 | F52: 92 | G52: =VLOOKUP(A52,[3]Software!$A$11:$G$109,7,FALSE) -> 
A53: 855D300931 | B53: Enterprise Edition SA | C53: Enterprise Assurance 3Y (1-9 pcs) | D53: 172 | E53: 0 | F53: 172 | G53: =VLOOKUP(A53,[3]Software!$A$11:$G$109,7,FALSE) -> 
A54: 855D300932 | B54: Enterprise Edition SA | C54: Enterprise Assurance 3Y (10-39 pcs) | D54: 156 | E54: 0 | F54: 156 | G54: =VLOOKUP(A54,[3]Software!$A$11:$G$109,7,FALSE) -> 
A55: 855D300933 | B55: Enterprise Edition SA | C55: Enterprise Assurance 3Y (40-99 pcs) | D55: 130 | E55: 0 | F55: 130 | G55: =VLOOKUP(A55,[3]Software!$A$11:$G$109,7,FALSE) -> 
A56: 855D300934 | B56: Enterprise Edition SA | C56: Enterprise Assurance 3Y (100+ pcs) | D56: 104 | E56: 0 | F56: 104 | G56: =VLOOKUP(A56,[3]Software!$A$11:$G$109,7,FALSE) -> 
A57: 855D301394 | B57: Enterprise Edition SA | C57: Enterprise Assurance 4Y (1-9 pcs) | D57: 228 | E57: 0 | F57: 228 | G57: =VLOOKUP(A57,[3]Software!$A$11:$G$109,7,FALSE) -> 
A58: 855D301395 | B58: Enterprise Edition SA | C58: Enterprise Assurance 4Y (10-39 pcs) | D58: 207 | E58: 0 | F58: 207 | G58: =VLOOKUP(A58,[3]Software!$A$11:$G$109,7,FALSE) -> 
A59: 855D301396 | B59: Enterprise Edition SA | C59: Enterprise Assurance 4Y (40-99 pcs) | D59: 172.8 | E59: 0 | F59: 172.8 | G59: =VLOOKUP(A59,[3]Software!$A$11:$G$109,7,FALSE) -> 
A60: 855D301397 | B60: Enterprise Edition SA | C60: Enterprise Assurance 4Y (100+ pcs) | D60: 138 | E60: 0 | F60: 138 | G60: =VLOOKUP(A60,[3]Software!$A$11:$G$109,7,FALSE) -> 
A61: 855D300935 | B61: Enterprise Edition SA | C61: Enterprise Assurance 5Y (1-9 pcs) | D61: 286 | E61: 0 | F61: 286 | G61: =VLOOKUP(A61,[3]Software!$A$11:$G$109,7,FALSE) -> 
A62: 855D300936 | B62: Enterprise Edition SA | C62: Enterprise Assurance 5Y (10-39 pcs) | D62: 259 | E62: 0 | F62: 259 | G62: =VLOOKUP(A62,[3]Software!$A$11:$G$109,7,FALSE) -> 
A63: 855D300937 | B63: Enterprise Edition SA | C63: Enterprise Assurance 5Y (40-99 pcs) | D63: 217 | E63: 0 | F63: 217 | G63: =VLOOKUP(A63,[3]Software!$A$11:$G$109,7,FALSE) -> 
A64: 855D300938 | B64: Enterprise Edition SA | C64: Enterprise Assurance 5Y (100+ pcs) | D64: 173 | E64: 0 | F64: 173 | G64: =VLOOKUP(A64,[3]Software!$A$11:$G$109,7,FALSE) -> 
A65: 855D300943 | B65: Ultimate Edition SA | C65: Ultimate Assurance 1Y (1-9 pcs) | D65: 152 | E65: 0 | F65: 152 | G65: =VLOOKUP(A65,[3]Software!$A$11:$G$109,7,FALSE) -> 
A66: 855D300944 | B66: Ultimate Edition SA | C66: Ultimate Assurance 1Y (10-39 pcs) | D66: 138 | E66: 0 | F66: 138 | G66: =VLOOKUP(A66,[3]Software!$A$11:$G$109,7,FALSE) -> 
A67: 855D300945 | B67: Ultimate Edition SA | C67: Ultimate Assurance 1Y (40-99 pcs) | D67: 116 | E67: 0 | F67: 116 | G67: =VLOOKUP(A67,[3]Software!$A$11:$G$109,7,FALSE) -> 
A68: 855D300946 | B68: Ultimate Edition SA | C68: Ultimate Assurance 1Y (100+ pcs) | D68: 92 | E68: 0 | F68: 92 | G68: =VLOOKUP(A68,[3]Software!$A$11:$G$109,7,FALSE) -> 
A69: 855D301398 | B69: Ultimate Edition SA | C69: Ultimate Assurance 2Y (1-9 pcs) | D69: 304 | E69: 0 | F69: 304 | G69: =VLOOKUP(A69,[3]Software!$A$11:$G$109,7,FALSE) -> 
A70: 855D301399 | B70: Ultimate Edition SA | C70: Ultimate Assurance 2Y (10-39 pcs) | D70: 276 | E70: 0 | F70: 276 | G70: =VLOOKUP(A70,[3]Software!$A$11:$G$109,7,FALSE) -> 
A71: 855D301400 | B71: Ultimate Edition SA | C71: Ultimate Assurance 2Y (40-99 pcs) | D71: 232 | E71: 0 | F71: 232 | G71: =VLOOKUP(A71,[3]Software!$A$11:$G$109,7,FALSE) -> 
A72: 855D301401 | B72: Ultimate Edition SA | C72: Ultimate Assurance 2Y (100+ pcs) | D72: 184 | E72: 0 | F72: 184 | G72: =VLOOKUP(A72,[3]Software!$A$11:$G$109,7,FALSE) -> 
A73: 855D300947 | B73: Ultimate Edition SA | C73: Ultimate Assurance 3Y (1-9 pcs) | D73: 344 | E73: 0 | F73: 344 | G73: =VLOOKUP(A73,[3]Software!$A$11:$G$109,7,FALSE) -> 
A74: 855D300948 | B74: Ultimate Edition SA | C74: Ultimate Assurance 3Y (10-39 pcs) | D74: 312 | E74: 0 | F74: 312 | G74: =VLOOKUP(A74,[3]Software!$A$11:$G$109,7,FALSE) -> 
A75: 855D300949 | B75: Ultimate Edition SA | C75: Ultimate Assurance 3Y (40-99 pcs) | D75: 260 | E75: 0 | F75: 260 | G75: =VLOOKUP(A75,[3]Software!$A$11:$G$109,7,FALSE) -> 
A76: 855D300950 | B76: Ultimate Edition SA | C76: Ultimate Assurance 3Y (100+ pcs) | D76: 208 | E76: 0 | F76: 208 | G76: =VLOOKUP(A76,[3]Software!$A$11:$G$109,7,FALSE) -> 
A77: 855D301402 | B77: Ultimate Edition SA | C77: Ultimate Assurance 4Y (1-9 pcs) | D77: 457.6 | E77: 0 | F77: 457.6 | G77: =VLOOKUP(A77,[3]Software!$A$11:$G$109,7,FALSE) -> 
A78: 855D301403 | B78: Ultimate Edition SA | C78: Ultimate Assurance 4Y (10-39 pcs) | D78: 414.4 | E78: 0 | F78: 414.4 | G78: =VLOOKUP(A78,[3]Software!$A$11:$G$109,7,FALSE) -> 
A79: 855D301404 | B79: Ultimate Edition SA | C79: Ultimate Assurance 4Y (40-99 pcs) | D79: 347.2 | E79: 0 | F79: 347.2 | G79: =VLOOKUP(A79,[3]Software!$A$11:$G$109,7,FALSE) -> 
A80: 855D301405 | B80: Ultimate Edition SA | C80: Ultimate Assurance 4Y (100+ pcs) | D80: 276.8 | E80: 0 | F80: 276.8 | G80: =VLOOKUP(A80,[3]Software!$A$11:$G$109,7,FALSE) -> 
A81: 855D300951 | B81: Ultimate Edition SA | C81: Ultimate Assurance 5Y (1-9 pcs) | D81: 572 | E81: 0 | F81: 572 | G81: =VLOOKUP(A81,[3]Software!$A$11:$G$109,7,FALSE) -> 
A82: 855D300952 | B82: Ultimate Edition SA | C82: Ultimate Assurance 5Y (10-39 pcs) | D82: 518 | E82: 0 | F82: 518 | G82: =VLOOKUP(A82,[3]Software!$A$11:$G$109,7,FALSE) -> 
A83: 855D300953 | B83: Ultimate Edition SA | C83: Ultimate Assurance 5Y (40-99 pcs) | D83: 434 | E83: 0 | F83: 434 | G83: =VLOOKUP(A83,[3]Software!$A$11:$G$109,7,FALSE) -> 
A84: 855D300954 | B84: Ultimate Edition SA | C84: Ultimate Assurance 5Y (100+ pcs) | D84: 346 | E84: 0 | F84: 346 | G84: =VLOOKUP(A84,[3]Software!$A$11:$G$109,7,FALSE) -> 
A85: 855D301407 | B85: Ultimate Extra SA | C85: Hotfolder, FTP, & Email Capture Assurance 1M | D85: 30.67 | E85: 0 | F85: 30.67 | G85: =VLOOKUP(A85,[3]Software!$A$11:$G$109,7,FALSE) -> 
A86: 855D301408 | B86: Ultimate Extra SA | C86: Hotfolder, FTP, & Email Capture Assurance 1Y | D86: 368 | E86: 0 | F86: 368 | G86: =VLOOKUP(A86,[3]Software!$A$11:$G$109,7,FALSE) -> 
A87: 855D301409 | B87: Ultimate Extra SA | C87: Hotfolder, FTP, & Email Capture Assurance 2Y | D87: 736 | E87: 0 | F87: 736 | G87: =VLOOKUP(A87,[3]Software!$A$11:$G$109,7,FALSE) -> 
A88: 855D301410 | B88: Ultimate Extra SA | C88: Hotfolder, FTP, & Email Capture Assurance 3Y | D88: 828 | E88: 0 | F88: 828 | G88: =VLOOKUP(A88,[3]Software!$A$11:$G$109,7,FALSE) -> 
A89: 855D301411 | B89: Ultimate Extra SA | C89: Hotfolder, FTP, & Email Capture Assurance 4Y | D89: 1104 | E89: 0 | F89: 1104 | G89: =VLOOKUP(A89,[3]Software!$A$11:$G$109,7,FALSE) -> 
A90: 855D301412 | B90: Ultimate Extra SA | C90: Hotfolder, FTP, & Email Capture Assurance 5Y | D90: 1380 | E90: 0 | F90: 1380 | G90: =VLOOKUP(A90,[3]Software!$A$11:$G$109,7,FALSE) -> 
A91: 855D301414 | B91: Ultimate Extra SA | C91: Additional Document Processor Assurance 1M | D91: 6.13 | E91: 0 | F91: 6.13 | G91: =VLOOKUP(A91,[3]Software!$A$11:$G$109,7,FALSE) -> 
A92: 855D301415 | B92: Ultimate Extra SA | C92: Additional Document Processor Assurance 1Y | D92: 73.6 | E92: 0 | F92: 73.6 | G92: =VLOOKUP(A92,[3]Software!$A$11:$G$109,7,FALSE) -> 
A93: 855D301416 | B93: Ultimate Extra SA | C93: Additional Document Processor Assurance 2Y | D93: 147.2 | E93: 0 | F93: 147.2 | G93: =VLOOKUP(A93,[3]Software!$A$11:$G$109,7,FALSE) -> 
A94: 855D301417 | B94: Ultimate Extra SA | C94: Additional Document Processor Assurance 3Y | D94: 165.6 | E94: 0 | F94: 165.6 | G94: =VLOOKUP(A94,[3]Software!$A$11:$G$109,7,FALSE) -> 
A95: 855D301418 | B95: Ultimate Extra SA | C95: Additional Document Processor Assurance 4Y | D95: 220.8 | E95: 0 | F95: 220.8 | G95: =VLOOKUP(A95,[3]Software!$A$11:$G$109,7,FALSE) -> 
A96: 855D301419 | B96: Ultimate Extra SA | C96: Additional Document Processor Assurance 5Y | D96: 276 | E96: 0 | F96: 276 | G96: =VLOOKUP(A96,[3]Software!$A$11:$G$109,7,FALSE) -> 
A97: 855D300957 | B97: Extended License | C97: Job Archiving | D97: 920 | E97: 0 | F97: 920 | G97: =VLOOKUP(A97,[3]Software!$A$11:$G$109,7,FALSE) -> 
A98: 855D200644 | B98: Cloud Connect | C98: Single License - per device | D98: 0 | E98: 0 | F98: 0 | G98: =VLOOKUP(A98,[3]Software!$A$11:$G$109,7,FALSE) -> 
A99: 1HZ0001280 | B99: Microsoft Connector | C99: Single License - per device | D99: 250 | E99: 0 | F99: 250 | G99: =VLOOKUP(A99,[3]Software!$A$11:$G$109,7,FALSE) -> 
A100: 1HZ0001140 | B100: ShareBase Connector | C100: Single License - per device | D100: 250 | E100: 0 | F100: =D100 -> 250 | G100: =VLOOKUP(A100,[3]Software!$A$11:$G$109,7,FALSE) -> 
A101: 855D300196 | B101: OnBase Connector | C101: Single License - per device | D101: 250 | E101: 0 | F101: 250 | G101: =VLOOKUP(A101,[3]Software!$A$11:$G$109,7,FALSE) -> 
A102: 1HZ0000980 | B102: Square 9 Connector | C102: Single License - per device | D102: 250 | E102: 0 | F102: 250 | G102: =VLOOKUP(A102,[3]Software!$A$11:$G$109,7,FALSE) -> 
A103: 1HZ0000820 | B103: DocuWare Connector | C103: Single License - per device | D103: 250 | E103: 0 | F103: 250 | G103: =VLOOKUP(A103,[3]Software!$A$11:$G$109,7,FALSE) -> 
A104: 1HZ0001290 | B104: Microsoft Connector Pro | C104: Single License - adds OmniPage OCR | D104: 500 | E104: 0 | F104: 500 | G104: =VLOOKUP(A104,[3]Software!$A$11:$G$109,7,FALSE) -> 
A105: 1HZ0001260 | B105: RightFax Embedded | C105: Single License - per device | D105: 250 | E105: 0 | F105: 250 | G105: =VLOOKUP(A105,[3]Software!$A$11:$G$109,7,FALSE) -> 
A106: 1HZ0001190 | B106: XMediusFax Connector | C106: Single License - per device | D106: 250 | E106: 0 | F106: 250 | G106: =VLOOKUP(A106,[3]Software!$A$11:$G$109,7,FALSE) -> 
A107: 1HZ0000870 | B107: AccuSender Biscom | C107: Single License - per device | D107: 286 | E107: 0 | F107: 286 | G107: =VLOOKUP(A107,[3]Software!$A$11:$G$109,7,FALSE) -> 
A108: 1HZ0001240 | B108: AccuSender SendSecure | C108: Single License - per device | D108: 442 | E108: 0 | F108: 442 | G108: =VLOOKUP(A108,[3]Software!$A$11:$G$109,7,FALSE) -> 
A109: 1609AY0UNU | B109: KCM Lite Package | C109: Connects 1 MFP, 1 Email account, & 1 Folder | D109: 622 | E109: 0 | F109: 622 | G109: =VLOOKUP(A109,[3]Software!$A$11:$G$109,7,FALSE) -> 
A110: 1609AY0UNV | B110: KCM Lite Add-on Device | C110: Add 1 Kyocera MFP connection | D110: 415 | E110: 0 | F110: 415 | G110: =VLOOKUP(A110,[3]Software!$A$11:$G$109,7,FALSE) -> 
A111: 1609AY0UNW | B111: KCM Lite Add-on Email | C111: Add 1 Email account connection | D111: 208 | E111: 0 | F111: 208 | G111: =VLOOKUP(A111,[3]Software!$A$11:$G$109,7,FALSE) -> 
A112: 1609AY0UNX | B112: KCM Lite Add-on Folder | C112: Add 1 Hot Folder connection | D112: 208 | E112: 0 | F112: 208 | G112: =VLOOKUP(A112,[3]Software!$A$11:$G$109,7,FALSE) -> 
A113: 1609AY0UN7 | B113: M&S Package - 1Y | C113: 1Y M&S for KCM Lite Package | D113: 130 | E113: 0 | F113: 130 | G113: =VLOOKUP(A113,[3]Software!$A$11:$G$109,7,FALSE) -> 
A114: 1609AY0UNM | B114: M&S Add-on Device - 1Y | C114: 1Y M&S for KCM Lite Add-on Device | D114: 88 | E114: 0 | F114: 88 | G114: =VLOOKUP(A114,[3]Software!$A$11:$G$109,7,FALSE) -> 
A115: 1609AY0UNN | B115: M&S Add-on Email 1Y | C115: 1Y M&S for KCM Lite Add-on Email | D115: 45 | E115: 0 | F115: 45 | G115: =VLOOKUP(A115,[3]Software!$A$11:$G$109,7,FALSE) -> 
A116: 1609AY0UNP | B116: M&S Add-on Folder 1Y | C116: 1Y M&S for KCM Lite Add-on Folder | D116: 45 | E116: 0 | F116: 45 | G116: =VLOOKUP(A116,[3]Software!$A$11:$G$109,7,FALSE) -> 
A117: 1609AY0UNY | B117: M&S Package - 1M | C117: 1M M&S for KCM Lite Package | D117: 12 | E117: 0 | F117: 12 | G117: =VLOOKUP(A117,[3]Software!$A$11:$G$109,7,FALSE) -> 
A118: 1609AY0UNZ | B118: M&S Add-on Device - 1M | C118: 1M M&S for KCM Lite Add-on Device | D118: 9 | E118: 0 | F118: 9 | G118: =VLOOKUP(A118,[3]Software!$A$11:$G$109,7,FALSE) -> 
A119: 1609AY1UN0 | B119: M&S Add-on Email 1M | C119: 1M M&S for KCM Lite Add-on Email | D119: 5 | E119: 0 | F119: 5 | G119: =VLOOKUP(A119,[3]Software!$A$11:$G$109,7,FALSE) -> 
A120: 1609AY1UN1 | B120: M&S Add-on Folder 1M | C120: 1M M&S for KCM Lite Add-on Folder | D120: 5 | E120: 0 | F120: 5 | G120: =VLOOKUP(A120,[3]Software!$A$11:$G$109,7,FALSE) -> 
A121: 1609AY1UN2 | B121: KCM Pro MFP | C121: Connect 1 MFP | D121: 978 | E121: 0 | F121: 978 | G121: =VLOOKUP(A121,[3]Software!$A$11:$G$109,7,FALSE) -> 
A122: 1609AY1UN3 | B122: KCM Pro Email | C122: Connect 1 Email account | D122: 489 | E122: 0 | F122: 489 | G122: =VLOOKUP(A122,[3]Software!$A$11:$G$109,7,FALSE) -> 
A123: 1609AY1UN4 | B123: KCM Pro Folder | C123: Connect 1 Hot Folder | D123: 489 | E123: 0 | F123: 489 | G123: =VLOOKUP(A123,[3]Software!$A$11:$G$109,7,FALSE) -> 
A124: 1609AY1UN5 | B124: KCM Pro Web/Mobile | C124: Connect up to 20 users | D124: 489 | E124: 0 | F124: 489 | G124: =VLOOKUP(A124,[3]Software!$A$11:$G$109,7,FALSE) -> 
A125: 1609AY0UND | B125: M&S MFP - 1Y | C125: 1Y M&S for KCM Pro MFP | D125: 205 | E125: 0 | F125: 205 | G125: =VLOOKUP(A125,[3]Software!$A$11:$G$109,7,FALSE) -> 
A126: 1609AY0UNE | B126: M&S Email - 1Y | C126: 1Y M&S for KCM Pro Email | D126: 103 | E126: 0 | F126: 103 | G126: =VLOOKUP(A126,[3]Software!$A$11:$G$109,7,FALSE) -> 
A127: 1609AY0UNF | B127: M&S Folder - 1Y | C127: 1Y M&S for KCM Pro Folder | D127: 103 | E127: 0 | F127: 103 | G127: =VLOOKUP(A127,[3]Software!$A$11:$G$109,7,FALSE) -> 
A128: 1609AY0UNG | B128: M&S Web/Mobile - 1Y | C128: 1Y M&S for KCM Pro Web/Mobile | D128: 103 | E128: 0 | F128: 103 | G128: =VLOOKUP(A128,[3]Software!$A$11:$G$109,7,FALSE) -> 
A129: 1609AY1UN6 | B129: M&S MFP - 1M | C129: 1M M&S for KCM Pro MFP | D129: 18 | E129: 0 | F129: 18 | G129: =VLOOKUP(A129,[3]Software!$A$11:$G$109,7,FALSE) -> 
A130: 1609AY1UN7 | B130: M&S Email - 1M | C130: 1M M&S for KCM Pro Email | D130: 9 | E130: 0 | F130: 9 | G130: =VLOOKUP(A130,[3]Software!$A$11:$G$109,7,FALSE) -> 
A131: 1609AY1UN8 | B131: M&S Folder - 1M | C131: 1M M&S for KCM Pro Folder | D131: 9 | E131: 0 | F131: 9 | G131: =VLOOKUP(A131,[3]Software!$A$11:$G$109,7,FALSE) -> 
A132: 1609AY1UN9 | B132: M&S Web/Mobile - 1M | C132: 1M M&S for KCM Pro Web/Mobile | D132: 9 | E132: 0 | F132: 9 | G132: =VLOOKUP(A132,[3]Software!$A$11:$G$109,7,FALSE) -> 
A133: 1HZ0000990 | B133: DMC | C133: DMConnect Pro powered by Nuance | D133: 1810 | E133: 0 | F133: 1810 | G133: =VLOOKUP(A133,[3]Software!$A$11:$G$109,7,FALSE) -> 
A134: 855D300918 | B134: DMC Page Pack (50K) | C134: Basic Page Pack (50K Pages per Year) | D134: 1000 | E134: 0 | F134: 1000 | G134: =VLOOKUP(A134,[3]Software!$A$11:$G$109,7,FALSE) -> 
A135: 855D300919 | B135: DMC Page Pack (50K) | C135: PRO Page Pack (50K Pages per Year) | D135: 2000 | E135: 0 | F135: 2000 | G135: =VLOOKUP(A135,[3]Software!$A$11:$G$109,7,FALSE) -> 
A136: 855D300920 | B136: DMC Page Pack (250K) | C136: PRO Page Pack (250K Pages per Year) | D136: 8000 | E136: 0 | F136: 8000 | G136: =VLOOKUP(A136,[3]Software!$A$11:$G$109,7,FALSE) -> 
A137: 855D300921 | B137: DMC User Licenses | C137: User License Pack (10 Users per Year) | D137: 1200 | E137: 0 | F137: 1200 | G137: =VLOOKUP(A137,[3]Software!$A$11:$G$109,7,FALSE) -> 
A138: 855D301270 | B138: GlobalSearch Users | C138: Pro Edition Per CNCR User | D138: 700 | E138: 0 | F138: 700 | G138: =VLOOKUP(A138,[3]Software!$A$11:$G$109,7,FALSE) -> 
A139: 855D301271 | B139: GlobalSearch Users | C139: Pro Edition PLUS Per CNCR User | D139: 900 | E139: 0 | F139: 900 | G139: =VLOOKUP(A139,[3]Software!$A$11:$G$109,7,FALSE) -> 
A140: 855D301272 | B140: GlobalSearch Users | C140: Corp Edition Per CNCR User - (5-10 Tier) | D140: 1500 | E140: 0 | F140: 1500 | G140: =VLOOKUP(A140,[3]Software!$A$11:$G$109,7,FALSE) -> 
A141: 855D301273 | B141: GlobalSearch Users | C141: Corp Edition Per CNCR User - (11-25 Tier) | D141: 1100 | E141: 0 | F141: 1100 | G141: =VLOOKUP(A141,[3]Software!$A$11:$G$109,7,FALSE) -> 
A142: 855D301274 | B142: GlobalSearch Users | C142: Corp Edition Per CNCR User - (26-50 Tier) | D142: 900 | E142: 0 | F142: 900 | G142: =VLOOKUP(A142,[3]Software!$A$11:$G$109,7,FALSE) -> 
A143: 855D301275 | B143: GlobalSearch Users | C143: Corp Edition Per CNCR User - (51-100 Tier) | D143: 800 | E143: 0 | F143: 800 | G143: =VLOOKUP(A143,[3]Software!$A$11:$G$109,7,FALSE) -> 
A144: 855D301276 | B144: GlobalSearch Users | C144: Corp Edition Per CNCR User - (100-249 Tier) | D144: 700 | E144: 0 | F144: 700 | G144: =VLOOKUP(A144,[3]Software!$A$11:$G$109,7,FALSE) -> 
A145: 855D301277 | B145: GlobalSearch Users | C145: Corp Edition Per CNCR User - (250-1000 Tier) | D145: 500 | E145: 0 | F145: 500 | G145: =VLOOKUP(A145,[3]Software!$A$11:$G$109,7,FALSE) -> 
A146: 855D301278 | B146: Users M&S (1Y) | C146: Pro Edition Per CNCR User - M&S | D146: 140 | E146: 0 | F146: 140 | G146: =VLOOKUP(A146,[3]Software!$A$11:$G$109,7,FALSE) -> 
A147: 855D301279 | B147: Users M&S (1Y) | C147: Pro Edition PLUS Per CNCR User - M&S | D147: 180 | E147: 0 | F147: 180 | G147: =VLOOKUP(A147,[3]Software!$A$11:$G$109,7,FALSE) -> 
A148: 855D301280 | B148: Users M&S (1Y) | C148: Corp Edition Per CNCR User - (5-10 Tier) - M&S | D148: 300 | E148: 0 | F148: 300 | G148: =VLOOKUP(A148,[3]Software!$A$11:$G$109,7,FALSE) -> 
A149: 855D301281 | B149: Users M&S (1Y) | C149: Corp Edition Per CNCR User - (11-25 Tier) - M&S | D149: 220 | E149: 0 | F149: 220 | G149: =VLOOKUP(A149,[3]Software!$A$11:$G$109,7,FALSE) -> 
A150: 855D301282 | B150: Users M&S (1Y) | C150: Corp Edition Per CNCR User - (26-50 Tier) - M&S | D150: 180 | E150: 0 | F150: 180 | G150: =VLOOKUP(A150,[3]Software!$A$11:$G$109,7,FALSE) -> 
A151: 855D301283 | B151: Users M&S (1Y) | C151: Corp Edition Per CNCR User - (51-100 Tier) - M&S | D151: 160 | E151: 0 | F151: 160 | G151: =VLOOKUP(A151,[3]Software!$A$11:$G$109,7,FALSE) -> 
A152: 855D301284 | B152: Users M&S (1Y) | C152: Corp Edition Per CNCR User - (100-249 Tier) - M&S | D152: 140 | E152: 0 | F152: 140 | G152: =VLOOKUP(A152,[3]Software!$A$11:$G$109,7,FALSE) -> 
A153: 855D301285 | B153: Users M&S (1Y) | C153: Corp Edition Per CNCR User - (250-1000 Tier) - M&S | D153: 100 | E153: 0 | F153: 100 | G153: =VLOOKUP(A153,[3]Software!$A$11:$G$109,7,FALSE) -> 
A154: 855D301286 | B154: GlobalSearch Add-ons | C154: Image XChange - Per CNCR User (3-9) | D154: 260 | E154: 0 | F154: 260 | G154: =VLOOKUP(A154,[3]Software!$A$11:$G$109,7,FALSE) -> 
A155: 855D301287 | B155: GlobalSearch Add-ons | C155: Image XChange Server - Unlimited users | D155: 2625 | E155: 0 | F155: 2625 | G155: =VLOOKUP(A155,[3]Software!$A$11:$G$109,7,FALSE) -> 
A156: 855D301288 | B156: GlobalSearch Add-ons | C156: QuickBooks Connections - Per CNCR User | D156: 175 | E156: 0 | F156: 175 | G156: =VLOOKUP(A156,[3]Software!$A$11:$G$109,7,FALSE) -> 
A157: 855D301289 | B157: GlobalSearch Add-ons | C157: MS Dynamics GP CONN - Per CNCR User | D157: 375 | E157: 0 | F157: 375 | G157: =VLOOKUP(A157,[3]Software!$A$11:$G$109,7,FALSE) -> 
A158: 855D301290 | B158: GlobalSearch Add-ons | C158: Additional GlobalSearch App Server License | D158: 2500 | E158: 0 | F158: 2500 | G158: =VLOOKUP(A158,[3]Software!$A$11:$G$109,7,FALSE) -> 
A159: 855D301291 | B159: GlobalSearch Add-ons | C159: Additional GlobalAction Workflow Server | D159: 2500 | E159: 0 | F159: 2500 | G159: =VLOOKUP(A159,[3]Software!$A$11:$G$109,7,FALSE) -> 
A160: 855D301292 | B160: GlobalSearch Add-ons | C160: Read Only License - Per CNCR User | D160: 250 | E160: 0 | F160: 250 | G160: =VLOOKUP(A160,[3]Software!$A$11:$G$109,7,FALSE) -> 
A161: 855D301293 | B161: GlobalSearch Add-ons | C161: Ext Read Only Access Server - Unltd Users | D161: 15000 | E161: 0 | F161: 15000 | G161: =VLOOKUP(A161,[3]Software!$A$11:$G$109,7,FALSE) -> 
A162: 855D301294 | B162: Add-ons M&S (1Y) | C162: Image XChange - Per CNCR User (3-9) - M&S | D162: 52 | E162: 0 | F162: 52 | G162: =VLOOKUP(A162,[3]Software!$A$11:$G$109,7,FALSE) -> 
A163: 855D301295 | B163: Add-ons M&S (1Y) | C163: Image XChange Server - Unlimited users - M&S | D163: 525 | E163: 0 | F163: 525 | G163: =VLOOKUP(A163,[3]Software!$A$11:$G$109,7,FALSE) -> 
A164: 855D301296 | B164: Add-ons M&S (1Y) | C164: QuickBooks Connections - Per CNCR User - M&S | D164: 35 | E164: 0 | F164: =D164 -> 35 | G164: =VLOOKUP(A164,[3]Software!$A$11:$G$109,7,FALSE) -> 
A165: 855D301297 | B165: Add-ons M&S (1Y) | C165: MS Dynamics GP CONN - Per CNCR User - M&S | D165: 75 | E165: 0 | F165: 75 | G165: =VLOOKUP(A165,[3]Software!$A$11:$G$109,7,FALSE) -> 
A166: 855D301298 | B166: Add-ons M&S (1Y) | C166: Add GlobalSearch App Server License - M&S | D166: 500 | E166: 0 | F166: 500 | G166: =VLOOKUP(A166,[3]Software!$A$11:$G$109,7,FALSE) -> 
A167: 855D301299 | B167: Add-ons M&S (1Y) | C167: Add GlobalAction Workflow Server - M&S | D167: 500 | E167: 0 | F167: 500 | G167: =VLOOKUP(A167,[3]Software!$A$11:$G$109,7,FALSE) -> 
A168: 855D301300 | B168: Add-ons M&S (1Y) | C168: Read Only License - Per CNCR User - M&S | D168: 50 | E168: 0 | F168: 50 | G168: =VLOOKUP(A168,[3]Software!$A$11:$G$109,7,FALSE) -> 
A169: 855D301301 | B169: Add-ons M&S (1Y) | C169: Ext Read Only Access Server - Unltd Users - M&S | D169: 3000 | E169: 0 | F169: 3000 | G169: =VLOOKUP(A169,[3]Software!$A$11:$G$109,7,FALSE) -> 
A170: 855D301302 | B170: GlobalCapture BDL | C170: Convey - Dual Core | D170: 1295 | E170: 0 | F170: 1295 | G170: =VLOOKUP(A170,[3]Software!$A$11:$G$109,7,FALSE) -> 
A171: 855D301305 | B171: GlobalCapture BDL | C171: Convey Core Add - Per Core | D171: 625 | E171: 0 | F171: 625 | G171: =VLOOKUP(A171,[3]Software!$A$11:$G$109,7,FALSE) -> 
A172: 855D301308 | B172: GlobalCapture BDL | C172: Convey PLUS - Dual Core | D172: 2495 | E172: 0 | F172: 2495 | G172: =VLOOKUP(A172,[3]Software!$A$11:$G$109,7,FALSE) -> 
A173: 855D301311 | B173: GlobalCapture BDL | C173: Convey PLUS Core Add On - Per Core | D173: 1250 | E173: 0 | F173: 1250 | G173: =VLOOKUP(A173,[3]Software!$A$11:$G$109,7,FALSE) -> 
A174: 855D301314 | B174: GlobalCapture BDL | C174: Intelligent Transformation (IT) BDL | D174: 6995 | E174: 0 | F174: 6995 | G174: =VLOOKUP(A174,[3]Software!$A$11:$G$109,7,FALSE) -> 
A175: 855D301317 | B175: GlobalCapture BDL | C175: IT BDL Core Add On - Per Core | D175: 3495 | E175: 0 | F175: 3495 | G175: =VLOOKUP(A175,[3]Software!$A$11:$G$109,7,FALSE) -> 
A176: 855D301320 | B176: GlobalCapture BDL | C176: IT PLUS BDL | D176: 12995 | E176: 0 | F176: 12995 | G176: =VLOOKUP(A176,[3]Software!$A$11:$G$109,7,FALSE) -> 
A177: 855D301323 | B177: GlobalCapture BDL | C177: IT PLUS BDL Core Add On - Per Core | D177: 5995 | E177: 0 | F177: 5995 | G177: =VLOOKUP(A177,[3]Software!$A$11:$G$109,7,FALSE) -> 
A178: 855D301326 | B178: BDL M&S (1Y) | C178: Convey - Dual Core - M&S | D178: 259 | E178: 0 | F178: 259 | G178: =VLOOKUP(A178,[3]Software!$A$11:$G$109,7,FALSE) -> 
A179: 855D301327 | B179: BDL M&S (1Y) | C179: Convey Core Add - Per Core - M&S | D179: 100 | E179: 0 | F179: 100 | G179: =VLOOKUP(A179,[3]Software!$A$11:$G$109,7,FALSE) -> 
A180: 855D301328 | B180: BDL M&S (1Y) | C180: Convey PLUS - Dual Core - M&S | D180: 499 | E180: 0 | F180: 499 | G180: =VLOOKUP(A180,[3]Software!$A$11:$G$109,7,FALSE) -> 
A181: 855D301329 | B181: BDL M&S (1Y) | C181: Convey PLUS Core Add On - Per Core - M&S | D181: 250 | E181: 0 | F181: 250 | G181: =VLOOKUP(A181,[3]Software!$A$11:$G$109,7,FALSE) -> 
A182: 855D301330 | B182: BDL M&S (1Y) | C182: Intelligent Transformation (IT) BDL - M&S | D182: 1399 | E182: 0 | F182: 1399 | G182: =VLOOKUP(A182,[3]Software!$A$11:$G$109,7,FALSE) -> 
A183: 855D301331 | B183: BDL M&S (1Y) | C183: IT BDL Core Add On - Per Core - M&S | D183: 699 | E183: 0 | F183: 699 | G183: =VLOOKUP(A183,[3]Software!$A$11:$G$109,7,FALSE) -> 
A184: 855D301332 | B184: BDL M&S (1Y) | C184: IT PLUS BDL - M&S | D184: 2599 | E184: 0 | F184: 2599 | G184: =VLOOKUP(A184,[3]Software!$A$11:$G$109,7,FALSE) -> 
A185: 855D301333 | B185: BDL M&S (1Y) | C185: IT PLUS BDL Core Add On - Per Core - M&S | D185: 1199 | E185: 0 | F185: 1199 | G185: =VLOOKUP(A185,[3]Software!$A$11:$G$109,7,FALSE) -> 
A186: 855D301334 | B186: GlobalCapture Add-ons | C186: Invoice Intelligence Template Pack | D186: 1995 | E186: 0 | F186: 1995 | G186: =VLOOKUP(A186,[3]Software!$A$11:$G$109,7,FALSE) -> 
A187: 855D301335 | B187: GlobalCapture Add-ons | C187: Disaster Recovery/Test Bench License | D187: 2495 | E187: 0 | F187: 2495 | G187: =VLOOKUP(A187,[3]Software!$A$11:$G$109,7,FALSE) -> 
A188: 855D301338 | B188: GlobalCapture Add-ons | C188: Assembly Bound Lists Pack | D188: 1495 | E188: 0 | F188: 1495 | G188: =VLOOKUP(A188,[3]Software!$A$11:$G$109,7,FALSE) -> 
A189: 855D301341 | B189: GlobalCapture Add-ons | C189: All In One User License - Per CNCR User | D189: 695 | E189: 0 | F189: 695 | G189: =VLOOKUP(A189,[3]Software!$A$11:$G$109,7,FALSE) -> 
A190: 855D301344 | B190: Add-ons M&S (1Y) | C190: Invoice Intelligence Template Pack - M&S | D190: 399 | E190: 0 | F190: 399 | G190: =VLOOKUP(A190,[3]Software!$A$11:$G$109,7,FALSE) -> 
A191: 855D301345 | B191: Add-ons M&S (1Y) | C191: Disaster Recovery/Test Bench License - M&S | D191: 499 | E191: 0 | F191: 499 | G191: =VLOOKUP(A191,[3]Software!$A$11:$G$109,7,FALSE) -> 
A192: 855D301346 | B192: Add-ons M&S (1Y) | C192: Assembly Bound Lists Pack - M&S | D192: 299 | E192: 0 | F192: 299 | G192: =VLOOKUP(A192,[3]Software!$A$11:$G$109,7,FALSE) -> 
A193: 855D301347 | B193: Add-ons M&S (1Y) | C193: All In One User License - Per CNCR User - M&S | D193: 139 | E193: 0 | F193: 139 | G193: =VLOOKUP(A193,[3]Software!$A$11:$G$109,7,FALSE) -> 
A194: 855D301348 | B194: GlobalForms 10 | C194: Server with Workflow & Forms Design | D194: 2495 | E194: 0 | F194: 2495 | G194: =VLOOKUP(A194,[3]Software!$A$11:$G$109,7,FALSE) -> 
A195: 855D301349 | B195: GlobalForms 10 | C195: Single Form Add On | D195: 1495 | E195: 0 | F195: 1495 | G195: =VLOOKUP(A195,[3]Software!$A$11:$G$109,7,FALSE) -> 
A196: 855D301350 | B196: GlobalForms 10 | C196: 5 Form Add On | D196: 4995 | E196: 0 | F196: 4995 | G196: =VLOOKUP(A196,[3]Software!$A$11:$G$109,7,FALSE) -> 
A197: 855D301351 | B197: GlobalForms 10 | C197: 10 Form Add On | D197: 7995 | E197: 0 | F197: 7995 | G197: =VLOOKUP(A197,[3]Software!$A$11:$G$109,7,FALSE) -> 
A198: 855D301352 | B198: GlobalForms 10 | C198: 20 Form Add On | D198: 12995 | E198: 0 | F198: 12995 | G198: =VLOOKUP(A198,[3]Software!$A$11:$G$109,7,FALSE) -> 
A199: 855D301353 | B199: GlobalForms 10 | C199: 50 Form Add On | D199: 14995 | E199: 0 | F199: 14995 | G199: =VLOOKUP(A199,[3]Software!$A$11:$G$109,7,FALSE) -> 
A200: 855D301354 | B200: GlobalForms 10 | C200: Unlimited Form Option | D200: 19995 | E200: 0 | F200: 19995 | G200: =VLOOKUP(A200,[3]Software!$A$11:$G$109,7,FALSE) -> 
... 109 more rows

Sheet SUPPLIES PRICE LIST
B1: KYOCERA Business Solutions America, Inc.
A2: Item Code Number | B2: Description | C2: CARTRIDGE Yields | D2: MSRP Cartridge | E2: NASPO ValuePoint DISCOUNT% OFF MSRP | F2: NASPO ValuePoint Price
B3: ECOSYS P2040dw
A4: 1T02RY0US0 | B4: toner TK-1162 | C4: 7200 | D4: 91 | E4: 0.12 | F4: 80.08
A5: 1702RV0US0 | B5: maintenance kit MK-1152 | C5: 100000 | D5: 175 | E5: 0.12 | F5: 154
B6: ECOSYS P3145dn/3045dn
A7: 1T02T90US0 | B7: toner TK-3162 | C7: 12500 | D7: 82.5 | E7: 0.12 | F7: 72.6
A8: 1702T97US0 | B8: maintenance kit MK-3162 | C8: 300000 | D8: 255 | E8: 0.12 | F8: 224.4
B9: ECOSYS P3150dn/P3050
A10: 1T02T80US0 | B10: toner TK-3172 | C10: 15500 | D10: 83.69 | E10: 0.1199665432 | F10: 73.65
A11: 1702T67US0 | B11: maintenance kit MK-3172 | C11: 500000 | D11: 277 | E11: 0.12 | F11: 243.76
B12: ECOSYS P3155dn/P3055
A13: 1T02T70US0 | B13: toner TK-3182 | C13: 21000 | D13: 88.2 | E13: 0.1199546485 | F13: 77.62
A14: 1702T67US0 | B14: maintenance kit MK-3172 | C14: 500000 | D14: 277 | E14: 0.12 | F14: 243.76
B15: ECOSYS P3260dn/P3060
A16: 1T02T60US0 | B16: toner TK-3192 | C16: 25000 | D16: 95.14 | E16: 0.1200336346 | F16: 83.72
A17: 1702T67US0 | B17: maintenance kit MK-3172 | C17: 500000 | D17: 277 | E17: 0.12 | F17: 243.76
B18: FS-9530DN
A19: 1T02G10US0 | B19: toner TK-712 | C19: 40000 | D19: 129 | E19: 0.12 | F19: 113.52
A20: 1702G12US0 | B20: maintenance kit MK-710 | C20: 500000 | D20: 599 | E20: 0.12 | F20: 527.12
A21: 5AX82010 | B21: staples for DF-730 | C21: 3000 | D21: 79.92 | E21: 0.119994995 | F21: 70.33
B22: ECOSYS P5021cdw
A23: 1T02R90US1 | B23: TK-5222K [Yield Approx. 1.2K at ISO19798] STANDARD | C23: 1200 | D23: 56.25 | E23: 0.12 | F23: 49.5
A24: 1T02R9CUS1 | B24: TK-5222C [Yield Approx. 1.2K at ISO19798] STANDARD | C24: 1200 | D24: 71.02 | E24: 0.1199662067 | F24: 62.5
A25: 1T02R9BUS1 | B25: TK-5222M [Yield Approx. 1.2K at ISO19798] STANDARD | C25: 1200 | D25: 71.02 | E25: 0.1199662067 | F25: 62.5
A26: 1T02R9AUS1 | B26: TK-5222Y [Yield Approx. 1.2K at ISO19798] STANDARD | C26: 1200 | D26: 71.02 | E26: 0.1199662067 | F26: 62.5
A27: 1T02R90US0 | B27: TK-5232K [Yield Approx. 2.6K at ISO19798]HIGH YIELD | C27: 2600 | D27: 87.38 | E27: 0.1200503548 | F27: 76.89
A28: 1T02R9CUS0 | B28: TK-5232C [Yield Approx. 2.2K at ISO19798] HIGH YIELD | C28: 2200 | D28: 100.52 | E28: 0.1199761242 | F28: 88.46
A29: 1T02R9BUS0 | B29: TK-5232M [Yield Approx. 2.2K at ISO19798] HIGH YIELD | C29: 2200 | D29: 100.52 | E29: 0.1199761242 | F29: 88.46
A30: 1T02R9AUS0 | B30: TK-5232Y [Yield Approx. 2.2K at ISO19798] HIGH YIELD | C30: 2200 | D30: 100.52 | E30: 0.1199761242 | F30: 88.46
B31: ECOSYS P5026cdw
A32: 1T02R70US0 | B32: TK-5242K [Yield Approx. 4K at ISO19798] | C32: 4000 | D32: 78.13 | E32: 0.1200563164 | F32: 68.75
A33: 1T02R7CUS0 | B33: TK-5242C [Yield Approx. 3K at ISO19798] | C33: 3000 | D33: 96.64 | E33: 0.1200331126 | F33: 85.04
A34: 1T02R7BUS0 | B34: TK-5242M [Yield Approx. 3K at ISO19798] | C34: 3000 | D34: 96.64 | E34: 0.1200331126 | F34: 85.04
A35: 1T02R7AUS0 | B35: TK-5242Y [Yield Approx. 3K at ISO19798] | C35: 3000 | D35: 96.64 | E35: 0.1200331126 | F35: 85.04
B36: ECOSYS P6230cdn / P6235cdn / P7240cdn
A37: 1T02TX0US0 | B37: TK-5292K Toner Black For P7240cdn | C37: 17000 | D37: 136 | E37: 0.12 | F37: 119.68
A38: 1T02TXCUS0 | B38: TK-5292C Toner Cyan For P7240cdn | C38: 13000 | D38: 182 | E38: 0.12 | F38: 160.16
A39: 1T02TXBUS0 | B39: TK-5292M Toner Magenta For P7240cdn | C39: 13000 | D39: 182 | E39: 0.12 | F39: 160.16
A40: 1T02TXAUS0 | B40: TK-5292Y Toner Yellow For P7240cdn | C40: 13000 | D40: 182 | E40: 0.12 | F40: 160.16
A41: 1T02TW0US0 | B41: TK-5282K Toner Black For P6235cdn | C41: 13000 | D41: 115.9 | E41: 0.1200172563 | F41: 101.99
A42: 1T02TWCUS0 | B42: TK-5282C Toner Cyan For P6235cdn | C42: 11000 | D42: 168.65 | E42: 0.1200118589 | F42: 148.41
A43: 1T02TWBUS0 | B43: TK-5282M Toner Magenta For P6235cdn | C43: 11000 | D43: 168.65 | E43: 0.1200118589 | F43: 148.41
A44: 1T02TWAUS0 | B44: TK-5282Y Toner Yellow For P6235cdn | C44: 11000 | D44: 168.65 | E44: 0.1200118589 | F44: 148.41
A45: 1T02TV0US0 | B45: TK-5272K Toner Black For P6230cdn | C45: 8000 | D45: 100.01 | E45: 0.1199880012 | F45: 88.01
A46: 1T02TVCUS0 | B46: TK-5272C Toner Cyan For P6230cdn | C46: 6000 | D46: 106.83 | E46: 0.1200037443 | F46: 94.01
A47: 1T02TVBUS0 | B47: TK-5272M Toner Magenta For P6230cdn | C47: 6000 | D47: 106.83 | E47: 0.1200037443 | F47: 94.01
A48: 1T02TVAUS0 | B48: TK-5272Y Toner Yellow For P6230cdn | C48: 6000 | D48: 106.83 | E48: 0.1200037443 | F48: 94.01
A49: 1702TX7US0 | B49: MK-5292 Maintanance Kit For P7240cdn | C49: 300000 | D49: 1189.3 | E49: 0.1200033633 | F49: 1046.58
A50: 1702NS7US0 | B50: MK-5152 Maintanance Kit For P6235cdn | C50: 200000 | D50: 909 | E50: 0.12 | F50: 799.92
A51: 1702NR7US0 | B51: MK-5142 Maintanance Kit For P6230cdn | C51: 200000 | D51: 618 | E51: 0.12 | F51: 543.84
B52: ECOSYS M2040dn
A53: 1T02S50US0 | B53: TK-1172 | C53: 7200 | D53: 86 | E53: 0.12 | F53: 75.68
A54: 1702ML0KL0 | B54: maintenance kit MK-1142 | C54: 100000 | D54: 175 | E54: 0.12 | F54: 154
B55: ECOSYS M2540dw
A56: 1T02S50US0 | B56: TK-1172 | C56: 7200 | D56: 86 | E56: 0.12 | F56: 75.68
A57: 1702ML0KL0 | B57: maintenance kit MK-1142 | C57: 100000 | D57: 175 | E57: 0.12 | F57: 154
B58: ECOSYS M2640idw
A59: 1T02S50US0 | B59: TK-1172 | C59: 7200 | D59: 86 | E59: 0.12 | F59: 75.68
A60: 1702ML0KL0 | B60: maintenance kit MK-1142 | C60: 100000 | D60: 175 | E60: 0.12 | F60: 154
B61: ECOSYS M2635dw
A62: 1T02RV0US0 | B62: toner TK-1152 (ISO19752) | C62: 3000 | D62: 68.33 | E62: 0.1200058539 | F62: 60.13
A63: 1702RV0US0 | B63: maintenance kit MK-1152 100K (Drum / Developer Unit) | C63: 100000 | D63: 175 | E63: 0.12 | F63: 154
B64: ECOSYS M3145idn / ECOSYS M3645idn
A65: 1T02T90US1 | B65: TK-3162 | C65: 12500 | D65: 82.5 | E65: 0.12 | F65: 72.6
A66: 1702V37US0 | B66: maintenance kit MK-3262 | C66: 300000 | D66: 255 | E66: 0.12 | F66: 224.4
A67: 1702P60UN0 | B67: maintenance kit MK-3140 (doc processor) | C67: 200000 | D67: 70.1 | E67: 0.1199714693 | F67: 61.69
B68: ECOSYS M3655idn
A69: 1T02T70US1 | B69: TK-3182 | C69: 21000 | D69: 88.2 | E69: 0.1199546485 | F69: 77.62
A70: 1702TA7US0 | B70: maintenance kit MK-3302 | C70: 500000 | D70: 277 | E70: 0.12 | F70: 243.76
A71: 1703R40UN0 | B71: maintenance kit MK-5200 (doc processor) | C71: 200000 | D71: 71 | E71: 0.12 | F71: 62.48
B72: ECOSYS M3860idnf/M3860idn/M3660
A73: 1T02T60US1 | B73: TK-3192 | C73: 25000 | D73: 95.14 | E73: 0.1200336346 | F73: 83.72
A74: 1702TA7US0 | B74: maintenance kit MK-3302 | C74: 500000 | D74: 277 | E74: 0.12 | F74: 243.76
A75: 1703R40UN0 | B75: maintenance kit MK-5200 (doc processor) | C75: 200000 | D75: 71 | E75: 0.12 | F75: 62.48
B76: ECOSYS M5521cdw
A77: 1T02R90US1 | B77: TK-5222K [Yield Approx. 1.2K at ISO19798]STANDARD | C77: 1200 | D77: 56.25 | E77: 0.12 | F77: 49.5
A78: 1T02R9CUS1 | B78: TK-5222C [Yield Approx. 1.2K at ISO19798] | C78: 1200 | D78: 71.02 | E78: 0.1199662067 | F78: 62.5
A79: 1T02R9BUS1 | B79: TK-5222M [Yield Approx. 1.2K at ISO19798] | C79: 1200 | D79: 71.02 | E79: 0.1199662067 | F79: 62.5
A80: 1T02R9AUS1 | B80: TK-5222Y [Yield Approx. 1.2K at ISO19798] | C80: 1200 | D80: 71.02 | E80: 0.1199662067 | F80: 62.5
A81: 1T02R90US0 | B81: TK-5232K [Yield Approx. 2.6K at ISO19798]HIGH YIELD | C81: 2600 | D81: 87.38 | E81: 0.1200503548 | F81: 76.89
A82: 1T02R9CUS0 | B82: TK-5232C [Yield Approx. 2.2K at ISO19798] | C82: 2200 | D82: 100.52 | E82: 0.1199761242 | F82: 88.46
A83: 1T02R9BUS0 | B83: TK-5232M [Yield Approx. 2.2K at ISO19798] | C83: 2200 | D83: 100.52 | E83: 0.1199761242 | F83: 88.46
A84: 1T02R9AUS0 | B84: TK-5232Y [Yield Approx. 2.2K at ISO19798] | C84: 2200 | D84: 100.52 | E84: 0.1199761242 | F84: 88.46
B85: ECOSYS M5526cdw
A86: 1T02R70US0 | B86: TK-5242K [Yield Approx. 4K at ISO19798] | C86: 4000 | D86: 78.13 | E86: 0.1200563164 | F86: 68.75
A87: 1T02R7CUS0 | B87: TK-5242C [Yield Approx. 3K at ISO19798] | C87: 3000 | D87: 96.64 | E87: 0.1200331126 | F87: 85.04
A88: 1T02R7BUS0 | B88: TK-5242M [Yield Approx. 3K at ISO19798] | C88: 3000 | D88: 96.64 | E88: 0.1200331126 | F88: 85.04
A89: 1T02R7AUS0 | B89: TK-5242Y [Yield Approx. 3K at ISO19798] | C89: 3000 | D89: 96.64 | E89: 0.1200331126 | F89: 85.04
B90: ECOSYS M6235cidn / M6630cidn / M6635cidn
A91: 1T02TW0US0 | B91: TK-5282K Toner Black For M6635cidn/M6235cidn | C91: 13000 | D91: 115.9 | E91: 0.1200172563 | F91: 101.99
A92: 1T02TWCUS0 | B92: TK-5282C Toner Cyan For M6635cidn/M6235cidn | C92: 11000 | D92: 168.65 | E92: 0.1200118589 | F92: 148.41
A93: 1T02TWBUS0 | B93: TK-5282M Toner Magenta For M6635cidn/M6235cidn | C93: 11000 | D93: 168.65 | E93: 0.1200118589 | F93: 148.41
A94: 1T02TWAUS0 | B94: TK-5282Y Toner Yellow For M6635cidn/M6235cidn | C94: 11000 | D94: 168.65 | E94: 0.1200118589 | F94: 148.41
A95: 1T02TV0US0 | B95: TK-5272K Toner Black For M6630cidn | C95: 8000 | D95: 100.01 | E95: 0.1199880012 | F95: 88.01
A96: 1T02TVCUS0 | B96: TK-5272C Toner Cyan For M6630cidn | C96: 6000 | D96: 106.83 | E96: 0.1200037443 | F96: 94.01
A97: 1T02TVBUS0 | B97: TK-5272M Toner Magenta For M6630cidn | C97: 6000 | D97: 106.83 | E97: 0.1200037443 | F97: 94.01
A98: 1T02TVAUS0 | B98: TK-5272Y Toner Yellow For M6630cidn | C98: 6000 | D98: 106.83 | E98: 0.1200037443 | F98: 94.01
A99: 1702NS7US1 | B99: MK-5157 Maintanance Kit For M6635cidn/M6235cidn | C99: 200000 | D99: 909 | E99: 0.12 | F99: 799.92
A100: 1702NR7US0 | B100: MK-5142 Maintanance Kit For M6630cidn | C100: 200000 | D100: 618 | E100: 0.12 | F100: 543.84
A101: 1703R40UN0 | B101: MK-5200 DP Maintenance kit for M6635cidn/M6235cidn | C101: 200000 | D101: 71 | E101: 0.12 | F101: 62.48
A102: 1702P60UN0 | B102: MK-3140 DP Maintenance kit for M6630cidn | C102: 200000 | D102: 71.4 | E102: 0.1200280112 | F102: 62.83
A103: 1903R90UN1 | B103: SH-13 Staple Cartridge | C103: 3000 | D103: 36 | E103: 0.12 | F103: 31.68
B104: ECOSYS M4125idn / ECOSYS M4132idn
A105: 1T02P10US0 | B105: TK-6117 | C105: 15000 | D105: 81.648 | E105: 0.1200029394 | F105: 71.85
A106: 1702P17US0 | B106: MK-6117- 300K Maintenance Kit (Drum/Developer/Fuser/Transfer Unit and Paper Feed Roller) | C106: 300000 | D106: 352.8 | E106: 0.1200113379 | F106: 310.46
A107: 1702P10UN0 | B107: MK-6110- 300K Maintenance Kit (Feed Roller for Document Processor) | C107: 300000 | D107: 35.28 | E107: 0.1198979592 | F107: 31.05
A108: 1903JY0000 | B108: SH-10- Staples for DF-470 | C108: 15000 | D108: 43.4 | E108: 0.1200460829 | F108: 38.19
B109: TASKalfa 3212i
A110: 1T02V70US0 | B110: TK-7127 | C110: 20000 | D110: 86.24 | E110: 0.1200139147 | F110: 75.89
A111: 1702V67US0 | B111: MK-7127 Maintenance kit (Drum/Developer(BK)/Transfer Unit/Fuser Unit/Paper Feed Roller) | C111: 600000 | D111: 582.624 | E111: 0.1199984896 | F111: 512.71
A112: 1903JY0000 | B112: SH-10 staples for DF-770/BF730 | C112: 15000 | D112: 43.4 | E112: 0.1200460829 | F112: 38.19
A113: 1903NB0UN0 | B113: SH-12 staples for DF-791 | C113: 15000 | D113: 90 | E113: 0.12 | F113: 79.2
B114: TASKalfa 4012i
A115: 1T02V60US0 | B115: TK-7227 | C115: 35000 | D115: 150.92 | E115: 0.1199973496 | F115: 132.81
A116: 1702V67US0 | B116: MK-7127 Maintenance kit (Drum/Developer(BK)/Transfer Unit/Fuser Unit/Paper Feed Roller) | C116: 600000 | D116: 582.624 | E116: 0.1199984896 | F116: 512.71
A117: 1903JY0000 | B117: SH-10 staples for DF-770/BF730 | C117: 15000 | D117: 43.4 | E117: 0.1200460829 | F117: 38.19
A118: 1903NB0UN0 | B118: SH-12 staples for DF-7110 | C118: 15000 | D118: 90 | E118: 0.12 | F118: 79.2
B119: TASKalfa4003i/5003i/6003i
A120: 1T02NK0US0 | B120: TK-6327 | C120: 35000 | D120: 120.008 | E120: 0.119975335 | F120: 105.61
A121: 1702VK0KL0 | B121: MK-6335 | C121: 600000 | D121: 569.828 | E121: 0.1199976133 | F121: 501.45
A122: 1902ND0UN0 | B122: WT-8500 Waste Toner box (9 Containers / Case : Yield 40K For Color Machine @ 5% Coverage | C122: 70000 | D122: 18.032 | E122: 0.1198979592 | F122: 15.87
A123: 1903JY0000 | B123: SH-10 staples for DF-7120/BF730 | C123: 15000 | D123: 43.4 | E123: 0.1200460829 | F123: 38.19
A124: 1903NB0UN0 | B124: SH-12 staples for DF-7110 | C124: 15000 | D124: 90 | E124: 0.12 | F124: 79.2
A125: 1903S80UN0 | B125: SH-14 | C125: 25000 | D125: 227 | E125: 0.12 | F125: 199.76
B126: TASKalfa /7003/8003/9003/7002/8002/9002
A127: 1T02NJ0US0 | B127: TK-6727 | C127: 70000 | D127: 146.398 | E127: 0.1200016394 | F127: 128.83
A128: 1702NJ7US0 | B128: MK-6725 600k Maintenance Kit for 8002i / 7002i (Drum/Developer/Fuser/Transfer Unit and Paper Feed Roller) | C128: 600000 | D128: 1008 | E128: 0.12 | F128: 887.04
A129: 1902K90UN0 | B129: WT-861 | C129: 500000 | D129: 30.8 | E129: 0.1201298701 | F129: 27.1
A130: 1903JY0000 | B130: SH-10 staples for BF730 | C130: 15000 | D130: 43.4 | E130: 0.1200460829 | F130: 38.19
A131: 1903NB0UN0 | B131: SH-12 staples for DF-7110 | C131: 15000 | D131: 90 | E131: 0.12 | F131: 79.2
B132: TASKalfa 308ci/307ci
A133: 1T02R40US0 | B133: TK-5197K toner (black) | C133: 15000 | D133: 64.68 | E133: 0.1199752628 | F133: 56.92
A134: 1T02R4AUS0 | B134: TK-5197Y toner (yellow) | C134: 7000 | D134: 107.534 | E134: 0.119999256 | F134: 94.63
A135: 1T02R4BUS0 | B135: TK-5197M toner (magenta) | C135: 7000 | D135: 107.534 | E135: 0.119999256 | F135: 94.63
A136: 1T02R4CUS0 | B136: TK-5197C toner (cyan) | C136: 7000 | D136: 107.534 | E136: 0.119999256 | F136: 94.63
A137: 1702WL7US0 | B137: MK-5357A | C137: 200000 | D137: 574 | E137: 0.12 | F137: 505.12
A138: 1702R40UN0 | B138: MK-5195B | C138: 200000 | D138: 918.008 | E138: 0.1199967756 | F138: 807.85
A139: 1702P60UN0 | B139: MK-3140 KIT FOR DP 5100 AND STANDARD 308 DP | C139: 200000 | D139: 71.4 | E139: 0.1200280112 | F139: 62.83
A140: 1902R60UN0 | B140: WT-5190 (waste toner box mono/color7:3) | C140: 44000 | D140: 196 | E140: 0.12 | F140: 172.48
B141: TASKalfa 358ci/356ci
A142: 1T02R50US0 | B142: TK-5207K toner (black) | C142: 18000 | D142: 77.616 | E142: 0.1200267986 | F142: 68.3
A143: 1T02R5AUS0 | B143: TK-5207Y toner (yellow) | C143: 12000 | D143: 89.04 | E143: 0.1199460916 | F143: 78.36
A144: 1T02R5BUS0 | B144: TK-5207M toner (magenta) | C144: 12000 | D144: 89.04 | E144: 0.1199460916 | F144: 78.36
A145: 1T02R5CUS0 | B145: TK-5207C toner (cyan) | C145: 12000 | D145: 89.04 | E145: 0.1199460916 | F145: 78.36
A146: 1702V47US1 | B146: MK-5367A (200k KIT drum,developer,transfer+paper feed roller) | C146: 200000 | D146: 574 | E146: 0.12 | F146: 505.12
A147: 1702R50UN0 | B147: MK-5205B (200K 3x drum/color developer) | C147: 200000 | D147: 918.008 | E147: 0.1199967756 | F147: 807.85
A148: 1902R60UN0 | B148: WT-5190 (waste toner box mono/color7:3) | C148: 44000 | D148: 196 | E148: 0.12 | F148: 172.48
A149: 1903JY0000 | B149: SH-10 staples for DF-770/BF730 | C149: 15000 | D149: 43.4 | E149: 0.1200460829 | F149: 38.19
B150: TASKalfa 408ci
A151: 1T02WH0US0 | B151: TK-5317K toner (black) | C151: 24000 | D151: 82.306 | E151: 0.1199370134 | F151: 72.42928
A152: 1T02WHAUS0 | B152: TK-5317Y toner (yellow) | C152: 18000 | D152: 128.94 | E152: 0.1199627734 | F152: 113.4672
A153: 1T02WHBUS0 | B153: TK-5317M toner (magenta) | C153: 18000 | D153: 128.94 | E153: 0.1199627734 | F153: 113.4672
A154: 1T02WHCUS0 | B154: TK-5317C toner (cyan) | C154: 18000 | D154: 128.94 | E154: 0.1199627734 | F154: 113.4672
A155: 1702WH7US0 | B155: MK-5347A (300k KIT drum,developer,transfer+paper feed roller) | C155: 300000 | D155: 868 | E155: 0.12 | F155: 763.84
A156: 1702WH0KL0 | B156: MK-5225B (300K 3x drum/color developer) | C156: 300000 | D156: 1349.81 | E156: 0.1200020744 | F156: 1187.83
A157: 1902R60UN2 | B157: WT-5191 (waste toner box mono/color7:3) | C157: 44000 | D157: 19.6 | E157: 0.1198979592 | F157: 17.25
A158: 1903JY0000 | B158: SH-10 (Staples 3x cartridges) | C158: 15000 | D158: 43.4 | E158: 0.1200460829 | F158: 38.19
B159: ECOSYS M8124cidn/ECOSYS M8130cidn
A160: 1T02P30US0 | B160: TK-8117K toner (black) | C160: 12000 | D160: 65.338 | E160: 0.1199608191 | F160: 57.5
A161: 1T02P3AUS0 | B161: TK-8117Y toner (yellow) | C161: 6000 | D161: 89.824 | E161: 0.1199456715 | F161: 79.05
A162: 1T02P3BUS0 | B162: TK-8117M toner (magenta) | C162: 6000 | D162: 89.824 | E162: 0.1199456715 | F162: 79.05
A163: 1T02P3CUS0 | B163: TK-8117C toner (cyan) | C163: 6000 | D163: 89.824 | E163: 0.1199456715 | F163: 79.05
A164: 1702P30UN0 | B164: MK-8115A- 200K Maintenance Kit (Drum/Developer(BK)/Fuser/Transfer Unit and Paper Feed Roller) | C164: 200000 | D164: 796.32 | E164: 0.1200020092 | F164: 700.76
A165: 1702P30UN1 | B165: MK-8115B- 200K Maintenance Kit (3xDrum/ Color Developers) | C165: 200000 | D165: 705.6 | E165: 0.1199971655 | F165: 620.93
A166: 1702P10UN0 | B166: MK-6110- 300K Maintenance Kit (Feed Roller for Document Processor) | C166: 300000 | D166: 35.28 | E166: 0.1198979592 | F166: 31.05
A167: 1903JY0000 | B167: SH-10- Staples for DF-470 | C167: 15000 | D167: 43.4 | E167: 0.1200460829 | F167: 38.19
B168: TASKalfa2553ci/2552
A169: 1T02L70US0 | B169: TK-8347K toner (black) | C169: 20000 | D169: 88.76 | E169: 0.1199864804 | F169: 78.11
A170: 1T02L7CUS1 | B170: TK-8347C (Approx. 12K Yield @ 5% Coverage) | C170: 12000 | D170: 91.56 | E170: 0.120030581 | F170: 80.57
A171: 1T02L7BUS1 | B171: TK-8347M (Approx. 12K Yield @ 5% Coverage) | C171: 12000 | D171: 91.56 | E171: 0.120030581 | F171: 80.57
A172: 1T02L7AUS1 | B172: TK-8347Y (Approx. 12K Yield @ 5% Coverage) | C172: 12000 | D172: 91.56 | E172: 0.120030581 | F172: 80.57
A173: 1702RL0UN3 | B173: MK-8335A | C173: 200000 | D173: 162.4 | E173: 0.1200123153 | F173: 142.91
A174: 1702RL0UN0 | B174: MK-8335B | C174: 200000 | D174: 577.584 | E174: 0.1200067869 | F174: 508.27
A175: 1702RL0UN1 | B175: MK-8335D | C175: 600000 | D175: 1469.986 | E175: 0.1199984218 | F175: 1293.59
A176: 1702RL0UN2 | B176: MK-8335E | C176: 600000 | D176: 354.648 | E176: 0.1200006767 | F176: 312.09
A177: 1903JY0000 | B177: SH-10 staples for DF-7120 AND BF-730 | C177: 15000 | D177: 43.4 | E177: 0.1200460829 | F177: 38.19
A178: 1903NB0UN0 | B178: SH-12 staples for DF-7110 | C178: 15000 | D178: 90 | E178: 0.12 | F178: 79.2
A179: 1903S80UN0 | B179: SH-14 | C179: 25000 | D179: 227 | E179: 0.12 | F179: 199.76
A180: 1902ND0UN0 | B180: WT-8500 | C180: 40000 | D180: 18.032 | E180: 0.1198979592 | F180: 15.87
A181: 1702RL0UN3 | B181: MK-8335A | C181: 200000 | D181: 162.4 | E181: 0.1200123153 | F181: 142.91
A182: 1702RL0UN0 | B182: MK-8335B | C182: 200000 | D182: 577.584 | E182: 0.1200067869 | F182: 508.27
A183: 1702RL0UN1 | B183: MK-8335D | C183: 600000 | D183: 1469.986 | E183: 0.1199984218 | F183: 1293.59
A184: 1702RL0UN2 | B184: MK-8335E | C184: 600000 | D184: 354.648 | E184: 0.1200006767 | F184: 312.09
A185: 1903JY0000 | B185: SH-10 staples for DF-7120 AND BF-730 | C185: 15000 | D185: 43.4 | E185: 0.1200460829 | F185: 38.19
A186: 1903NB0UN0 | B186: SH-12 staples for DF-7110 | C186: 15000 | D186: 90 | E186: 0.12 | F186: 79.2
A187: 1903S80UN0 | B187: SH-14 | C187: 25000 | D187: 227 | E187: 0.12 | F187: 199.76
A188: 1902ND0UN0 | B188: WT-8500 | C188: 40000 | D188: 18.032 | E188: 0.1198979592 | F188: 15.87
A189: 1702RL0UN3 | B189: MK-8335A | C189: 200000 | D189: 162.4 | E189: 0.1200123153 | F189: 142.91
A190: 1702RL0UN0 | B190: MK-8335B | C190: 200000 | D190: 577.584 | E190: 0.1200067869 | F190: 508.27
A191: 1702RL0UN1 | B191: MK-8335D | C191: 600000 | D191: 1469.986 | E191: 0.1199984218 | F191: 1293.59
A192: 1702RL0UN2 | B192: MK-8335E | C192: 600000 | D192: 354.648 | E192: 0.1200006767 | F192: 312.09
A193: 1903JY0000 | B193: SH-10 staples for DF-7120 AND BF-730 | C193: 15000 | D193: 43.4 | E193: 0.1200460829 | F193: 38.19
A194: 1903NB0UN0 | B194: SH-12 staples for DF-7110 | C194: 15000 | D194: 90 | E194: 0.12 | F194: 79.2
A195: 1903S80UN0 | B195: SH-14 | C195: 25000 | D195: 227 | E195: 0.12 | F195: 199.76
A196: 1902ND0UN0 | B196: WT-8500 | C196: 40000 | D196: 18.032 | E196: 0.1198979592 | F196: 15.87
B197: TASKalfa3253ci/3252
A198: 1T02RL0US0 | B198: TK-8337K toner (black) | C198: 25000 | D198: 97.972 | E198: 0.1199526395 | F198: 86.22
A199: 1T02RLCUS1 | B199: TK-8337C (Approx. 15K Yield @ 5% Coverage) | C199: 15000 | D199: 101.01 | E199: 0.11998812 | F199: 88.89
A200: 1T02RLBUS1 | B200: TK-8337M (Approx. 15K Yield @ 5% Coverage) | C200: 15000 | D200: 101.01 | E200: 0.11998812 | F200: 88.89
... 73 more rows

Sheet MPS Pricing
B1: Kyocera Document Solutions America, Inc.
A3: Required MPS Components | E3: Cost Per Click w/OEM Supplies (Billed Monthly)
A4: Implementation (One-time Charge) | C4: Price Per Unit | E4: Device Type | F4: Pages Per Minute
C5: 10 | F5: Up to 20 | G5: 21 - 30 | H5: 31 - 40 | I5: 41 - 50 | J5: 51 - 60 | K5: 61 - 70 | L5: 71 - 90 | M5: 91 - 110 | N5: 111 - 130 | O5: 131+
A6: Plan Development | C6: (Included) | E6: Single-function Mono | F6: 0.04 | G6: 0.03 | H6: 0.02 | I6: 0.01 | J6: 0.01 | K6: 0.01 | L6: 0.01 | M6: 0.01 | N6: 0.01 | O6: 0.01
A7: Hardware and Software Installation and Set-up | C7: (Included) | E7: Single-function Color | F7: 0.2 | G7: 0.15 | H7: 0.1 | I7: 0.1 | J7: 0.1 | K7: 0.1 | L7: 0.1 | M7: 0.1 | N7: 0.1 | O7: 0.1
A8: Device Mapping | C8: (Included) | E8: Multi-function Mono | F8: 0 | G8: 0 | H8: 0 | I8: 0 | J8: 0 | K8: 0 | L8: 0 | M8: 0 | N8: 0 | O8: 0
A9: IT Asset Registration | C9: (Included) | E9: Multi-function Color | F9: 0 | G9: 0 | H9: 0 | I9: 0 | J9: 0 | K9: 0 | L9: 0 | M9: 0 | N9: 0 | O9: 0
E10: Note: Cost Per Click rates do not include Equipment costs. They must only consist of parts, labor, and OEM Supplies.
A13: Remote Device Monitoring (Billed Monthly) | C13: Price Per Unit | E13: Cost Per Click w/Compatible Supplies (Billed Monthly)
C14: 0.1 | E14: Device Type | F14: Pages Per Minute
A15: Job Accounting | C15: (Included) | F15: Up to 20 | G15: 21 - 30 | H15: 31 - 40 | I15: 41 - 50 | J15: 51 - 60 | K15: 61 - 70 | L15: 71 - 90 | M15: 91 - 110 | N15: 111 - 130 | O15: 131+
A16: Automated Meter Reads | C16: (Included) | E16: Single-function Mono | F16: 0.04 | G16: 0.03 | H16: 0.02 | I16: 0.01 | J16: 0.01 | K16: 0.01 | L16: 0.01 | M16: 0.01 | N16: 0.01 | O16: 0.01
A17: Automated Toner Replenishment | C17: (Included) | E17: Single-function Color | F17: 0.2 | G17: 0.15 | H17: 0.1 | I17: 0.1 | J17: 0.1 | K17: 0.1 | L17: 0.1 | M17: 0.1 | N17: 0.1 | O17: 0.1
A18: Device Utilization Reporting | C18: (Included) | E18: Multi-function Mono | F18: 0 | G18: 0 | H18: 0 | I18: 0 | J18: 0 | K18: 0 | L18: 0 | M18: 0 | N18: 0 | O18: 0
A19: Automated Failure Alerts | C19: (Included) | E19: Multi-function Color | F19: 0 | G19: 0 | H19: 0 | I19: 0 | J19: 0 | K19: 0 | L19: 0 | M19: 0 | N19: 0 | O19: 0
A20: Online Reporting | C20: (Included) | E20: Note: Cost Per Click rates do not include Equipment costs. They must only consist of parts, labor, and Compatible Supplies.
A23: End-user Support (Billed Monthly) | C23: Price Per Hour
C24: 150
A25: Training | C25: (Included)
A26: Help Desk | C26: (Included)
A27: Application Trianing Support | C27: (Included)
A28: Note: Billable only AFTER the initial one (1) free hour
A30: Account Management (Billed Monthly) | C30: Price Per Unit
C31: 0
A32: Reporting | C32: (Included)
A33: Invoicing | C33: (Included)
A34: Customer Business Review | C34: (Included)
A35: Annual Business Case Review | C35: (Included)

Sheet GROUP A S&S Pricing
B1: KYOCERA Business Solutions America, Inc.
A2: Group A
A3: Multi-function Devices (MFD), A3
A4: Service and Supplies Pricing
A5: Includes B&W and Color/B&W Segments
A6: Service and Supply Pricing | C6: Segment 2 B&W (20 - 30) | D6: Segment 2 | F6: Segment 2 | H6: Segment 2 | J6: Segment 2 | L6: Segment 3 | M6: Segment 3 | N6: Segment 3 | O6: Segment 3 | P6: Segment 3 | R6: Segment 3 | T6: Segment 3 | V6: Segment 4 | W6: Segment 4 | Y6: Segment 5 | Z6: Segment 5 | AB6: Segment 6 | AC6: Segment 6 | AD6: Segment 6 | AF6: Segment 6 | AH6: Segment 7 | AI6: Segment 7 | AJ6: Segment 7 (71 - 90)
C7: (20 - 30) | D7: (20 - 30) | F7: (20 - 30) | H7: (20 - 30) | J7: (20 - 30) | L7: (31 - 40) | M7: (31 - 40) | N7: (31 - 40) | O7: (31 - 40) | P7: (31-40) | R7: (31-40) | T7: (31-40) | V7: (41 - 50) | W7: (41 - 50) | Y7: (51 - 60) | Z7: (51 - 60) | AB7: (61 - 70) | AC7: (61 - 70) | AD7: (61 - 70) | AF7: (61 - 70) | AH7: (71 - 90) | AI7: (71 - 90)
C8: B&W | D8: Color | E8: B&W | F8: Color | G8: B&W | H8: Color | I8: B&W | J8: Color | K8: B&W | L8: B&W | M8: B&W | N8: B&W | O8: B&W | P8: Color | Q8: B&W | R8: Color | S8: B&W | T8: Color | U8: B&W | V8: B&W | W8: Color | X8: B&W | Y8: B&W | Z8: Color | AA8: B&W | AB8: B&W | AC8: B&W | AD8: Color | AE8: B&W | AF8: Color | AG8: B&W | AH8: B&W | AI8: B&W | AJ8: Color | AK8: B&W
A9: Make | C9: KYOCERA | D9: KYOCERA | F9: KYOCERA | H9: KYOCERA | J9: KYOCERA | L9: KYOCERA | M9: KYOCERA | N9: KYOCERA | O9: KYOCERA | P9: KYOCERA | Q9: KYOCERA | R9: KYOCERA | T9: KYOCERA | V9: KYOCERA | W9: KYOCERA | Y9: KYOCERA | Z9: KYOCERA | AB9: KYOCERA | AC9: KYOCERA | AD9: KYOCERA | AF9: KYOCERA | AH9: KYOCERA | AI9: KYOCERA | AJ9: KYOCERA
A10: Model | C10: ECOSYS M4125idn | D10: ECOSYS M8124cidn | F10: ECOSYS M8130cidn | H10: TASKalfa/Copy Star 2553ci | J10: TASKalfa/Copy Star 2554ci | L10: ECOSYS M4132idn | M10: TASKalfa/Copy Star 3212i | N10: TASKalfa/Copy Star 4012i | O10: TASKalfa/Copy Star 4004i | P10: TASKalfa/Copy Star 3253ci | Q10: TASKalfa/Copy Star 3253ci | R10: TASKalfa/Copy Star 3554ci | T10: TASKalfa/Copy Star 4054ci | V10: TASKalfa/Copy Star 5004i | W10: TASKalfa/Copy Star 5054ci | Y10: TASKalfa/Copy Star 6004i | Z10: TASKalfa/Copy Star 6054ci | AB10: TASKalfa/Copy Star 7004i | AC10: TASKalfa/Copy Star 7003i | AD10: TASKalfa/Copy Star 7054ci | AF10: TASKalfa/Copy Star 7353ci | AH10: TASKalfa/Copy Star 8003i | AI10: TASKalfa/Copy Star 9003i | AJ10: TASKalfa/Copy Star 8353ci
A11: Maintenance Agreements
A12: Zero Base Charge | B12: Includes OEM toner, parts, labor (no staples) | C12: 0.0095 | D12: 0.07 | E12: 0.0098 | F12: 0.07 | G12: 0.0095 | H12: 0.05568 | I12: 0.007826 | J12: 0.0557 | K12: 0.0078 | L12: 0.0095 | M12: 0.0085 | N12: 0.0085 | O12: 0.006825 | P12: 0.05247 | Q12: 0.007826 | R12: 0.047 | S12: 0.0058 | T12: 0.0468 | U12: 0.0054 | V12: 0.0065 | W12: 0.0387 | X12: 0.0049 | Y12: 0.0058 | Z12: 0.0387 | AA12: 0.0046 | AB12: 0.0058 | AC12: 0.0051 | AD12: 0.0425 | AE12: 0.0068 | AF12: 0.0425 | AG12: 0.0068 | AH12: 0.0048 | AI12: 0.0047 | AJ12: 0.0425 | AK12: 0.0066
B13: Parts and labor only (no supplies) | C13: 0.006235555556 | D13: 0.006567592593 | F13: 0.006234259259 | H13: 0.006588888889 | J13: 0.0066 | L13: 0.006235555556 | M13: 0.006022222222 | N13: 0.006022222222 | O13: 0.005612063492 | P13: 0.007000888889 | R13: 0.0045 | T13: 0.004 | V13: 0.0051 | W13: 0.0037 | Y13: 0.0038 | Z13: 0.0033 | AB13: 0.0038 | AC13: 0.004006825397 | AD13: 0.0061 | AF13: 0.006110285714 | AH13: 0.003673492063 | AI13: 0.003562380952 | AJ13: 0.005910285714
B14: 11 x 17" impressions (counts as 2 clicks) | C14: 0.0095 | D14: 0.07 | E14: 0.0098 | F14: 0.07 | G14: 0.0095 | H14: 0.05568 | I14: 0.007826 | J14: 0.0557 | K14: 0.0078 | L14: 0.0095 | M14: 0.0085 | N14: 0.0085 | O14: 0.006825 | P14: 0.05247 | Q14: 0.007826 | R14: 0.047 | S14: 0.0058 | T14: 0.0468 | U14: 0.0054 | V14: 0.0065 | W14: 0.0387 | X14: 0.0049 | Y14: 0.0058 | Z14: 0.0387 | AA14: 0.0046 | AB14: 0.0058 | AC14: 0.0051 | AD14: 0.0425 | AE14: 0.0068 | AF14: 0.0425 | AG14: 0.0068 | AH14: 0.0048 | AI14: 0.0047 | AJ14: 0.0425 | AK14: 0.0066
B15: % Increase in rate for inclusion of staples | C15: 0.03157894737 | D15: 0.004285714286 | E15: 0.0306122449 | F15: 0.004285714286 | G15: 0.03157894737 | H15: 0.005387931034 | I15: 0.03833375926 | J15: 0.005387931034 | K15: 0.03833375926 | L15: 0.03157894737 | M15: 0.03529411765 | N15: 0.03529411765 | O15: 0.04395604396 | P15: 0.005717552887 | Q15: 0.03833375926 | R15: 0.00637755102 | S15: 0.05190311419 | T15: 0.00641025641 | U15: 0.05555555556 | V15: 0.04608294931 | W15: 0.007756948933 | X15: 0.06097560976 | Y15: 0.05188516084 | Z15: 0.007756948933 | AA15: 0.06493506494 | AB15: 0.05188516084 | AC15: 0.05882352941 | AD15: 0.007058823529 | AE15: 0.04411764706 | AF15: 0.007058823529 | AG15: 0.04411764706 | AH15: 0.0625 | AI15: 0.06382978723 | AJ15: 0.007058823529 | AK15: 0.04545454545
B16: % Increase in rate for Rural Service Zone | C16: 0%¹ | D16: 0%¹ | F16: 0%¹ | H16: 0%¹ | J16: 0%¹ | L16: 0%¹ | M16: 0%¹ | N16: 0%¹ | O16: 0%¹ | P16: 0%¹ | R16: 0%¹ | T16: 0%¹ | V16: 0%¹ | W16: 0%¹ | Y16: 0%¹ | Z16: 0%¹ | AB16: 0%¹ | AC16: 0%¹ | AD16: 0%¹ | AF16: 0%¹ | AH16: 0%¹ | AI16: 0%¹ | AJ16: 0%¹
B17: % Increase in rate for Remote Service Zone | C17: 0%² | D17: 0%² | F17: 0%² | H17: 0%² | J17: 0%² | L17: 0%² | M17: 0%² | N17: 0%² | O17: 0%² | P17: 0%² | R17: 0%² | T17: 0%² | V17: 0%² | W17: 0%² | Y17: 0%² | Z17: 0%² | AB17: 0%² | AC17: 0%² | AD17: 0%² | AF17: 0%² | AH17: 0%² | AI17: 0%² | AJ17: 0%²
A19: Flat Rate Fee | B19: Parts and labor only (no supplies) MONTHLY | C19: 24.31866667 | D19: 0 | E19: 24.31361111 | F19: 0 | G19: 24.31361111 | H19: 0 | I19: 51.39333333 | J19: 0 | K19: 51.39333333 | L19: 40.1258 | M19: 46.97333333 | N19: 46.97333333 | O19: 43.77409524 | P19: 0 | Q19: 68.25866667 | R19: 0 | S19: 43.577625 | T19: 0 | U19: 38.946375 | V19: 49.30095238 | W19: 0 | X19: 50.516375 | Y19: 59.81485714 | Z19: 0 | AA19: 51.883 | AB19: 59.81485714 | AC19: 125.0129524 | AD19: 0 | AE19: 131.0656286 | AF19: 0 | AG19: 131.0656286 | AH19: 164.756119 | AI19: 208.3992857 | AJ19: 0 | AK19: 207.4510286
B20: % Increase in rate for Rural Service Zone | C20: 0%¹ | D20: 0%¹ | F20: 0%¹ | H20: 0%¹ | J20: 0%¹ | L20: 0%¹ | M20: 0%¹ | N20: 0%¹ | O20: 0%¹ | P20: 0%¹ | R20: 0%¹ | T20: 0%¹ | V20: 0%¹ | W20: 0%¹ | Y20: 0%¹ | Z20: 0%¹ | AB20: 0%¹ | AC20: 0%¹ | AD20: 0%¹ | AF20: 0%¹ | AH20: 0%¹ | AI20: 0%¹ | AJ20: 0%¹
B21: % Increase in rate for Remote Service Zone | C21: 0%² | D21: 0%² | F21: 0%² | H21: 0%² | J21: 0%² | L21: 0%² | M21: 0%² | N21: 0%² | O21: 0%² | P21: 0%² | R21: 0%² | T21: 0%² | V21: 0%² | W21: 0%² | Y21: 0%² | Z21: 0%² | AB21: 0%² | AC21: 0%² | AD21: 0%² | AF21: 0%² | AH21: 0%² | AI21: 0%² | AJ21: 0%²
A23: Monthly Base Charge Option 1 | B23: Included Number of Clicks per Month | C23: 1000 | D23: 0 | E23: 675 | F23: 0 | G23: 1000 | H23: 0 | I23: 2000 | J23: 0 | K23: 2000 | L23: 1650 | M23: 2000 | N23: 2000 | O23: 2000 | P23: 0 | Q23: 2500 | R23: 0 | S23: 2500 | T23: 0 | U23: 2500 | V23: 2500 | W23: 0 | X23: 3500 | Y23: 4000 | Z23: 0 | AA23: 4000 | AB23: 4000 | AC23: 8000 | AD23: 0 | AE23: 5500 | AF23: 0 | AG23: 5500 | AH23: 11500 | AI23: 15000 | AJ23: 0 | AK23: 9000
B24: Base Charge - includes OEM toner, parts, labor (no staples) | C24: 9.31 | D24: 6.4827 | F24: 9.31 | H24: 15.33896 | J24: 15.4 | L24: 15.3615 | M24: 16.66 | N24: 16.66 | O24: 13.377 | P24: 19.1737 | R24: 14.25 | T24: 13.23 | V24: 15.9495 | W24: 16.8756 | Y24: 22.66544 | Z24: 18.1104 | AB24: 22.66544 | AC24: 39.984 | AD24: 36.652 | AF24: 36.652 | AH24: 54.096 | AI24: 69.09 | AJ24: 58.212
B25: Base Charge - parts and labor only (no supplies) | C25: 8.106222222 | D25: 5.7630625 | F25: 8.104537037 | H25: 14.49555556 | J25: 14.49555556 | L25: 12.3464 | M25: 14.45333333 | N25: 14.45333333 | O25: 12.34653968 | P25: 17.50222222 | R25: 11.25 | T25: 10.984875 | V25: 13.90539683 | W25: 14.24820833 | Y25: 18.40457143 | Z25: 15.964 | AB25: 18.40457143 | AC25: 35.26006349 | AD25: 33.60657143 | AF25: 33.60657143 | AH25: 50.69419048 | AI25: 64.12285714 | AJ25: 53.19257143
B26: Overage Rate | C26: 0.00931 | D26: 0.07 | E26: 0.009604 | F26: 0.07 | G26: 0.00931 | H26: 0.05568 | I26: 0.00766948 | J26: 0.0557 | K26: 0.0077 | L26: 0.00931 | M26: 0.00833 | N26: 0.00833 | O26: 0.0066885 | P26: 0.05247 | Q26: 0.00766948 | R26: 0.047 | S26: 0.0057 | T26: 0.0468 | U26: 0.005292 | V26: 0.0063798 | W26: 0.038675 | X26: 0.0048216 | Y26: 0.00566636 | Z26: 0.038675 | AA26: 0.0045276 | AB26: 0.00566636 | AC26: 0.004998 | AD26: 0.0425 | AE26: 0.006664 | AF26: 0.0425 | AG26: 0.006664 | AH26: 0.004704 | AI26: 0.004606 | AJ26: 0.0425 | AK26: 0.006468
B27: % Increase in rate for inclusion of staples | C27: 0.03222341568 | D27: 0.004285714286 | E27: 0.03123698459 | F27: 0.004285714286 | G27: 0.03222341568 | H27: 0.005387931034 | I27: 0.03911608088 | J27: 0.005387931034 | K27: 0.03911608088 | L27: 0.03222341568 | M27: 0.03601440576 | N27: 0.03601440576 | O27: 0.04485310608 | P27: 0.005717552887 | Q27: 0.03911608088 | R27: 0.00637755102 | S27: 0.05296236142 | T27: 0.00641025641 | U27: 0.0566893424 | V27: 0.04702341766 | W27: 0.007756948933 | X27: 0.06222000996 | Y27: 0.05294404168 | Z27: 0.007756948933 | AA27: 0.06626027034 | AB27: 0.05294404168 | AC27: 0.0600240096 | AD27: 0.007058823529 | AE27: 0.0450180072 | AF27: 0.007058823529 | AG27: 0.0450180072 | AH27: 0.0637755102 | AI27: 0.06513243595 | AJ27: 0.007058823529 | AK27: 0.04638218924
B28: % Increase in rate for Rural Service Zone | C28: 0%¹ | D28: 0%¹ | F28: 0%¹ | H28: 0%¹ | J28: 0%¹ | L28: 0%¹ | M28: 0%¹ | N28: 0%¹ | O28: 0%¹ | P28: 0%¹ | R28: 0%¹ | T28: 0%¹ | V28: 0%¹ | W28: 0%¹ | Y28: 0%¹ | Z28: 0%¹ | AB28: 0%¹ | AC28: 0%¹ | AD28: 0%¹ | AF28: 0%¹ | AH28: 0%¹ | AI28: 0%¹ | AJ28: 0%¹
B29: % Increase in rate for Remote Service Zone | C29: 0%² | D29: 0%² | F29: 0%² | H29: 0%² | J29: 0%² | L29: 0%² | M29: 0%² | N29: 0%² | O29: 0%² | P29: 0%² | R29: 0%² | T29: 0%² | V29: 0%² | W29: 0%² | Y29: 0%² | Z29: 0%² | AB29: 0%² | AC29: 0%² | AD29: 0%² | AF29: 0%² | AH29: 0%² | AI29: 0%² | AJ29: 0%²
A31: Monthly Base Charge Option 2 | B31: Included Number of Clicks per Month | C31: 2000 | D31: 0 | E31: 1350 | F31: 0 | G31: 2000 | H31: 0 | I31: 4000 | J31: 0 | K31: 4000 | L31: 3300 | M31: 4000 | N31: 4000 | O31: 4000 | P31: 0 | Q31: 5000 | R31: 0 | S31: 5000 | T31: 0 | U31: 5000 | V31: 5000 | W31: 0 | X31: 7000 | Y31: 8000 | Z31: 0 | AA31: 8000 | AB31: 8000 | AC31: 16000 | AD31: 0 | AE31: 11000 | AF31: 0 | AG31: 11000 | AH31: 23000 | AI31: 30000 | AJ31: 0 | AK31: 18000
B32: Base Charge - includes OEM toner, parts, labor (no staples) | C32: 18.24 | D32: 12.7008 | F32: 18.24 | H32: 30.05184 | J32: 30 | L32: 30.096 | M32: 32.64 | N32: 32.64 | O32: 26.208 | P32: 37.5648 | R32: 27.5 | T32: 25.92 | V32: 31.248 | W32: 33.0624 | Y32: 44.40576 | Z32: 35.4816 | AB32: 44.40576 | AC32: 78.336 | AD32: 71.808 | AF32: 71.808 | AH32: 105.984 | AI32: 135.36 | AJ32: 114.048
B33: Base Charge - parts and labor only (no supplies) | C33: 14.96533333 | D33: 10.6395 | F33: 14.96222222 | H33: 28.99111111 | J33: 28.99111111 | L33: 24.6928 | M33: 28.90666667 | N33: 28.90666667 | O33: 24.69307937 | P33: 35.00444444 | R33: 22.5 | T33: 21.96975 | V33: 27.81079365 | W33: 28.49641667 | Y33: 36.80914286 | Z33: 31.928 | AB33: 36.80914286 | AC33: 70.52012698 | AD33: 67.21314286 | AF33: 67.21314286 | AH33: 101.388381 | AI33: 128.2457143 | AJ33: 106.3851429
B34: Overage Rate | C34: 0.00912 | D34: 0.07 | E34: 0.009408 | F34: 0.07 | G34: 0.00912 | H34: 0.05568 | I34: 0.00751296 | J34: 0.0557 | K34: 0.0075 | L34: 0.00912 | M34: 0.00816 | N34: 0.00816 | O34: 0.006552 | P34: 0.05247 | Q34: 0.00751296 | R34: 0.047 | S34: 0.0055 | T34: 0.0468 | U34: 0.005184 | V34: 0.0062496 | W34: 0.038675 | X34: 0.0047232 | Y34: 0.00555072 | Z34: 0.038675 | AA34: 0.0044352 | AB34: 0.00555072 | AC34: 0.004896 | AD34: 0.0425 | AE34: 0.006528 | AF34: 0.0425 | AG34: 0.006528 | AH34: 0.004608 | AI34: 0.004512 | AJ34: 0.0425 | AK34: 0.006336
B35: % Increase in rate for inclusion of staples | C35: 0.03289473684 | D35: 0.004285714286 | E35: 0.0318877551 | F35: 0.004285714286 | G35: 0.03289473684 | H35: 0.005387931034 | I35: 0.03993099923 | J35: 0.005387931034 | K35: 0.03993099923 | L35: 0.03289473684 | M35: 0.03676470588 | N35: 0.03676470588 | O35: 0.04578754579 | P35: 0.005717552887 | Q35: 0.03993099923 | R35: 0.00637755102 | S35: 0.05406574394 | T35: 0.00641025641 | U35: 0.05787037037 | V35: 0.0480030722 | W35: 0.007756948933 | X35: 0.06351626016 | Y35: 0.05404704255 | Z35: 0.007756948933 | AA35: 0.06764069264 | AB35: 0.05404704255 | AC35: 0.0612745098 | AD35: 0.007058823529 | AE35: 0.04595588235 | AF35: 0.007058823529 | AG35: 0.04595588235 | AH35: 0.06510416667 | AI35: 0.0664893617 | AJ35: 0.007058823529 | AK35: 0.04734848485
B36: % Increase in rate for Rural Service Zone | C36: 0%¹ | D36: 0%¹ | F36: 0%¹ | H36: 0%¹ | J36: 0%¹ | L36: 0%¹ | M36: 0%¹ | N36: 0%¹ | O36: 0%¹ | P36: 0%¹ | R36: 0%¹ | T36: 0%¹ | V36: 0%¹ | W36: 0%¹ | Y36: 0%¹ | Z36: 0%¹ | AB36: 0%¹ | AC36: 0%¹ | AD36: 0%¹ | AF36: 0%¹ | AH36: 0%¹ | AI36: 0%¹ | AJ36: 0%¹
B37: % Increase in rate for Remote Service Zone | C37: 0%² | D37: 0%² | F37: 0%² | H37: 0%² | J37: 0%² | L37: 0%² | M37: 0%² | N37: 0%² | O37: 0%² | P37: 0%² | R37: 0%² | T37: 0%² | V37: 0%² | W37: 0%² | Y37: 0%² | Z37: 0%² | AB37: 0%² | AC37: 0%² | AD37: 0%² | AF37: 0%² | AH37: 0%² | AI37: 0%² | AJ37: 0%²
A39: Monthly Base Charge Option 3 | B39: Included Number of Clicks per Month | C39: 3000 | D39: 0 | E39: 2025 | F39: 0 | G39: 3000 | H39: 0 | I39: 6000 | J39: 0 | K39: 6000 | L39: 4950 | M39: 6000 | N39: 6000 | O39: 6000 | P39: 0 | Q39: 7500 | R39: 0 | S39: 7500 | T39: 0 | U39: 7500 | V39: 7500 | W39: 0 | X39: 10500 | Y39: 12000 | Z39: 0 | AA39: 12000 | AB39: 12000 | AC39: 24000 | AD39: 0 | AE39: 16500 | AF39: 0 | AG39: 16500 | AH39: 34500 | AI39: 45000 | AJ39: 0 | AK39: 27000
B40: Base Charge - includes OEM toner, parts, labor (no staples) | C40: 24.225 | D40: 16.86825 | F40: 24.225 | H40: 42.2604 | J40: 42 | L40: 39.97125 | M40: 45.9 | N40: 45.9 | O40: 36.855 | P40: 52.8255 | R40: 39 | T40: 36.45 | V40: 43.9425 | W40: 46.494 | Y40: 62.4456 | Z40: 49.896 | AB40: 62.4456 | AC40: 110.16 | AD40: 100.98 | AF40: 100.98 | AH40: 149.04 | AI40: 190.35 | AJ40: 160.38
B41: Base Charge - parts and labor only (no supplies) | C41: 20.57733333 | D41: 15.95925 | F41: 20.57305556 | H41: 39.53333333 | J41: 39.53333333 | L41: 33.9526 | M41: 39.74666667 | N41: 39.74666667 | O41: 33.67238095 | P41: 52.50666667 | R41: 33.75 | T41: 32.954625 | V41: 41.71619048 | W41: 42.744625 | Y41: 55.21371429 | Z41: 47.892 | AB41: 55.21371429 | AC41: 105.7801905 | AD41: 100.8197143 | AF41: 100.8197143 | AH41: 139.4090238 | AI41: 176.3378571 | AJ41: 159.5777143
B42: Overage Rate | C42: 0.008075 | D42: 0.07 | E42: 0.00833 | F42: 0.07 | G42: 0.008075 | H42: 0.05568 | I42: 0.0070434 | J42: 0.0557 | K42: 0.007 | L42: 0.008075 | M42: 0.00765 | N42: 0.00765 | O42: 0.0061425 | P42: 0.05247 | Q42: 0.0070434 | R42: 0.047 | S42: 0.0052 | T42: 0.0468 | U42: 0.00486 | V42: 0.005859 | W42: 0.038675 | X42: 0.004428 | Y42: 0.0052038 | Z42: 0.038675 | AA42: 0.004158 | AB42: 0.0052038 | AC42: 0.00459 | AD42: 0.0425 | AE42: 0.00612 | AF42: 0.0425 | AG42: 0.00612 | AH42: 0.00432 | AI42: 0.00423 | AJ42: 0.0425 | AK42: 0.00594
B43: % Increase in rate for inclusion of staples | C43: 0.03715170279 | D43: 0.004285714286 | E43: 0.03601440576 | F43: 0.004285714286 | G43: 0.03715170279 | H43: 0.005387931034 | I43: 0.04259306585 | J43: 0.005387931034 | K43: 0.04259306585 | L43: 0.03715170279 | M43: 0.03921568627 | N43: 0.03921568627 | O43: 0.04884004884 | P43: 0.005717552887 | Q43: 0.04259306585 | R43: 0.00637755102 | S43: 0.05767012687 | T43: 0.00641025641 | U43: 0.06172839506 | V43: 0.05120327701 | W43: 0.007756948933 | X43: 0.06775067751 | Y43: 0.05765017872 | Z43: 0.007756948933 | AA43: 0.07215007215 | AB43: 0.05765017872 | AC43: 0.06535947712 | AD43: 0.007058823529 | AE43: 0.04901960784 | AF43: 0.007058823529 | AG43: 0.04901960784 | AH43: 0.06944444444 | AI43: 0.07092198582 | AJ43: 0.007058823529 | AK43: 0.05050505051
B44: % Increase in rate for Rural Service Zone | C44: 0%¹ | D44: 0%¹ | F44: 0%¹ | H44: 0%¹ | J44: 0%¹ | L44: 0%¹ | M44: 0%¹ | N44: 0%¹ | O44: 0%¹ | P44: 0%¹ | R44: 0%¹ | T44: 0%¹ | V44: 0%¹ | W44: 0%¹ | Y44: 0%¹ | Z44: 0%¹ | AB44: 0%¹ | AC44: 0%¹ | AD44: 0%¹ | AF44: 0%¹ | AH44: 0%¹ | AI44: 0%¹ | AJ44: 0%¹
B45: % Increase in rate for Remote Service Zone | C45: 0%² | D45: 0%² | F45: 0%² | H45: 0%² | J45: 0%² | L45: 0%² | M45: 0%² | N45: 0%² | O45: 0%² | P45: 0%² | R45: 0%² | T45: 0%² | V45: 0%² | W45: 0%² | Y45: 0%² | Z45: 0%² | AB45: 0%² | AC45: 0%² | AD45: 0%² | AF45: 0%² | AH45: 0%² | AI45: 0%² | AJ45: 0%²
A46: Additional Service Coverage (per hour)
A47: Urban Service Zone | B47: 2 x 5 coverage (2 eight hour shifts, 5 days a week) | C47: $295.00³ | D47: $295.00³ | F47: $295.00³ | H47: $295.00³ | J47: $295.00³ | L47: $295.00³ | M47: $295.00³ | N47: $295.00³ | O47: $295.00³ | P47: $295.00³ | R47: $295.00³ | T47: $295.00³ | V47: $295.00³ | W47: $295.00³ | Y47: $295.00³ | Z47: $295.00³ | AB47: $295.00³ | AC47: $295.00³ | AD47: $295.00³ | AF47: $295.00³ | AH47: $295.00³ | AI47: $295.00³ | AJ47: $295.00³
B48: 3 x 5 coverage (3 eight hour shifts, 5 days a week) | C48: $590.00³ | D48: $590.00³ | F48: $590.00³ | H48: $590.00³ | J48: $590.00³ | L48: $590.00³ | M48: $590.00³ | N48: $590.00³ | O48: $590.00³ | P48: $590.00³ | R48: $590.00³ | T48: $590.00³ | V48: $590.00³ | W48: $590.00³ | Y48: $590.00³ | Z48: $590.00³ | AB48: $590.00³ | AC48: $590.00³ | AD48: $590.00³ | AF48: $590.00³ | AH48: $590.00³ | AI48: $590.00³ | AJ48: $590.00³
B49: 1 x 7 coverage (1 eight hour shift, 7 days a week) | C49: $295.00³ | D49: $295.00³ | F49: $295.00³ | H49: $295.00³ | J49: $295.00³ | L49: $295.00³ | M49: $295.00³ | N49: $295.00³ | O49: $295.00³ | P49: $295.00³ | R49: $295.00³ | T49: $295.00³ | V49: $295.00³ | W49: $295.00³ | Y49: $295.00³ | Z49: $295.00³ | AB49: $295.00³ | AC49: $295.00³ | AD49: $295.00³ | AF49: $295.00³ | AH49: $295.00³ | AI49: $295.00³ | AJ49: $295.00³
B50: 2 x 7 coverage (2 eight hour shifts, 7 days a week) | C50: $590.00³ | D50: $590.00³ | F50: $590.00³ | H50: $590.00³ | J50: $590.00³ | L50: $590.00³ | M50: $590.00³ | N50: $590.00³ | O50: $590.00³ | P50: $590.00³ | R50: $590.00³ | T50: $590.00³ | V50: $590.00³ | W50: $590.00³ | Y50: $590.00³ | Z50: $590.00³ | AB50: $590.00³ | AC50: $590.00³ | AD50: $590.00³ | AF50: $590.00³ | AH50: $590.00³ | AI50: $590.00³ | AJ50: $590.00³
B51: 3 x 7 coverage (3 eight hour shifts, 7 days a week) | C51: $885.00³ | D51: $885.00³ | F51: $885.00³ | H51: $885.00³ | J51: $885.00³ | L51: $885.00³ | M51: $885.00³ | N51: $885.00³ | O51: $885.00³ | P51: $885.00³ | R51: $885.00³ | T51: $885.00³ | V51: $885.00³ | W51: $885.00³ | Y51: $885.00³ | Z51: $885.00³ | AB51: $885.00³ | AC51: $885.00³ | AD51: $885.00³ | AF51: $885.00³ | AH51: $885.00³ | AI51: $885.00³ | AJ51: $885.00³
A53: Rural Service Zone | B53: 2 x 5 coverage (2 eight hour shifts, 5 days a week) | C53: $520 1+3 | D53: $520 1+3 | F53: $520 1+3 | H53: $520 1+3 | J53: $520 1+3 | L53: $5201+3 | M53: $5201+3 | N53: $5201+3 | O53: $5201+3 | P53: $5201+3 | R53: $5201+3 | T53: $5201+3 | V53: $5201+3 | W53: $5201+3 | Y53: $5201+3 | Z53: $5201+3 | AB53: $5201+3 | AC53: $5201+3 | AD53: $5201+3 | AF53: $5201+3 | AH53: $5201+3 | AI53: $5201+3 | AJ53: $5201+3
B54: 3 x 5 coverage (3 eight hour shifts, 5 days a week) | C54: $8151+3 | D54: $815 1+3 | F54: $815 1+3 | H54: $815 1+3 | J54: $815 1+3 | L54: $8151+3 | M54: $8151+3 | N54: $8151+3 | O54: $8151+3 | P54: $815 1+3 | R54: $815 1+3 | T54: $815 1+3 | V54: $8151+3 | W54: $815 1+3 | Y54: $8151+3 | Z54: $815 1+3 | AB54: $8151+3 | AC54: $8151+3 | AD54: $815 1+3 | AF54: $815 1+3 | AH54: $8151+3 | AI54: $8151+3 | AJ54: $815 1+3
B55: 1 x 7 coverage (1 eight hour shift, 7 days a week) | C55: $5201+3 | D55: $5201+3 | F55: $5201+3 | H55: $5201+3 | J55: $5201+3 | L55: $5201+3 | M55: $5201+3 | N55: $5201+3 | O55: $5201+3 | P55: $5201+3 | R55: $5201+3 | T55: $5201+3 | V55: $5201+3 | W55: $5201+3 | Y55: $5201+3 | Z55: $5201+3 | AB55: $5201+3 | AC55: $5201+3 | AD55: $5201+3 | AF55: $5201+3 | AH55: $5201+3 | AI55: $5201+3 | AJ55: $5201+3
B56: 2 x 7 coverage (2 eight hour shifts, 7 days a week) | C56: $8151+3 | D56: $8151+3 | F56: $8151+3 | H56: $8151+3 | J56: $8151+3 | L56: $8151+3 | M56: $8151+3 | N56: $8151+3 | O56: $8151+3 | P56: $8151+3 | R56: $8151+3 | T56: $8151+3 | V56: $8151+3 | W56: $8151+3 | Y56: $8151+3 | Z56: $8151+3 | AB56: $8151+3 | AC56: $8151+3 | AD56: $8151+3 | AF56: $8151+3 | AH56: $8151+3 | AI56: $8151+3 | AJ56: $8151+3
B57: 3 x 7 coverage (3 eight hour shifts, 7 days a week) | C57: $1110 1+3 | D57: $1110 1+3 | F57: $1110 1+3 | H57: $1110 1+3 | J57: $1110 1+3 | L57: $1110 1+3 | M57: $1110 1+3 | N57: $1110 1+3 | O57: $1110 1+3 | P57: $1110 1+3 | R57: $1110 1+3 | T57: $1110 1+3 | V57: $1110 1+3 | W57: $1110 1+3 | Y57: $1110 1+3 | Z57: $1110 1+3 | AB57: $1110 1+3 | AC57: $1110 1+3 | AD57: $1110 1+3 | AF57: $1110 1+3 | AH57: $1110 1+3 | AI57: $1110 1+3 | AJ57: $1110 1+3
A59: Remote Service Zone | B59: 2 x 5 coverage (2 eight hour shifts, 5 days a week) | C59: $745 2+3 | D59: $745 2+3 | F59: $745 2+3 | H59: $745 2+3 | J59: $745 2+3 | L59: $745 2+3 | M59: $745 2+3 | N59: $745 2+3 | O59: $745 2+3 | P59: $745 2+3 | R59: $745 2+3 | T59: $745 2+3 | V59: $745 2+3 | W59: $745 2+3 | Y59: $745 2+3 | Z59: $745 2+3 | AB59: $745 2+3 | AC59: $745 2+3 | AD59: $745 2+3 | AF59: $745 2+3 | AH59: $745 2+3 | AI59: $745 2+3 | AJ59: $745 2+3
B60: 3 x 5 coverage (3 eight hour shifts, 5 days a week) | C60: $1040 2+3 | D60: $1040 2+3 | F60: $1040 2+3 | G60: $1040 2+3 | H60: $1040 2+3 | I60: $1040 2+3 | J60: $1040 2+3 | K60: $1040 2+3 | L60: $1040 2+3 | M60: $1040 2+3 | N60: $1040 2+3 | O60: $1040 2+3 | P60: $1040 2+3 | Q60: $1040 2+3 | R60: $1040 2+3 | S60: $1040 2+3 | T60: $1040 2+3 | U60: $1040 2+3 | V60: $1040 2+3 | W60: $1040 2+3 | X60: $1040 2+3 | Y60: $1040 2+3 | Z60: $1040 2+3 | AA60: $1040 2+3 | AB60: $1040 2+3 | AC60: $1040 2+3 | AD60: $1040 2+3 | AE60: $1040 2+3 | AF60: $1040 2+3 | AG60: $1040 2+3 | AH60: $1040 2+3 | AI60: $1040 2+3 | AJ60: $1040 2+3 | AK60: $1040 2+3
B61: 1 x 7 coverage (1 eight hour shift, 7 days a week) | C61: $745 2+3 | D61: $745 2+3 | F61: $745 2+3 | H61: $745 2+3 | J61: $745 2+3 | L61: $745 2+3 | M61: $745 2+3 | N61: $745 2+3 | O61: $745 2+3 | P61: $745 2+3 | R61: $745 2+3 | T61: $745 2+3 | V61: $745 2+3 | W61: $745 2+3 | Y61: $745 2+3 | Z61: $745 2+3 | AB61: $745 2+3 | AC61: $745 2+3 | AD61: $745 2+3 | AF61: $745 2+3 | AH61: $745 2+3 | AI61: $745 2+3 | AJ61: $745 2+3
B62: 2 x 7 coverage (2 eight hour shifts, 7 days a week) | C62: $1040 2+3 | D62: $1040 2+3 | F62: $1040 2+3 | G62: $1040 2+3 | H62: $1040 2+3 | I62: $1040 2+3 | J62: $1040 2+3 | K62: $1040 2+3 | L62: $1040 2+3 | M62: $1040 2+3 | N62: $1040 2+3 | O62: $1040 2+3 | P62: $1040 2+3 | Q62: $1040 2+3 | R62: $1040 2+3 | S62: $1040 2+3 | T62: $1040 2+3 | U62: $1040 2+3 | V62: $1040 2+3 | W62: $1040 2+3 | X62: $1040 2+3 | Y62: $1040 2+3 | Z62: $1040 2+3 | AA62: $1040 2+3 | AB62: $1040 2+3 | AC62: $1040 2+3 | AD62: $1040 2+3 | AE62: $1040 2+3 | AF62: $1040 2+3 | AG62: $1040 2+3 | AH62: $1040 2+3 | AI62: $1040 2+3 | AJ62: $1040 2+3 | AK62: $1040 2+3
B63: 3 x 7 coverage (3 eight hour shifts, 7 days a week) | C63: $1335 2+3 | D63: $1335 2+3 | F63: $1335 2+3 | H63: $1335 2+3 | J63: $1335 2+3 | L63: $1335 2+3 | M63: $1335 2+3 | N63: $1335 2+3 | O63: $1335 2+3 | P63: $1335 2+3 | R63: $1335 2+3 | T63: $1335 2+3 | V63: $1335 2+3 | W63: $1335 2+3 | Y63: $1335 2+3 | Z63: $1335 2+3 | AB63: $1335 2+3 | AC63: $1335 2+3 | AD63: $1335 2+3 | AF63: $1335 2+3 | AH63: $1335 2+3 | AI63: $1335 2+3 | AJ63: $1335 2+3
A64: Service Calls not covered under the Maintenance Agreement
A65: Urban Service Zone | B65: Price Per Hour | C65: 150 | D65: 150 | F65: 150 | G65: 150 | H65: 150 | I65: 150 | J65: 150 | K65: 150 | L65: 150 | M65: 150 | N65: 150 | O65: 150 | P65: 150 | Q65: 150 | R65: 150 | S65: 150 | T65: 150 | U65: 150 | V65: 150 | W65: 150 | X65: 150 | Y65: 150 | Z65: 150 | AA65: 150 | AB65: 150 | AC65: 150 | AD65: 150 | AF65: 150 | AH65: 150 | AI65: 150 | AJ65: 150
A67: Rural Service Zone | B67: Flat Rate Charge | C67: $225 1 | D67: $225 1 | E67: $225 1 | F67: $225 1 | G67: $225 1 | H67: $225 1 | I67: $225 1 | J67: $225 1 | K67: $225 1 | L67: $225 1 | M67: $225 1 | N67: $225 1 | O67: $225 1 | P67: $225 1 | Q67: $225 1 | R67: $225 1 | S67: $225 1 | T67: $225 1 | U67: $225 1 | V67: $225 1 | W67: $225 1 | X67: $225 1 | Y67: $225 1 | Z67: $225 1 | AA67: $225 1 | AB67: $225 1 | AC67: $225 1 | AD67: $225 1 | AE67: $225 1 | AF67: $225 1 | AG67: $225 1 | AH67: $225 1 | AI67: $225 1 | AJ67: $225 1 | AK67: $225 1
B68: Price Per Hour | C68: $225 1 | D68: $225 1 | E68: $225 1 | F68: $225 1 | G68: $225 1 | H68: $225 1 | I68: $225 1 | J68: $225 1 | K68: $225 1 | L68: $225 1 | M68: $225 1 | N68: $225 1 | O68: $225 1 | P68: $225 1 | Q68: $225 1 | R68: $225 1 | S68: $225 1 | T68: $225 1 | U68: $225 1 | V68: $225 1 | W68: $225 1 | X68: $225 1 | Y68: $225 1 | Z68: $225 1 | AA68: $225 1 | AB68: $225 1 | AC68: $225 1 | AD68: $225 1 | AE68: $225 1 | AF68: $225 1 | AG68: $225 1 | AH68: $225 1 | AI68: $225 1 | AJ68: $225 1 | AK68: $225 1
A70: Remote Service Zone | B70: Flat Rate Charge | C70: $450 2 | D70: $450 2 | E70: $450 2 | F70: $450 2 | G70: $450 2 | H70: $450 2 | I70: $450 2 | J70: $450 2 | K70: $450 2 | L70: $450 2 | M70: $450 2 | N70: $450 2 | O70: $450 2 | P70: $450 2 | Q70: $450 2 | R70: $450 2 | S70: $450 2 | T70: $450 2 | U70: $450 2 | V70: $450 2 | W70: $450 2 | X70: $450 2 | Y70: $450 2 | Z70: $450 2 | AA70: $450 2 | AB70: $450 2 | AC70: $450 2 | AD70: $450 2 | AE70: $450 2 | AF70: $450 2 | AG70: $450 2 | AH70: $450 2 | AI70: $450 2 | AJ70: $450 2 | AK70: $450 2
B71: Price Per Hour | C71: $450 2 | D71: $450 2 | E71: $450 2 | F71: $450 2 | G71: $450 2 | H71: $450 2 | I71: $450 2 | J71: $450 2 | K71: $450 2 | L71: $450 2 | M71: $450 2 | N71: $450 2 | O71: $450 2 | P71: $450 2 | Q71: $450 2 | R71: $450 2 | S71: $450 2 | T71: $450 2 | U71: $450 2 | V71: $450 2 | W71: $450 2 | X71: $450 2 | Y71: $450 2 | Z71: $450 2 | AA71: $450 2 | AB71: $450 2 | AC71: $450 2 | AD71: $450 2 | AE71: $450 2 | AF71: $450 2 | AG71: $450 2 | AH71: $450 2 | AI71: $450 2 | AJ71: $450 2 | AK71: $450 2
A72: Accessory Installation/Maintenance (per hour)
A73: Additional Option (1,000 Sheets Finisher) | C73: 150 | D73: 150 | E73: 150 | F73: 150 | G73: 150 | H73: 150 | I73: 150 | J73: 150 | K73: 150 | L73: 150 | M73: 150 | N73: 150 | O73: 150 | P73: 150 | Q73: 150 | R73: 150 | S73: 150 | T73: 150 | U73: 150 | V73: 150 | W73: 150 | X73: 150 | Y73: 150 | Z73: 150 | AA73: 150 | AB73: 150 | AC73: 150 | AD73: 150 | AE73: 150 | AF73: 150 | AG73: 150 | AH73: 150 | AI73: 150 | AJ73: 150 | AK73: 150
A74: Additional Option (3,000 Sheets Finisher) | C74: 150 | D74: 150 | E74: 150 | F74: 150 | G74: 150 | H74: 150 | I74: 150 | J74: 150 | K74: 150 | L74: 150 | M74: 150 | N74: 150 | O74: 150 | P74: 150 | Q74: 150 | R74: 150 | S74: 150 | T74: 150 | U74: 150 | V74: 150 | W74: 150 | X74: 150 | Y74: 150 | Z74: 150 | AA74: 150 | AB74: 150 | AC74: 150 | AD74: 150 | AE74: 150 | AF74: 150 | AG74: 150 | AH74: 150 | AI74: 150 | AJ74: 150 | AK74: 150
A75: Additional Option (4,000 Sheets Finisher) | C75: 150 | D75: 150 | E75: 150 | F75: 150 | G75: 150 | H75: 150 | I75: 150 | J75: 150 | K75: 150 | L75: 150 | M75: 150 | N75: 150 | O75: 150 | P75: 150 | Q75: 150 | R75: 150 | S75: 150 | T75: 150 | U75: 150 | V75: 150 | W75: 150 | X75: 150 | Y75: 150 | Z75: 150 | AA75: 150 | AB75: 150 | AC75: 150 | AD75: 150 | AE75: 150 | AF75: 150 | AG75: 150 | AH75: 150 | AI75: 150 | AJ75: 150 | AK75: 150
A76: ADF (Reversible) | C76: 150 | D76: 150 | E76: 150 | F76: 150 | G76: 150 | H76: 150 | I76: 150 | J76: 150 | K76: 150 | L76: 150 | M76: 150 | N76: 150 | O76: 150 | P76: 150 | Q76: 150 | R76: 150 | S76: 150 | T76: 150 | U76: 150 | V76: 150 | W76: 150 | X76: 150 | Y76: 150 | Z76: 150 | AA76: 150 | AB76: 150 | AC76: 150 | AD76: 150 | AE76: 150 | AF76: 150 | AG76: 150 | AH76: 150 | AI76: 150 | AJ76: 150 | AK76: 150
A77: RADF (Dual Scan) | C77: 150 | D77: 150 | E77: 150 | F77: 150 | G77: 150 | H77: 150 | I77: 150 | J77: 150 | K77: 150 | L77: 150 | M77: 150 | N77: 150 | O77: 150 | P77: 150 | Q77: 150 | R77: 150 | S77: 150 | T77: 150 | U77: 150 | V77: 150 | W77: 150 | X77: 150 | Y77: 150 | Z77: 150 | AA77: 150 | AB77: 150 | AC77: 150 | AD77: 150 | AE77: 150 | AF77: 150 | AG77: 150 | AH77: 150 | AI77: 150 | AJ77: 150 | AK77: 150
A78: Bypass Paper Supply (PF-7130 Multi-Media) | C78: 150 | D78: 150 | E78: 150 | F78: 150 | G78: 150 | H78: 150 | I78: 150 | J78: 150 | K78: 150 | L78: 150 | M78: 150 | N78: 150 | O78: 150 | P78: 150 | Q78: 150 | R78: 150 | S78: 150 | T78: 150 | U78: 150 | V78: 150 | W78: 150 | X78: 150 | Y78: 150 | Z78: 150 | AA78: 150 | AB78: 150 | AC78: 150 | AD78: 150 | AE78: 150 | AF78: 150 | AG78: 150 | AH78: 150 | AI78: 150 | AJ78: 150 | AK78: 150
A79: Large Capacity Tray | C79: 150 | D79: 150 | E79: 150 | F79: 150 | G79: 150 | H79: 150 | I79: 150 | J79: 150 | K79: 150 | L79: 150 | M79: 150 | N79: 150 | O79: 150 | P79: 150 | Q79: 150 | R79: 150 | S79: 150 | T79: 150 | U79: 150 | V79: 150 | W79: 150 | X79: 150 | Y79: 150 | Z79: 150 | AA79: 150 | AB79: 150 | AC79: 150 | AD79: 150 | AE79: 150 | AF79: 150 | AG79: 150 | AH79: 150 | AI79: 150 | AJ79: 150 | AK79: 150
A80: Facsimile Kit | C80: 150 | D80: 150 | E80: 150 | F80: 150 | G80: 150 | H80: 150 | I80: 150 | J80: 150 | K80: 150 | L80: 150 | M80: 150 | N80: 150 | O80: 150 | P80: 150 | Q80: 150 | R80: 150 | S80: 150 | T80: 150 | U80: 150 | V80: 150 | W80: 150 | X80: 150 | Y80: 150 | Z80: 150 | AA80: 150 | AB80: 150 | AC80: 150 | AD80: 150 | AE80: 150 | AF80: 150 | AG80: 150 | AH80: 150 | AI80: 150 | AJ80: 150 | AK80: 150
A81: Additional Paper Drawer (500 x 2 sheets) | C81: 150 | D81: 150 | E81: 150 | F81: 150 | G81: 150 | H81: 150 | I81: 150 | J81: 150 | K81: 150 | L81: 150 | M81: 150 | N81: 150 | O81: 150 | P81: 150 | Q81: 150 | R81: 150 | S81: 150 | T81: 150 | U81: 150 | V81: 150 | W81: 150 | X81: 150 | Y81: 150 | Z81: 150 | AA81: 150 | AB81: 150 | AC81: 150 | AD81: 150 | AE81: 150 | AF81: 150 | AG81: 150 | AH81: 150 | AI81: 150 | AJ81: 150 | AK81: 150
A82: Paper-Feed Unit (1500 x 2 sheets) | C82: 150 | D82: 150 | E82: 150 | F82: 150 | G82: 150 | H82: 150 | I82: 150 | J82: 150 | K82: 150 | L82: 150 | M82: 150 | N82: 150 | O82: 150 | P82: 150 | Q82: 150 | R82: 150 | S82: 150 | T82: 150 | U82: 150 | V82: 150 | W82: 150 | X82: 150 | Y82: 150 | Z82: 150 | AA82: 150 | AB82: 150 | AC82: 150 | AD82: 150 | AE82: 150 | AF82: 150 | AG82: 150 | AH82: 150 | AI82: 150 | AJ82: 150 | AK82: 150
A83: Software Maintenance (per month) - excludes updates and patches, which are free to End-User
A84: *Server Software Maintenance-KYOCERA Net Manager 1 device, 1609AK0UN8, Server license Maintenance for 1 device ( Paid upfront in full) | C84: 1.83 | D84: 1.83 | F84: 1.83 | H84: 1.83 | J84: 1.83 | L84: 1.83 | M84: 1.83 | N84: 1.83 | O84: 1.83 | P84: 1.83 | R84: 1.83 | T84: 1.83 | V84: 1.83 | W84: 1.83 | Y84: 1.83 | Z84: 1.83 | AB84: 1.83 | AC84: 1.83 | AD84: 1.83 | AF84: 1.83 | AH84: 1.83 | AI84: 1.83 | AJ84: 1.83
A85: *Device Software Maintenance, KYOCERA Net Manager 1 device,1609AK0UNN,Device license Maintenance for 1 device( ( Paid upfront in full)) | C85: 3.92 | D85: 3.92 | F85: 3.92 | H85: 3.92 | J85: 3.92 | L85: 3.92 | M85: 3.92 | N85: 3.92 | O85: 3.92 | P85: 3.92 | R85: 3.92 | T85: 3.92 | V85: 3.92 | W85: 3.92 | Y85: 3.92 | Z85: 3.92 | AB85: 3.92 | AC85: 3.92 | AD85: 3.92 | AF85: 3.92 | AH85: 3.92 | AI85: 3.92 | AJ85: 3.92
A86: End-User Training and Support (per hour) - beyond the required one free hour
A87: Additional End-User taining on Device and/or software | C87: 150 | D87: 150 | F87: 150 | H87: 150 | J87: 150 | L87: 150 | M87: 150 | N87: 150 | O87: 150 | P87: 150 | R87: 150 | T87: 150 | V87: 150 | W87: 150 | Y87: 150 | Z87: 150 | AB87: 150 | AC87: 150 | AD87: 150 | AF87: 150 | AH87: 150 | AI87: 150 | AJ87: 150
A88: After hours technical phone support | C88: 295 | D88: 295 | F88: 295 | H88: 295 | J88: 295 | L88: 295 | M88: 295 | N88: 295 | O88: 295 | P88: 295 | R88: 295 | T88: 295 | V88: 295 | W88: 295 | Y88: 295 | Z88: 295 | AB88: 295 | AC88: 295 | AD88: 295 | AF88: 295 | AH88: 295 | AI88: 295 | AJ88: 295
A89: Additional Services
A90: Equipment Move Service Zone 2 | B90: Flat Rate Charge | C90: 400 | D90: 400 | F90: 400 | H90: 400 | J90: 400 | L90: 400 | M90: 400 | N90: 400 | O90: 400 | P90: 400 | R90: 400 | T90: 400 | V90: 400 | W90: 400 | Y90: 400 | Z90: 400 | AB90: 400 | AC90: 400 | AD90: 400 | AF90: 400 | AH90: 400 | AI90: 400 | AJ90: 400
B91: Price Per Hour | C91: 150 | D91: 150 | F91: 150 | G91: 150 | H91: 150 | I91: 150 | J91: 150 | K91: 150 | L91: 150 | M91: 150 | N91: 150 | O91: 150 | P91: 150 | Q91: 150 | R91: 150 | S91: 150 | T91: 150 | U91: 150 | V91: 150 | W91: 150 | X91: 150 | Y91: 150 | Z91: 150 | AA91: 150 | AB91: 150 | AC91: 150 | AD91: 150 | AE91: 150 | AF91: 150 | AG91: 150 | AH91: 150 | AI91: 150 | AJ91: 150 | AK91: 150
A93: Equipment Move Service Zone 3 | B93: Flat Rate Charge | C93: 700 | D93: 700 | F93: 700 | H93: 700 | J93: 700 | L93: 700 | M93: 700 | N93: 700 | O93: 700 | P93: 700 | R93: 700 | T93: 700 | V93: 700 | W93: 700 | Y93: 700 | Z93: 700 | AB93: 700 | AC93: 700 | AD93: 700 | AF93: 700 | AH93: 700 | AI93: 700 | AJ93: 700
B94: Price Per Hour | C94: 150 | D94: 150 | F94: 150 | H94: 150 | J94: 150 | L94: 150 | M94: 150 | N94: 150 | O94: 150 | P94: 150 | R94: 150 | T94: 150 | V94: 150 | W94: 150 | Y94: 150 | Z94: 150 | AB94: 150 | AC94: 150 | AD94: 150 | AF94: 150 | AH94: 150 | AI94: 150 | AJ94: 150
A96: Hard Drive Removal and Surrender | B96: Flat Rate Charge | C96: 375 | D96: 375 | E96: 375 | F96: 375 | H96: 375 | I96: 375 | J96: 375 | K96: 375 | L96: 375 | M96: 375 | N96: 375 | O96: 375 | P96: 375 | Q96: 375 | R96: 375 | S96: 375 | T96: 375 | U96: 375 | V96: 375 | W96: 375 | X96: 375 | Y96: 375 | Z96: 375 | AA96: 375 | AB96: 375 | AC96: 375 | AD96: 375 | AE96: 375 | AF96: 375 | AG96: 375 | AH96: 375 | AI96: 375 | AJ96: 375 | AK96: 375
A99: Notes:
A100: ¹ Plus $225 per incident, for Rural Service Zone travel.
A101: ² Plus $450 per incident, for Remote Service Zone travel.
A102: 3 Additional Service Coverage NOTE : There is an additional flat fee charge of $150 per incident, for all additional shift coverage plans. ( Additional shift coverage is subject to availabilty )
A103: Color S&S CPC's are billed from copy 1 on all models and all options (NO MINIMUM VOLUME/ NO BASE)
A104: * KYOCERA Net Manager Requires an SOW to install plus Server Licence $112 and maintenance

Sheet GROUP B S&S PRICING
B1: KYOCERA Document Solutions America, Inc.
A2: Group B
A3: Multi-function Devices (MFD), A4
A4: Service and Supplies Pricing
A5: Includes B&W and Color/B&W Segments
A6: Service and Supply Pricing | C6: Segment 2 | E6: Segment 2 | G6: Segment 3 | H6: Segment 3 | J6: Segment 3 | L6: Segment 3 | N6: Segment 3 | P6: Segment 3 | R6: Segment 4 | S6: Segment 4 | T6: Segment 4 | U6: Segment 4 | V6: Segment 4 | W6: Segment 4 | Y6: Segment 5 | Z6: Segment 6 | AA6: Segment 6
C7: (21 - 30) | E7: (21 - 30) | G7: (31 - 40) | H7: (31 - 40) | J7: (31 - 40) | L7: (31 - 40) | N7: (31 - 40) | P7: (31 - 40) | R7: (41 - 50) | S7: (41 - 50) | T7: (41 - 50) | U7: (41 - 50) | V7: (41 - 50) | W7: (41 - 50) | Y7: (51 - 60) | Z7: (61+) | AA7: (61+)
C8: Color | D8: B&W | E8: Color | F8: B&W | G8: B&W | H8: Color | I8: B&W | J8: Color | K8: B&W | L8: Color | M8: B&W | N8: Color | O8: B&W | P8: Color | Q8: B&W | R8: B&W | S8: B&W | T8: B&W | U8: B&W | V8: B&W | W8: Color | X8: B&W | Y8: B&W | Z8: B&W | AA8: B&W
A9: Make | C9: KYOCERA | E9: KYOCERA | G9: KYOCERA | H9: KYOCERA | J9: KYOCERA | L9: KYOCERA | N9: KYOCERA | P9: KYOCERA | R9: KYOCERA | S9: KYOCERA | U9: KYOCERA | V9: KYOCERA | W9: KYOCERA | Y9: KYOCERA | Z9: KYOCERA | AA9: KYOCERA
A10: Model | C10: ECOSYS M5521cdw | E10: ECOSYS M5526cdw | G10: ECOSYS M2635dw | H10: ECOSYS M6630cidn | J10: ECOSYS M6235cidn | L10: ECOSYS M6635cidn | N10: TASKalfa/Copy Star 308ci | P10: TASKalfa/Copy Star 358ci | R10: ECOSYS M2040dn | S10: ECOSYS M2540dw | T10: ECOSYS M2640idw | U10: ECOSYS M3145idn | V10: ECOSYS M3645idn | W10: TASKalfa/Copy Star 408ci | Y10: ECOSYS M3655idn | Z10: ECOSYS M3860idn | AA10: ECOSYS M3860idnf
A11: Maintenance Agreements
A12: Zero Base Charge | B12: Includes OEM toner, parts, labor (no staples) | C12: 0.19 | D12: 0.0397 | E12: 0.13 | F12: 0.024 | G12: 0.0343 | H12: 0.0742 | I12: 0.015 | J12: 0.0738 | K12: 0.015 | L12: 0.07 | M12: 0.013 | N12: 0.0738 | O12: 0.00747 | P12: 0.04293 | Q12: 0.0072 | R12: 0.018 | S12: 0.018 | T12: 0.018 | U12: 0.01 | V12: 0.01 | W12: 0.0399 | X12: 0.006 | Y12: 0.0065 | Z12: 0.0055 | AA12: 0.0055
B13: Parts and labor only (no supplies) | C13: 0.01104166667 | E13: 0.01104166667 | G13: 0.01988888889 | H13: 0.006998611111 | J13: 0.009641880342 | L13: 0.009645299145 | N13: 0.006577777778 | P13: 0.006022222222 | R13: 0.01143209877 | S13: 0.01143209877 | T13: 0.01143209877 | U13: 0.006386666667 | V13: 0.006386666667 | W13: 0.005056111111 | Y13: 0.00464021164 | Z13: 0.003066666667 | AA13: 0.003066666667
B14: % Increase in rate for inclusion of staples | C14: 0 | E14: 0 | G14: 0 | H14: 0.004043126685 | I14: 0.02 | J14: 0.00406504065 | K14: 0.02 | L14: 0.004285714286 | M14: 0.02307692308 | N14: 0.00406504065 | O14: 0.04016064257 | P14: 0.006988120196 | Q14: 0.04166666667 | U14: 0.03 | V14: 0.03 | W14: 0.007518796992 | X14: 0.05 | Y14: 0.04615384615 | Z14: 0.05454545455 | AA14: 0.05454545455
B15: % Increase in rate for Rural Service Zone | C15: 0%¹ | E15: 0%¹ | G15: 0%¹ | H15: 0%¹ | J15: 0%¹ | L15: 0%¹ | N15: 0%¹ | P15: 0%¹ | R15: 0%¹ | S15: 0%¹ | T15: 0%¹ | U15: 0%¹ | V15: 0%¹ | W15: 0%¹ | Y15: 0%¹ | Z15: 0%¹ | AA15: 0%¹
B16: % Increase in rate for Remote Service Zone | C16: 0%² | E16: 0%² | G16: 0%² | H16: 0%² | J16: 0%² | L16: 0%² | N16: 0%² | P16: 0%² | R16: 0%² | S16: 0%² | T16: 0%² | U16: 0%² | V16: 0%² | W16: 0%² | Y16: 0%² | Z16: 0%² | AA16: 0%²
A18: Flat Rate Fee | B18: Parts and labor only (no supplies)per month | C18: 34.78125 | E18: 34.78125 | G18: 38.78333333 | H18: 26.24479167 | J18: 57.85128205 | L18: 57.87179487 | N18: 29.6 | P18: 29.81 | R18: 22.29259259 | S18: 22.29259259 | T18: 22.29259259 | U18: 38.32 | V18: 23.95 | W18: 28.06141667 | Y18: 27.84126984 | Z18: 23 | AA18: 23
B19: % Increase in rate for Rural Service Zone | C19: 0%¹ | E19: 0%¹ | G19: 0%¹ | H19: 0%¹ | J19: 0%¹ | L19: 0%¹ | N19: 0%¹ | P19: 0%¹ | R19: 0%¹ | S19: 0%¹ | T19: 0%¹ | U19: 0%¹ | V19: 0%¹ | W19: 0%¹ | Y19: 0%¹ | Z19: 0%¹ | AA19: 0%¹
B20: % Increase in rate for Remote Service Zone | C20: 0%² | E20: 0%² | G20: 0%² | H20: 0%² | J20: 0%² | L20: 0%² | N20: 0%² | P20: 0%² | R20: 0%² | S20: 0%² | T20: 0%² | U20: 0%² | V20: 0%² | W20: 0%² | Y20: 0%² | Z20: 0%² | AA20: 0%²
A22: Monthly Base Charge Option 1 | B22: Included Number of Clicks per Month | C22: 0 | D22: 1050 | E22: 0 | F22: 1050 | G22: 650 | H22: 0 | I22: 1250 | J22: 0 | K22: 2000 | L22: 0 | M22: 2000 | N22: 0 | O22: 1500 | P22: 0 | Q22: 1650 | R22: 650 | S22: 650 | T22: 650 | U22: 2000 | V22: 1250 | W22: 0 | X22: 1850 | Y22: 2000 | Z22: 2500 | AA22: 2500
B23: Base Charge - includes OEM toner, parts, labor (no staples) | C23: 40.8513 | E23: 24.696 | G23: 21.8491 | H23: 18.375 | J23: 29.4 | L23: 25.48 | N23: 10.9809 | P23: 11.6424 | R23: 11.466 | S23: 11.466 | T23: 11.466 | U23: 19.6 | V23: 12.25 | W23: 10.878 | Y23: 12.74 | Z23: 13.475 | AA23: 13.475
B24: Base Charge - parts and labor only (no supplies) | C24: 15.071875 | E24: 15.071875 | G24: 16.80611111 | H24: 11.37274306 | J24: 25.06888889 | L24: 25.07777778 | N24: 12.82666667 | P24: 12.91766667 | R24: 9.660123457 | S24: 9.660123457 | T24: 9.660123457 | U24: 16.60533333 | V24: 10.37833333 | W24: 12.15994722 | Y24: 12.06455026 | Z24: 9.966666667 | AA24: 9.966666667
B25: Overage Rate | C25: 0.19 | D25: 0.038906 | E25: 0.13 | F25: 0.02352 | G25: 0.033614 | H25: 0.0742 | I25: 0.0147 | J25: 0.0738 | K25: 0.0147 | L25: 0.07 | M25: 0.01274 | N25: 0.0738 | O25: 0.0073206 | P25: 0.04293 | Q25: 0.007056 | R25: 0.01764 | S25: 0.01764 | T25: 0.01764 | U25: 0.0098 | V25: 0.0098 | W25: 0.0399 | X25: 0.00588 | Y25: 0.00637 | Z25: 0.00539 | AA25: 0.00539
B26: % Increase in rate for inclusion of staples | C26: N/A | E26: N/A | G26: N/A | H26: N/A | J26: N/A | L26: N/A | N26: 0.00406504065 | O26: 0.04098024752 | P26: 0.006988120196 | Q26: 0.0425170068 | R26: N/A | S26: N/A | T26: N/A | U26: 0.0306122449 | V26: 0.0306122449 | W26: 0.007518796992 | X26: 0.05102040816 | Y26: 0.04709576138 | Z26: 0.05565862709 | AA26: 0.05565862709
B27: % Increase in rate for Rural Service Zone | C27: 0%¹ | E27: 0%¹ | G27: 0%¹ | H27: 0%¹ | J27: 0%¹ | L27: 0%¹ | N27: 0%¹ | P27: 0%¹ | R27: 0%¹ | S27: 0%¹ | T27: 0%¹ | U27: 0%¹ | V27: 0%¹ | W27: 0%¹ | Y27: 0%¹ | Z27: 0%¹ | AA27: 0%¹
B28: % Increase in rate for Remote Service Zone | C28: 0%² | E28: 0%² | G28: 0%² | H28: 0%² | J28: 0%² | L28: 0%² | N28: 0%² | P28: 0%² | R28: 0%² | S28: 0%² | T28: 0%² | U28: 0%² | V28: 0%² | W28: 0%² | Y28: 0%² | Z28: 0%² | AA28: 0%²
A30: Monthly Base Charge Option 2 | B30: Included Number of Clicks per Month | C30: 0 | D30: 2100 | E30: 0 | F30: 2100 | G30: 1300 | H30: 0 | I30: 2500 | J30: 0 | K30: 4000 | L30: 0 | M30: 4000 | N30: 0 | O30: 3000 | P30: 0 | Q30: 3300 | R30: 1300 | S30: 1300 | T30: 1300 | U30: 4000 | V30: 2500 | W30: 0 | X30: 3700 | Y30: 4000 | Z30: 5000 | AA30: 5000
B31: Base Charge - includes OEM toner, parts, labor (no staples) | C31: 80.0352 | E31: 48.384 | G31: 42.8064 | H31: 36 | J31: 57.6 | L31: 49.92 | N31: 21.5136 | P31: 22.8096 | R31: 22.464 | S31: 22.464 | T31: 22.464 | U31: 38.4 | V31: 24 | W31: 21.312 | Y31: 24.96 | Z31: 26.4 | AA31: 26.4
B32: Base Charge - parts and labor only (no supplies) | C32: 30.14375 | E32: 30.14375 | G32: 33.61222222 | H32: 22.74548611 | J32: 50.13777778 | L32: 46.2974359 | N32: 19.73333333 | P32: 19.87333333 | R32: 19.32024691 | S32: 19.32024691 | T32: 19.32024691 | U32: 33.21066667 | V32: 20.75666667 | W32: 18.70761111 | Y32: 20.41693122 | Z32: 19.93333333 | AA32: 19.93333333
B33: Overage Rate | C33: 0.19 | D33: 0.038112 | E33: 0.13 | F33: 0.02304 | G33: 0.032928 | H33: 0.0742 | I33: 0.0144 | J33: 0.0738 | K33: 0.0144 | L33: 0.07 | M33: 0.01248 | N33: 0.0738 | O33: 0.0071712 | P33: 0.04293 | Q33: 0.006912 | R33: 0.01728 | S33: 0.01728 | T33: 0.01728 | U33: 0.0096 | V33: 0.0096 | W33: 0.0399 | X33: 0.00576 | Y33: 0.00624 | Z33: 0.00528 | AA33: 0.00528
B34: % Increase in rate for inclusion of staples | C34: N/A | E34: N/A | G34: N/A | H34: 0.004043126685 | I34: 0.02083333333 | J34: 0.00406504065 | K34: 0.02083333333 | L34: 0.004285714286 | M34: 0.02403846154 | N34: 0.00406504065 | O34: 0.04183400268 | P34: 0.006988120196 | Q34: 0.04340277778 | U34: 0.03125 | V34: 0.03125 | W34: 0.007518796992 | X34: 0.05208333333 | Y34: 0.04807692308 | Z34: 0.05681818182 | AA34: 0.05681818182
B35: % Increase in rate for Rural Service Zone | C35: 0%¹ | E35: 0%¹ | G35: 0%¹ | H35: 0%¹ | J35: 0%¹ | L35: 0%¹ | N35: 0%¹ | P35: 0%¹ | R35: 0%¹ | S35: 0%¹ | T35: 0%¹ | U35: 0%¹ | V35: 0%¹ | W35: 0%¹ | Y35: 0%¹ | Z35: 0%¹ | AA35: 0%¹
B36: % Increase in rate for Remote Service Zone | C36: 0%² | E36: 0%² | G36: 0%² | H36: 0%² | J36: 0%² | L36: 0%² | N36: 0%² | P36: 0%² | R36: 0%² | S36: 0%² | T36: 0%² | U36: 0%² | V36: 0%² | W36: 0%² | Y36: 0%² | Z36: 0%² | AA36: 0%²
A38: Monthly Base Charge Option 3 | B38: Included Number of Clicks per Month | C38: 0 | D38: 3150 | E38: 0 | F38: 3150 | G38: 1950 | H38: 0 | I38: 3750 | J38: 0 | K38: 6000 | L38: 0 | M38: 6000 | N38: 0 | O38: 4500 | P38: 0 | Q38: 4950 | R38: 1950 | S38: 1950 | T38: 1950 | U38: 6000 | V38: 3750 | W38: 0 | X38: 5550 | Y38: 6000 | Z38: 7500 | AA38: 7500
B39: Base Charge - includes OEM toner, parts, labor (no staples) | C39: 112.5495 | E39: 68.04 | G39: 60.1965 | H39: 50.625 | J39: 81 | L39: 70.2 | N39: 30.2535 | P39: 32.076 | R39: 31.59 | S39: 31.59 | T39: 31.59 | U39: 54 | V39: 33.75 | W39: 29.97 | Y39: 35.1 | Z39: 37.125 | AA39: 37.125
B40: Base Charge - parts and labor only (no supplies) | C40: 45.215625 | E40: 45.215625 | G40: 50.41833333 | H40: 34.11822917 | J40: 75.20666667 | L40: 63.65897436 | N40: 29.6 | P40: 29.81 | R40: 26.75111111 | S40: 26.75111111 | T40: 26.75111111 | U40: 45.984 | V40: 28.74 | W40: 28.06141667 | Y40: 30.62539683 | Z40: 29.9 | AA40: 29.9
B41: Overage Rate | C41: 0.19 | D41: 0.03573 | E41: 0.13 | F41: 0.0216 | G41: 0.03087 | H41: 0.0742 | I41: 0.0135 | J41: 0.0738 | K41: 0.0135 | L41: 0.07 | M41: 0.0117 | N41: 0.0738 | O41: 0.006723 | P41: 0.04293 | Q41: 0.00648 | R41: 0.0162 | S41: 0.0162 | T41: 0.0162 | U41: 0.009 | V41: 0.009 | W41: 0.0399 | X41: 0.0054 | Y41: 0.00585 | Z41: 0.00495 | AA41: 0.00495
B42: % Increase in rate for inclusion of staples | C42: 0 | E42: 0 | G42: 0 | H42: 0.004043126685 | I42: 0.02222222222 | J42: 0.00406504065 | K42: 0.02222222222 | L42: 0.004285714286 | M42: 0.02564102564 | N42: 0.00406504065 | O42: 0.04462293619 | P42: 0.006988120196 | Q42: 0.0462962963 | R42: 0 | S42: 0 | T42: 0 | U42: 0.03333333333 | V42: 0.03333333333 | W42: 0.007518796992 | X42: 0.05555555556 | Y42: 0.05128205128 | Z42: 0.06060606061 | AA42: 0.06060606061
B43: % Increase in rate for Rural Service Zone | C43: 0%¹ | E43: 0%¹ | G43: 0%¹ | H43: 0%¹ | J43: 0%¹ | L43: 0%¹ | N43: 0%¹ | P43: 0%¹ | R43: 0%¹ | S43: 0%¹ | T43: 0%¹ | U43: 0%¹ | V43: 0%¹ | W43: 0%¹ | Y43: 0%¹ | Z43: 0%¹ | AA43: 0%¹
B44: % Increase in rate for Remote Service Zone | C44: 0%² | E44: 0%² | G44: 0%² | H44: 0%² | J44: 0%² | L44: 0%² | N44: 0%² | P44: 0%² | R44: 0%² | S44: 0%² | T44: 0%² | U44: 0%² | V44: 0%² | W44: 0%² | Y44: 0%² | Z44: 0%² | AA44: 0%²
A45: Additional Service Coverage (per hour)
A46: Urban Service Zone | B46: 2 x 5 coverage (2 eight hour shifts, 5 days a week) | C46: $295.00³ | E46: $295.00³ | G46: $295.00³ | H46: $295.00³ | J46: $295.00³ | L46: $295.00³ | N46: $295.00³ | P46: $295.00³ | R46: $295.00³ | S46: $295.00³ | T46: $295.00³ | U46: $295.00³ | V46: $295.00³ | W46: $295.00³ | Y46: $295.00³ | Z46: $295.00³ | AA46: $295.00³
B47: 3 x 5 coverage (3 eight hour shifts, 5 days a week) | C47: $590.00³ | E47: $590.00³ | G47: $590.00³ | H47: $590.00³ | J47: $590.00³ | L47: $590.00³ | N47: $590.00³ | P47: $590.00³ | R47: $590.00³ | S47: $590.00³ | T47: $590.00³ | U47: $590.00³ | V47: $590.00³ | W47: $590.00³ | Y47: $590.00³ | Z47: $590.00³ | AA47: $590.00³
B48: 1 x 7 coverage (1 eight hour shift, 7 days a week) | C48: $295.00³ | E48: $295.00³ | G48: $295.00³ | H48: $295.00³ | J48: $295.00³ | L48: $295.00³ | N48: $295.00³ | P48: $295.00³ | R48: $295.00³ | S48: $295.00³ | T48: $295.00³ | U48: $295.00³ | V48: $295.00³ | W48: $295.00³ | Y48: $295.00³ | Z48: $295.00³ | AA48: $295.00³
B49: 2 x 7 coverage (2 eight hour shifts, 7 days a week) | C49: $590.00³ | E49: $590.00³ | G49: $590.00³ | H49: $590.00³ | J49: $590.00³ | L49: $590.00³ | N49: $590.00³ | P49: $590.00³ | R49: $590.00³ | S49: $590.00³ | T49: $590.00³ | U49: $590.00³ | V49: $590.00³ | W49: $590.00³ | Y49: $590.00³ | Z49: $590.00³ | AA49: $590.00³
B50: 3 x 7 coverage (3 eight hour shifts, 7 days a week) | C50: $885.00³ | E50: $885.00³ | G50: $885.00³ | H50: $885.00³ | J50: $885.00³ | L50: $885.00³ | N50: $885.00³ | P50: $885.00³ | R50: $885.00³ | S50: $885.00³ | T50: $885.00³ | U50: $885.00³ | V50: $885.00³ | W50: $885.00³ | Y50: $885.00³ | Z50: $885.00³ | AA50: $885.00³
A52: Rural Service Zone | B52: 2 x 5 coverage (2 eight hour shifts, 5 days a week) | C52: $520 1+3 | E52: $520 1+3 | G52: $520 1+3 | H52: $520 1+3 | J52: $520 1+3 | L52: $520 1+3 | N52: $520 1+3 | P52: $520 1+3 | R52: $520 1+3 | S52: $520 1+3 | T52: $520 1+3 | U52: $520 1+3 | V52: $520 1+3 | W52: $520 1+3 | Y52: $520 1+3 | Z52: $520 1+3 | AA52: $520 1+3
B53: 3 x 5 coverage (3 eight hour shifts, 5 days a week) | C53: $815 1+3 | E53: $815 1+3 | G53: $815 1+3 | H53: $815 1+3 | J53: $815 1+3 | L53: $815 1+3 | N53: $815 1+3 | P53: $815 1+3 | R53: $815 1+3 | S53: $815 1+3 | T53: $815 1+3 | U53: $815 1+3 | V53: $815 1+3 | W53: $815 1+3 | Y53: $815 1+3 | Z53: $815 1+3 | AA53: $815 1+3
B54: 1 x 7 coverage (1 eight hour shift, 7 days a week) | C54: $5201+3 | E54: $5201+3 | G54: $520 1+3 | H54: $5201+3 | J54: $5201+3 | L54: $5201+3 | N54: $5201+3 | P54: $5201+3 | R54: $520 1+3 | S54: $520 1+3 | T54: $520 1+3 | U54: $520 1+3 | V54: $520 1+3 | W54: $5201+3 | Y54: $520 1+3 | Z54: $520 1+3 | AA54: $520 1+3
B55: 2 x 7 coverage (2 eight hour shifts, 7 days a week) | C55: $8151+3 | E55: $8151+3 | G55: $815 1+3 | H55: $8151+3 | J55: $8151+3 | L55: $8151+3 | N55: $8151+3 | P55: $8151+3 | R55: $815 1+3 | S55: $815 1+3 | T55: $815 1+3 | U55: $815 1+3 | V55: $815 1+3 | W55: $8151+3 | Y55: $815 1+3 | Z55: $815 1+3 | AA55: $815 1+3
B56: 3 x 7 coverage (3 eight hour shifts, 7 days a week) | C56: $1110 1+3 | E56: $1110 1+3 | G56: $1110 1+3 | H56: $1110 1+3 | J56: $1110 1+3 | L56: $1110 1+3 | N56: $1110 1+3 | P56: $1110 1+3 | R56: $1110 1+3 | S56: $1110 1+3 | T56: $1110 1+3 | U56: $1110 1+3 | V56: $1110 1+3 | W56: $1110 1+3 | Y56: $1110 1+3 | Z56: $1110 1+3 | AA56: $1110 1+3
A58: Remote Service Zone | B58: 2 x 5 coverage (2 eight hour shifts, 5 days a week) | C58: $745 2+3 | E58: $745 2+3 | G58: $745 2+3 | H58: $745 2+3 | J58: $745 2+3 | L58: $745 2+3 | N58: $745 2+3 | P58: $745 2+3 | R58: $745 2+3 | S58: $745 2+3 | T58: $745 2+3 | U58: $745 2+3 | V58: $745 2+3 | W58: $745 2+3 | Y58: $745 2+3 | Z58: $745 2+3 | AA58: $745 2+3
B59: 3 x 5 coverage (3 eight hour shifts, 5 days a week) | C59: $1040 2+3 | E59: $1040 2+3 | G59: $1040 2+3 | H59: $1040 2+3 | J59: $1040 2+3 | L59: $1040 2+3 | N59: $1040 2+3 | P59: $1040 2+3 | R59: $1040 2+3 | S59: $1040 2+3 | T59: $1040 2+3 | U59: $1040 2+3 | V59: $1040 2+3 | W59: $1040 2+3 | Y59: $1040 2+3 | Z59: $1040 2+3 | AA59: $1040 2+3
B60: 1 x 7 coverage (1 eight hour shift, 7 days a week) | C60: $745 2+3 | E60: $745 2+3 | G60: $745 2+3 | H60: $745 2+3 | J60: $745 2+3 | L60: $745 2+3 | N60: $745 2+3 | P60: $745 2+3 | R60: $745 2+3 | S60: $745 2+3 | T60: $745 2+3 | U60: $745 2+3 | V60: $745 2+3 | W60: $745 2+3 | Y60: $745 2+3 | Z60: $745 2+3 | AA60: $745 2+3
B61: 2 x 7 coverage (2 eight hour shifts, 7 days a week) | C61: $1040 2+3 | E61: $1040 2+3 | G61: $1040 2+3 | H61: $1040 2+3 | J61: $1040 2+3 | L61: $1040 2+3 | N61: $1040 2+3 | P61: $1040 2+3 | R61: $1040 2+3 | S61: $1040 2+3 | T61: $1040 2+3 | U61: $1040 2+3 | V61: $1040 2+3 | W61: $1040 2+3 | Y61: $1040 2+3 | Z61: $1040 2+3 | AA61: $1040 2+3
B62: 3 x 7 coverage (3 eight hour shifts, 7 days a week) | C62: $1335 2+3 | E62: $1335 2+3 | G62: $1335 2+3 | H62: $1335 2+3 | J62: $1335 2+3 | L62: $1335 2+3 | N62: $1335 2+3 | P62: $1335 2+3 | R62: $1335 2+3 | S62: $1335 2+3 | T62: $1335 2+3 | U62: $1335 2+3 | V62: $1335 2+3 | W62: $1335 2+3 | Y62: $1335 2+3 | Z62: $1335 2+3 | AA62: $1335 2+3
A63: Service Calls not covered under the Maintenance Agreement
A64: Urban Service Zone | B64: Price Per Hour | C64: 150 | E64: 150 | G64: 150 | H64: 150 | J64: 150 | L64: 150 | N64: 150 | P64: 150 | R64: 150 | S64: 150 | T64: 150 | U64: 150 | V64: 150 | W64: 150 | Y64: 150 | Z64: 150 | AA64: 150
A66: Rural Service Zone | B66: Flat Rate Charge | C66: $225 1 | E66: $225 1 | G66: $225 1 | H66: $225 1 | J66: $225 1 | L66: $225 1 | N66: $225 1 | P66: $225 1 | R66: $225 1 | S66: $225 1 | T66: $225 1 | U66: $225 1 | V66: $225 1 | W66: $225 1 | Y66: $225 1 | Z66: $225 1 | AA66: $225 1
B67: Price Per Hour | C67: $225 1 | E67: $225 1 | G67: $225 1 | H67: $225 1 | J67: $225 1 | L67: $225 1 | N67: $225 1 | P67: $225 1 | R67: $225 1 | S67: $225 1 | T67: $225 1 | U67: $225 1 | V67: $225 1 | W67: $225 1 | Y67: $225 1 | Z67: $225 1 | AA67: $225 1
A69: Remote Service Zone | B69: Flat Rate Charge | C69: $450 2 | E69: $450 2 | G69: $450 2 | H69: $450 2 | J69: $450 2 | L69: $450 2 | N69: $450 2 | P69: $450 2 | R69: $450 2 | S69: $450 2 | T69: $450 2 | U69: $450 2 | V69: $450 2 | W69: $450 2 | Y69: $450 2 | Z69: $450 2 | AA69: $450 2
B70: Price Per Hour | C70: $450 2 | D70: $450 2 | E70: $450 2 | F70: $450 2 | G70: $450 2 | H70: $450 2 | I70: $450 2 | J70: $450 2 | K70: $450 2 | L70: $450 2 | M70: $450 2 | N70: $450 2 | O70: $450 2 | P70: $450 2 | Q70: $450 2 | R70: $450 2 | S70: $450 2 | T70: $450 2 | U70: $450 2 | V70: $450 2 | W70: $450 2 | X70: $450 2 | Y70: $450 2 | Z70: $450 2 | AA70: $450 2
A71: Accessory Installation/Maintenance (per hour)
A72: Additional Option (Dual Scan Document Feeder) | C72: 0 | E72: 0 | G72: 0 | H72: 0 | J72: 0 | L72: 0 | N72: 0 | P72: 150 | S72: 0 | T72: 0 | U72: 0 | V72: 0 | W72: 150 | Y72: 0 | Z72: 0 | AA72: 0
A73: RADF | C73: 0 | E73: 0 | G73: 0 | H73: 0 | J73: 0 | L73: 0 | N73: 0 | P73: 150 | S73: 0 | T73: 0 | U73: 0 | V73: 0 | W73: 150 | Y73: 0 | Z73: 0 | AA73: 0
A74: Additional Option (Manual Stapler) | C74: 0 | E74: 0 | G74: 0 | H74: 150 | J74: 150 | L74: 150 | N74: 0 | P74: 0 | S74: 0 | T74: 0 | U74: 0 | V74: 0 | W74: 0 | Y74: 150 | Z74: 150 | AA74: 150
A75: Base Cabinet | C75: 150 | E75: 150 | G75: 150 | H75: 150 | J75: 150 | L75: 150 | N75: 150 | P75: 150 | S75: 0 | T75: 0 | U75: 0 | V75: 0 | W75: 0 | Y75: 0 | Z75: 0 | AA75: 0
A76: Additional Paper Drawer | C76: 150 | E76: 150 | G76: 150 | H76: 150 | J76: 150 | L76: 150 | N76: 150 | P76: 150 | S76: 0 | T76: 0 | U76: 0 | V76: 0 | W76: 0 | Y76: 0 | Z76: 0 | AA76: 0
A77: Paper-Feed Unit | C77: 0 | E77: 0 | G77: 0 | H77: 0 | J77: 0 | L77: 0 | N77: 150 | P77: 150 | S77: 0 | T77: 0 | U77: 0 | V77: 0 | W77: 150 | Y77: 150 | Z77: 150 | AA77: 150
A78: Additional Option (PH-5100 punch unit) | C78: 0 | E78: 0 | G78: 0 | H78: 0 | J78: 0 | L78: 0 | N78: 0 | P78: 150 | S78: 0 | T78: 0 | U78: 0 | V78: 0 | W78: 150 | Y78: 0 | Z78: 0 | AA78: 0
A79: Additional Option (SSD Memory Device (32 GB)) | C79: 0 | E79: 0 | G79: 0 | H79: 150 | J79: 150 | L79: 150 | N79: 150 | P79: 0 | S79: 0 | T79: 0 | U79: 150 | V79: 150 | W79: 0 | Y79: 150 | Z79: 150 | AA79: 150
A80: Standard Finisher(300 SHEET INTERNAL FINISHER) | C80: 0 | E80: 0 | G80: 0 | H80: 0 | J80: 0 | L80: 0 | N80: 150 | P80: 150 | S80: 0 | T80: 0 | U80: 0 | V80: 0 | W80: 150 | Y80: 0 | Z80: 0 | AA80: 0
A81: Additional Option (3,200 SHEET FINISHER) | C81: 0 | E81: 0 | G81: 0 | H81: 0 | J81: 0 | L81: 0 | N81: 150 | P81: 150 | S81: 0 | T81: 0 | U81: 0 | V81: 0 | W81: 150 | Y81: 0 | Z81: 0 | AA81: 0
A82: Software Maintenance (per month) - excludes updates and patches, which are free to End-User
A83: *Server Software Maintenance-KYOCERA Net Manager 1 device, 1609AK0UN8, Server license Maintenance for 1 device ( Paid upfront in full) | C83: 1.83 | E83: 1.83 | G83: 1.83 | H83: 1.83 | J83: 1.83 | L83: 1.83 | N83: 1.83 | P83: 1.83 | R83: 1.83 | S83: 1.83 | T83: 1.83 | U83: 1.83 | V83: 1.83 | W83: 1.83 | Y83: 1.83 | Z83: 1.83 | AA83: 1.83
A84: *Device Software Maintenance, KYOCERA Net Manager 1 device,1609AK0UNN,Device license Maintenance for 1 device( ( Paid upfront in full)) | C84: 3.92 | E84: 3.92 | G84: 3.92 | H84: 3.92 | J84: 3.92 | L84: 3.92 | N84: 3.92 | P84: 3.92 | R84: 3.92 | S84: 3.92 | T84: 3.92 | U84: 3.92 | V84: 3.92 | W84: 3.92 | Y84: 3.92 | Z84: 3.92 | AA84: 3.92
A85: End-User Training and Support (per hour) - beyond the required one free hour
A86: Additional End-User taining on Device and/or software | C86: 150 | E86: 150 | G86: 150 | H86: 150 | J86: 150 | L86: 150 | N86: 150 | P86: 150 | R86: 150 | S86: 150 | T86: 150 | U86: 150 | V86: 150 | W86: 150 | Y86: 150 | Z86: 150 | AA86: 150
A87: After hours technical phone support | C87: 295 | E87: 295 | G87: 295 | H87: 295 | J87: 295 | L87: 295 | N87: 295 | P87: 295 | R87: 295 | S87: 295 | T87: 295 | U87: 295 | V87: 295 | W87: 295 | Y87: 295 | Z87: 295 | AA87: 295
A88: Additional Services
A89: Equipment Move Service Zone 2 | B89: Flat Rate Charge | C89: 400 | E89: 400 | G89: 400 | H89: 400 | J89: 400 | L89: 400 | N89: 400 | P89: 400 | R89: 400 | S89: 400 | T89: 400 | U89: 400 | V89: 400 | W89: 400 | Y89: 400 | Z89: 400 | AA89: 400
B90: Price Per Hour | C90: 150 | E90: 150 | G90: 150 | H90: 150 | J90: 150 | L90: 150 | N90: 150 | P90: 150 | R90: 150 | S90: 150 | T90: 150 | U90: 150 | V90: 150 | W90: 150 | Y90: 150 | Z90: 150 | AA90: 150
A92: Equipment Move Service Zone 3 | B92: Flat Rate Charge | C92: 700 | E92: 700 | G92: 700 | H92: 700 | J92: 700 | L92: 700 | N92: 700 | P92: 700 | R92: 700 | S92: 700 | T92: 700 | U92: 700 | V92: 700 | W92: 700 | Y92: 700 | Z92: 700 | AA92: 700
B93: Price Per Hour | C93: 150 | E93: 150 | G93: 150 | H93: 150 | J93: 150 | L93: 150 | N93: 150 | P93: 150 | R93: 150 | S93: 150 | T93: 150 | U93: 150 | V93: 150 | W93: 150 | Y93: 150 | Z93: 150 | AA93: 150
A95: Hard Drive Removal and Surrender | B95: Flat Rate Charge | C95: 0 | E95: 0 | G95: 0 | H95: 375 | J95: 375 | L95: 375 | N95: 375 | P95: 375 | R95: 0 | S95: 0 | T95: 0 | U95: 0 | V95: 0 | W95: 375 | Y95: 375 | Z95: 375 | AA95: 375
A98: Notes:
A100: ¹ Plus $225 per incident, for Rural Service Zone travel.
A101: ² Plus $450 per incident, for Remote Service Zone travel.
A102: 3 Additional Service Coverage NOTE : There is an additional flat fee charge of $150 per incident, for all additional shift coverage plans. ( Additional shift coverage is subject to availabilty )
A103: Color S&S CPC's are billed from copy 1 on all models and all options (NO MINIMUM VOLUME/ NO BASE)
A104: * KYOCERA Net Manager Requires an SOW to install plus Server Licence $112 and maintenance

Sheet GROUP D S&S Pricing
B1: KYOCERA Document Solutions America, Inc.
A2: Group D
A3: Single-function Printers
A4: Service and Supplies Pricing
A5: Includes B&W and Color/B&W Segments
A6: Service and Supply Pricing | C6: Segment 2 | E6: Segment 2 | G6: Segment 2 | I6: Segment 2 | K6: Segment 3 | L6: Segment 3 | M6: Segment 3 | N6: Segment 3 | O6: Segment 3 | Q6: Segment 4
C7: (21 - 40) | E7: (21 - 40) | G7: (21 - 40) | I7: (21 - 40) | K7: (41 - 60) | L7: (41 - 60) | M7: (41 - 60) | N7: (41 - 60) | O7: (41 - 60) | Q7: (61+)
C8: Color | D8: B&W | E8: Color | F8: B&W | G8: Color | H8: B&W | I8: Color | J8: B&W | K8: B&W | L8: B&W | M8: B&W | N8: B&W | O8: Color | P8: B&W | Q8: B&W
A9: Make | C9: KYOCERA | E9: KYOCERA | G9: KYOCERA | I9: KYOCERA | K9: KYOCERA | L9: KYOCERA | M9: KYOCERA | N9: KYOCERA | O9: KYOCERA | Q9: KYOCERA
A10: Model | C10: ECOSYS P5021cdw | E10: ECOSYS P5026cdw | G10: ECOSYS P6230cdn | I10: ECOSYS P6235cdn | K10: ECOSYS P2040dw | L10: ECOSYS P3145dn | M10: ECOSYS P3150dn | N10: ECOSYS P3155dn | O10: ECOSYS P7240cdn | Q10: ECOSYS P3260dn
A11: Maintenance Agreements
A12: Zero Base Charge | B12: Includes OEM toner, parts, labor (no staples) | C12: 0.192 | D12: 0.0397 | E12: 0.1311 | F12: 0.024 | G12: 0.075 | H12: 0.017 | I12: 0.06 | J12: 0.0119 | K12: 0.0174 | L12: 0.0105 | M12: 0.0078 | N12: 0.0059 | O12: 0.055 | P12: 0.01 | Q12: 0.0055
B13: Parts and labor only (no supplies) | C13: 0.01104166667 | E13: 0.01104166667 | G13: 0.008998611111 | I13: 0.00608974359 | K13: 0.009148148148 | L13: 0.006386666667 | M13: 0.004346953405 | N13: 0.003195767196 | O13: 0.005267320261 | Q13: 0.003066666667
B14: % Increase in rate for inclusion of staples | C14: 0 | E14: 0 | G14: 0 | I14: 0 | K14: 0 | L14: 0 | M14: 0 | N14: 0 | O14: 0 | Q14: 0
B15: % Increase in rate for Rural Service Zone | C15: 0%¹ | E15: 0%¹ | G15: 0%¹ | I15: 0%¹ | K15: 0%¹ | L15: 0%¹ | M15: 0%¹ | N15: 0%¹ | O15: 0%¹ | Q15: 0%¹
B16: % Increase in rate for Remote Service Zone | C16: 0%² | E16: 0%² | G16: 0%² | I16: 0%² | K16: 0%² | L16: 0%² | M16: 0%² | N16: 0%² | O16: 0%² | Q16: 0%²
A18: Flat Rate Fee | B18: Parts and labor only (no supplies) | C18: 58.134375 | E18: 58.134375 | G18: 43.86822917 | I18: 59.375 | K18: 23.19055556 | L18: 16.1902 | M18: 27.97264516 | N18: 20.5647619 | O18: 51.35637255 | Q18: 29.9
B19: % Increase in rate for Rural Service Zone | C19: 0%¹ | E19: 0%¹ | G19: 0%¹ | I19: 0%¹ | K19: 0%¹ | L19: 0%¹ | M19: 0%¹ | N19: 0%¹ | O19: 0%¹ | Q19: 0%¹
B20: % Increase in rate for Remote Service Zone | C20: 0%² | E20: 0%² | G20: 0%² | I20: 0%² | K20: 0%² | L20: 0%² | M20: 0%² | N20: 0%² | O20: 0%² | Q20: 0%²
A22: Monthly Base Charge Option 1 | B22: Included Number of Clicks per Month | C22: 0 | D22: 1350 | E22: 0 | F22: 1350 | G22: 0 | H22: 1250 | I22: 0 | J22: 2500 | K22: 650 | L22: 650 | M22: 1650 | N22: 1650 | O22: 0 | P22: 2500 | Q22: 2500
B23: Base Charge - includes OEM toner, parts, labor (no staples) | C23: 52.5231 | E23: 31.752 | G23: 20.825 | I23: 29.155 | K23: 11.0838 | L23: 6.6885 | M23: 12.6126 | N23: 9.5403 | O23: 24.5 | Q23: 13.475
B24: Base Charge - parts and labor only (no supplies) | C24: 19.378125 | E24: 19.378125 | G24: 14.62274306 | I24: 19.79166667 | K24: 7.730185185 | L24: 5.396733333 | M24: 9.324215054 | N24: 6.854920635 | O24: 17.11879085 | Q24: 9.966666667
B25: Overage Rate | C25: 0.192 | D25: 0.038906 | E25: 0.1311 | F25: 0.02352 | G25: 0.075 | H25: 0.01666 | I25: 0.06 | J25: 0.011662 | K25: 0.017052 | L25: 0.01029 | M25: 0.007644 | N25: 0.005782 | O25: 0.055 | P25: 0.0098 | Q25: 0.00539
B26: % Increase in rate for inclusion of staples | C26: 0 | E26: 0 | G26: 0 | I26: 0 | K26: 0 | L26: 0 | M26: 0 | N26: 0 | O26: 0 | Q26: 0
B27: % Increase in rate for Rural Service Zone | C27: 0%¹ | E27: 0%¹ | G27: 0%¹ | I27: 0%¹ | K27: 0%¹ | L27: 0%¹ | M27: 0%¹ | N27: 0%¹ | O27: 0%¹ | Q27: 0%¹
B28: % Increase in rate for Remote Service Zone | C28: 0%² | E28: 0%² | G28: 0%² | I28: 0%² | K28: 0%² | L28: 0%² | M28: 0%² | N28: 0%² | O28: 0%² | Q28: 0%²
A30: Monthly Base Charge Option 2 | B30: Included Number of Clicks per Month | C30: 0 | D30: 2700 | E30: 0 | F30: 2700 | G30: 0 | H30: 2500 | I30: 0 | J30: 5000 | K30: 1300 | L30: 1300 | M30: 3300 | N30: 3300 | O30: 0 | P30: 5000 | Q30: 5000
B31: Base Charge - includes OEM toner, parts, labor (no staples) | C31: 102.9024 | E31: 62.208 | G31: 40.8 | I31: 57.12 | K31: 21.7152 | L31: 13.104 | M31: 24.7104 | N31: 18.6912 | O31: 48 | Q31: 26.4
B32: Base Charge - parts and labor only (no supplies) | C32: 38.75625 | E32: 38.75625 | G32: 29.24548611 | I32: 39.58333333 | K32: 15.46037037 | L32: 10.79346667 | M32: 18.64843011 | N32: 13.70984127 | O32: 34.2375817 | Q32: 19.93333333
B33: Overage Rate | C33: 0.192 | D33: 0.038112 | E33: 0.1311 | F33: 0.02304 | G33: 0.075 | H33: 0.01632 | I33: 0.06 | J33: 0.011424 | K33: 0.016704 | L33: 0.01008 | M33: 0.007488 | N33: 0.005664 | O33: 0.055 | P33: 0.0096 | Q33: 0.00528
B34: % Increase in rate for inclusion of staples | C34: 0 | E34: 0 | G34: 0 | I34: 0 | K34: 0 | L34: 0 | M34: 0 | N34: 0 | O34: 0 | Q34: 0
B35: % Increase in rate for Rural Service Zone | C35: 0%¹ | E35: 0%¹ | G35: 0%¹ | I35: 0%¹ | K35: 0%¹ | L35: 0%¹ | M35: 0%¹ | N35: 0%¹ | O35: 0%¹ | Q35: 0%¹
B36: % Increase in rate for Remote Service Zone | C36: 0%² | E36: 0%² | G36: 0%² | I36: 0%² | K36: 0%² | L36: 0%² | M36: 0%² | N36: 0%² | O36: 0%² | Q36: 0%²
A38: Monthly Base Charge Option 3 | B38: Included Number of Clicks per Month | D38: 4050 | E38: 0 | F38: 4050 | G38: 0 | H38: 3750 | I38: 0 | J38: 7500 | K38: 1950 | L38: 1950 | M38: 4950 | N38: 4950 | O38: 0 | P38: 7500 | Q38: 7500
B39: Base Charge - includes OEM toner, parts, labor (no staples) | C39: 144.7065 | E39: 87.48 | G39: 57.375 | I39: 80.325 | K39: 30.537 | L39: 18.4275 | M39: 34.749 | N39: 26.2845 | O39: 67.5 | Q39: 37.125
B40: Base Charge - parts and labor only (no supplies) | C40: 58.134375 | E40: 58.134375 | G40: 43.86822917 | I40: 59.375 | K40: 23.19055556 | L40: 16.1902 | M40: 27.97264516 | N40: 20.5647619 | O40: 51.35637255 | Q40: 29.9
B41: Overage Rate | C41: 0.03573 | D41: 0.03573 | E41: 0.1311 | F41: 0.0216 | G41: 0.075 | H41: 0.0153 | I41: 0.06 | J41: 0.01071 | K41: 0.01566 | L41: 0.00945 | M41: 0.00702 | N41: 0.00531 | O41: 0.055 | P41: 0.009 | Q41: 0.00495
B42: % Increase in rate for inclusion of staples | C42: 0 | E42: 0 | G42: 0 | I42: 0 | K42: 0 | L42: 0 | M42: 0 | N42: 0 | O42: 0 | Q42: 0
B43: % Increase in rate for Rural Service Zone | C43: 0%¹ | E43: 0%¹ | G43: 0%¹ | I43: 0%¹ | K43: 0%¹ | L43: 0%¹ | M43: 0%¹ | N43: 0%¹ | O43: 0%¹ | Q43: 0%¹
B44: % Increase in rate for Remote Service Zone | C44: 0%² | E44: 0%² | G44: 0%² | I44: 0%² | K44: 0%² | L44: 0%² | M44: 0%² | N44: 0%² | O44: 0%² | Q44: 0%²
A45: Additional Service Coverage (per hour)
A46: Urban Service Zone | B46: 2 x 5 coverage (2 eight hour shifts, 5 days a week) | C46: $295.00³ | E46: $295.00³ | G46: $295.00³ | I46: $295.00³ | K46: $295.00³ | L46: $295.00³ | M46: $295.00³ | N46: $295.00³ | O46: $295.00³ | Q46: $295.00³
B47: 3 x 5 coverage (3 eight hour shifts, 5 days a week) | C47: $590.00³ | E47: $590.00³ | G47: $590.00³ | I47: $590.00³ | K47: $590.00³ | L47: $590.00³ | M47: $590.00³ | N47: $590.00³ | O47: $590.00³ | Q47: $590.00³
B48: 1 x 7 coverage (1 eight hour shift, 7 days a week) | C48: $295.00³ | E48: $295.00³ | G48: $295.00³ | I48: $295.00³ | K48: $295.00³ | L48: $295.00³ | M48: $295.00³ | N48: $295.00³ | O48: $295.00³ | Q48: $295.00³
B49: 2 x 7 coverage (2 eight hour shifts, 7 days a week) | C49: $590.00³ | E49: $590.00³ | G49: $590.00³ | I49: $590.00³ | K49: $590.00³ | L49: $590.00³ | M49: $590.00³ | N49: $590.00³ | O49: $590.00³ | Q49: $590.00³
B50: 3 x 7 coverage (3 eight hour shifts, 7 days a week) | C50: $885.00³ | E50: $885.00³ | G50: $885.00³ | I50: $885.00³ | K50: $885.00³ | L50: $885.00³ | M50: $885.00³ | N50: $885.00³ | O50: $885.00³ | Q50: $885.00³
A52: Rural Service Zone | B52: 2 x 5 coverage (2 eight hour shifts, 5 days a week) | C52: $520 1+3 | E52: $520 1+3 | G52: $520 1+3 | I52: $520 1+3 | K52: $520 1+3 | L52: $520 1+3 | M52: $520 1+3 | N52: $520 1+3 | O52: $520 1+3 | Q52: $520 1+3
B53: 3 x 5 coverage (3 eight hour shifts, 5 days a week) | C53: $815 1+3 | E53: $815 1+3 | G53: $815 1+3 | I53: $815 1+3 | K53: $8151+3 | L53: $8151+3 | M53: $8151+3 | N53: $8151+3 | O53: $815 1+3 | Q53: $8151+3
B54: 1 x 7 coverage (1 eight hour shift, 7 days a week) | C54: $5201+3 | E54: $5201+3 | G54: $5201+3 | I54: $5201+3 | K54: $5201+3 | L54: $5201+3 | M54: $5201+3 | N54: $5201+3 | O54: $5201+3 | Q54: $5201+3
B55: 2 x 7 coverage (2 eight hour shifts, 7 days a week) | C55: $8151+3 | E55: $8151+3 | G55: $8151+3 | I55: $8151+3 | K55: $8151+3 | L55: $8151+3 | M55: $8151+3 | N55: $8151+3 | O55: $8151+3 | Q55: $8151+3
B56: 3 x 7 coverage (3 eight hour shifts, 7 days a week) | C56: $1110 1+3 | E56: $1110 1+3 | G56: $1110 1+3 | I56: $1110 1+3 | K56: $1110 1+3 | L56: $1110 1+3 | M56: $1110 1+3 | N56: $1110 1+3 | O56: $1110 1+3 | Q56: $1110 1+3
A58: Remote Service Zone | B58: 2 x 5 coverage (2 eight hour shifts, 5 days a week) | C58: $745 2+3 | E58: $745 2+3 | G58: $745 2+3 | I58: $745 2+3 | K58: $745 2+3 | L58: $745 2+3 | M58: $745 2+3 | N58: $745 2+3 | O58: $745 2+3 | Q58: $745 2+3
B59: 3 x 5 coverage (3 eight hour shifts, 5 days a week) | C59: $1040 2+3 | E59: $1040 2+3 | G59: $1040 2+3 | I59: $1040 2+3 | K59: $1040 2+3 | L59: $1040 2+3 | M59: $1040 2+3 | N59: $1040 2+3 | O59: $1040 2+3 | Q59: $1040 2+3
B60: 1 x 7 coverage (1 eight hour shift, 7 days a week) | C60: $745 2+3 | E60: $745 2+3 | G60: $745 2+3 | I60: $745 2+3 | K60: $745 2+3 | L60: $745 2+3 | M60: $745 2+3 | N60: $745 2+3 | O60: $745 2+3 | Q60: $745 2+3
B61: 2 x 7 coverage (2 eight hour shifts, 7 days a week) | C61: $1040 2+3 | E61: $1040 2+3 | G61: $1040 2+3 | I61: $1040 2+3 | K61: $1040 2+3 | L61: $1040 2+3 | M61: $1040 2+3 | N61: $1040 2+3 | O61: $1040 2+3 | Q61: $1040 2+3
B62: 3 x 7 coverage (3 eight hour shifts, 7 days a week) | C62: $1335 2+3 | E62: $1335 2+3 | G62: $1335 2+3 | I62: $1335 2+3 | K62: $1335 2+3 | L62: $1335 2+3 | M62: $1335 2+3 | N62: $1335 2+3 | O62: $1335 2+3 | Q62: $1335 2+3
A63: Service Calls not covered under the Maintenance Agreement
A64: Urban Service Zone | B64: Price Per Hour | C64: 150 | E64: 150 | F64: 150 | G64: 150 | H64: 150 | I64: 150 | J64: 150 | K64: 150 | L64: 150 | M64: 150 | N64: 150 | O64: 150 | P64: 150 | Q64: 150
A66: Rural Service Zone | B66: Flat Rate Charge | C66: $225 1 | E66: $225 1 | G66: $225 1 | I66: $225 1 | K66: $225 1 | L66: $225 1 | M66: $225 1 | N66: $225 1 | O66: $225 1 | Q66: $225 1
B67: Price Per Hour | C67: $225 1 | E67: $225 1 | G67: $225 1 | I67: $225 1 | K67: $225 1 | L67: $225 1 | M67: $225 1 | N67: $225 1 | O67: $225 1 | Q67: $225 1
A69: Remote Service Zone | B69: Flat Rate Charge | C69: $450 2 | D69: $450 2 | E69: $450 2 | F69: $450 2 | G69: $450 2 | H69: $450 2 | I69: $450 2 | J69: $450 2 | K69: $450 2 | L69: $450 2 | M69: $450 2 | N69: $450 2 | O69: $450 2 | P69: $450 2 | Q69: $450 2
B70: Price Per Hour | C70: $450 2 | D70: $450 2 | E70: $450 2 | F70: $450 2 | G70: $450 2 | H70: $450 2 | I70: $450 2 | J70: $450 2 | K70: $450 2 | L70: $450 2 | M70: $450 2 | N70: $450 2 | O70: $450 2 | P70: $450 2 | Q70: $450 2
A71: Accessory Installation/Maintenance (per hour)
A72: Stand | C72: 0 | E72: 0 | G72: 150 | I72: 150 | K72: 150 | L72: 150 | M72: 150 | N72: 150 | O72: 150 | Q72: 150
A73: Additional Paper Drawer | C73: 150 | E73: 150 | G73: 150 | I73: 150 | K73: 150 | L73: 150 | M73: 150 | N73: 150 | O73: 150 | Q73: 150
A74: Paper-Feed Unit | C74: 0 | E74: 0 | G74: 0 | I74: 0 | K74: 0 | L74: 150 | M74: 150 | N74: 150 | O74: 0 | Q74: 150
A75: Additional Option (1,000 sheet finisher) | C75: 0 | E75: 0 | G75: 0 | I75: 0 | K75: 0 | L75: 0 | M75: 0 | N75: 0 | O75: 0 | Q75: 0
A76: Additional Option (Hole punch unit) | C76: 0 | E76: 0 | G76: 0 | I76: 0 | K76: 0 | L76: 0 | M76: 0 | N76: 0 | O76: 0 | Q76: 0
A77: Additional Option (3,000 sheet finisher) | C77: 0 | E77: 0 | G77: 0 | I77: 0 | K77: 0 | L77: 0 | M77: 0 | N77: 0 | O77: 0 | Q77: 0
A78: Additional Option (IB-50 Dual NIC) | C78: 150 | E78: 150 | G78: 150 | I78: 150 | K78: 150 | L78: 150 | M78: 150 | N78: 150 | O78: 150 | Q78: 150
A79: Additional Option (PB-325 Base unit with PF-3100) | C79: 0 | E79: 0 | G79: 0 | I79: 0 | K79: 0 | L79: 150 | M79: 150 | N79: 150 | O79: 0 | Q79: 150
A80: Additional Option (IB-51 Wireless LAN NIC 328') | C80: 150 | E80: 150 | G80: 150 | I80: 150 | K80: 150 | L80: 150 | M80: 150 | N80: 150 | O80: 150 | Q80: 150
A81: Additional Option (Mail tray / Mail Bin) | C81: 0 | E81: 0 | G81: 0 | I81: 0 | K81: 0 | L81: 0 | M81: 0 | N81: 0 | O81: 0 | Q81: 0
A82: Software Maintenance (per month) - excludes updates and patches, which are free to End-User
A83: *Server Software Maintenance-KYOCERA Net Manager 1 device, 1609AK0UN8, Server license Maintenance for 1 device ( Paid upfront in full) | C83: 1.83 | E83: 1.83 | G83: 1.83 | I83: 1.83 | K83: 1.83 | L83: 1.83 | M83: 1.83 | N83: 1.83 | O83: 1.83 | Q83: 1.83
A84: *Device Software Maintenance, KYOCERA Net Manager 1 device,1609AK0UNN,Device license Maintenance for 1 device( ( Paid upfront in full)) | C84: 3.92 | E84: 3.92 | G84: 3.92 | I84: 3.92 | K84: 3.92 | L84: 3.92 | M84: 3.92 | N84: 3.92 | O84: 3.92 | Q84: 3.92
A85: End-User Training and Support (per hour) - beyond the required one free hour
A86: Additional End-User taining on Device and/or software | C86: 150 | E86: 150 | G86: 150 | I86: 150 | K86: 150 | L86: 150 | M86: 150 | N86: 150 | O86: 150 | Q86: 150
A87: After hours technical phone support | C87: 295 | E87: 295 | G87: 295 | I87: 295 | K87: 295 | L87: 295 | M87: 295 | N87: 295 | O87: 295 | Q87: 295
A88: Additional Services
A89: Equipment Move Service Zone 2 | B89: Flat Rate Charge | C89: 400 | E89: 400 | G89: 400 | I89: 400 | K89: 400 | L89: 400 | M89: 400 | N89: 400 | O89: 400 | Q89: 400
B90: Price Per Hour | C90: 150 | E90: 150 | G90: 150 | I90: 150 | K90: 150 | L90: 150 | M90: 150 | N90: 150 | O90: 150 | Q90: 150
A92: Equipment Move Service Zone 3 | B92: Flat Rate Charge | C92: 750 | E92: 750 | G92: 750 | I92: 750 | K92: 750 | L92: 750 | M92: 750 | N92: 750 | O92: 750 | Q92: 750
B93: Price Per Hour | C93: 150 | E93: 150 | G93: 150 | I93: 150 | K93: 150 | L93: 150 | M93: 150 | N93: 150 | O93: 150 | Q93: 150
A95: Hard Drive Removal and Surrender | B95: Flat Rate Charge | C95: 0 | E95: 0 | G95: 375 | I95: 375 | K95: 0 | L95: 375 | M95: 375 | N95: 375 | O95: 375 | Q95: 375
A98: Notes:
A100: ¹ $225 per incident, for Rural Service Zone travel.
A101: ² $450 per incident, for Remote Service Zone travel.
A102: 3 Additional Service Coverage NOTE : There is an additional flat fee charge of $150 per incident, for all additional shift coverage plans. ( Additional shift coverage is subject to availabilty )
A104: Color S&S CPC's are billed from copy 1 on all models and all options (NO MINIMUM VOLUME/ NO BASE)
A105: * KYOCERA Net Manager Requires an SOW to install plus Server Licence $112 and maintenance

Sheet Lease and Rental Rates
B1: ='[5]MSRP List Price'!B1:Y1 -> KYOCERA Business Solutions America, Inc.
A2: Standard Financing Terms (Months) | B2: Daily Treasury Yield Curve Rate | C2: Published Date of DTYCR (must be quarter end date) | D2: Lease and Rental Rates
D3: Fair Market Value Lease w/Property Tax | E3: $1 Buyout Lease | F3: Straight Lease W/Property Tax | G3: Short-Term Lease | H3: Cancellable Rental
A4: 12 | B4: 1.19 | C4: 2022-03-10 | D4: 0.08847 | E4: 0.08827 | F4: 0.08847 | G4: 0.08751 | H4: 0.08941
A5: 18 | B5: 1.46 | C5: 2022-03-10 | D5: 0.061 | E5: 0.0606 | F5: 0.061 | H5: 0.06153
A6: 24 | B6: 1.72 | C6: 2022-03-10 | D6: 0.04662 | E6: 0.04647 | F6: 0.04662 | H6: 0.04761
A7: 36 | B7: 1.88 | C7: 2022-03-10 | D7: 0.03265 | E7: 0.03256 | F7: 0.03265 | H7: 0.03376
A8: 48 | B8: 1.9 | C8: 2022-03-10 | D8: 0.02568 | E8: 0.02566 | F8: 0.02568 | H8: 0.02689
A9: 60 | B9: 1.92 | C9: 2022-03-10 | D9: 0.02151 | E9: 0.02154 | F9: 0.02151
A11: Fixed Margin | D11: 0.066 | E11: 0.0865 | F11: 0.066 | G11: 0.0794 | H11: 0.113
